Workbook

Sheet FU (hidden)
K3: VERIFICACIÓN Y ANÁLISIS DE DOCUMENTACIÓN
K4: Dirección de Profesionalización y Seguimiento
B6: INFORMACIÓN DE RECEPCIÓN
B7: DATOS OFICIALÍA DE PARTES | L7: OFICIO DE REMISIÓN | W7: INFORMACIÓN QUE SE ACOMPAÑA
B8: No. | E8: Fecha de recepción | L8: No. de oficio | T8: Fecha del oficio | Y8: Documentación | AD8: No. | AF8: Medio electrónico | AL8: No.
B10: Nombre del remitente | AA10: Cargo
B12: =LOOKUP(K14,M112:M473,N112:N473) -> Sureste | C12: =LOOKUP(K14,M112:M473,O112:O473) -> 6316
B13: CÓDIGO DEL ENTE | K13: NOMBRE DEL ENTE PÚBLICO
B14: =LOOKUP(K14,M112:M473,L112:L473) -> 3111110700 | K14: =Inconsistencias!B6 -> Tuxcueca
B17: OBLIGACIÓN O DOCUMENTACIÓN REMITIDA | Q17: EJERCICIO | U17: OBLIGACIÓN O DOCUMENTACIÓN REMITIDA | AJ17: EJERCICIO
B18: X | C18: Presupuesto de egresos | Q18: 2020 | V18: Cuenta detallada de movimientos de fondos
C19: Modificación al presupuesto de egresos | N19: No. | V19: Corte del primer semestre
C20: Cuenta pública | V20: Corte anual
C21: 1er. Informe de avances de gestión financiera | V21: Estados financieros
C22: 2do. Informe de avances de gestión financiera | V22: Otros
B23: DOCUMENTACIÓN REMITIDA CORRESPONDE A UNA: | T23: Normal | Z23: =IF(Inconsistencias!Q10="","",Inconsistencias!Q10) -> X | AB23: Complementaria | AH23: =IF(Inconsistencias!Q11="","",Inconsistencias!Q11) ->  | AJ23: No. | AL23: =IF(Inconsistencias!AC11="","",Inconsistencias!AC11) -> 
B25: INFORMACIÓN DE LA APROBACIÓN AL PRESUPUESTO DE EGRESOS Y SUS MODIFICACIONES
B26: ACTA DE APROBACIÓN | S26: PRESUPUESTO | Z26: SEGÚN ACTA | AG26: SEGÚN FORMATO
S27: Aprobado
B28: Acta Número | H28: Fecha Acuerdo | M28: Acuerdo Número | S28: Modificado
B29: =IF(Inconsistencias!B15="","",Inconsistencias!B15) -> 25 | H29: =IF(Inconsistencias!H15="","",Inconsistencias!H15) -> 2019-12-12 | M29: =IF(Inconsistencias!O15="","",Inconsistencias!O15) -> 43811 | S29: Vigente | Z29: =SUM(Z27:AF28) -> 0 | AG29: =SUM(AG27:AM28) -> 0
B30: VERIFICACIÓN DE CUMPLIMIENTO
B31: PRESUPUESTO DE EGRESOS Y SUS MODIFICACIONES
B32: =Inconsistencias!B17 -> X | C32: Resultado y proyección de ingresos - LDF
B33: =Inconsistencias!B18 -> X | C33: Estimación de ingresos (Clasificación por rubro de ingresos de libre disposición y etiquetados)
B34: =Inconsistencias!B19 ->  | C34: Resultado y proyección de egresos - LDF
B35: =Inconsistencias!B20 -> X | C35: Presupuesto de egresos (Clasificador por objeto del gasto y fuente de financiamiento)
B36: =Inconsistencias!B21 -> X | C36: Presupuesto de egresos (Clasificador por tipo de gasto, fuente de financiamiento y objeto del gasto)
B37: =Inconsistencias!B22 -> X | C37: Presupuesto de egresos (Clasificación funcional del gasto)
B38: =Inconsistencias!B23 -> X | C38: Presupuesto de egresos (Clasificación administrativa)
B39: =Inconsistencias!B24 ->  | C39: Informe sobre estudios actuariales - LDF
B40: =Inconsistencias!B25 -> X | C40: Plantilla de personal de carácter permanente
B41: I N G R E S O S
C42: Impuestos | AH42: ='CRI-DE'!F2 -> 4569402
C43: Cuotas y aportaciones de seguridad social | AH43: ='CRI-DE'!F21 -> 0
C44: Contribuciones de mejoras | AH44: ='CRI-DE'!F27 -> 0
C45: Derechos | AH45: ='CRI-DE'!F30 -> 2389116
C46: Productos | AH46: ='CRI-DE'!F60 -> 128220
C47: Aprovechamientos | AH47: ='CRI-DE'!F65 -> 0
C48: Ingresos por venta de bienes, prestación de servicios y otros ingresos | AH48: ='CRI-DE'!F79 -> 0
C49: Participaciones, aportaciones, convenios, incentivos derivados de la colaboración fiscal y fondos distintos de las aportaciones | AH49: ='CRI-DE'!F93 -> 27754540
C50: Transferencias, asignaciones, subsidios y subvenciones y pensiones y jubilaciones | AH50: ='CRI-DE'!F124 -> 0
C51: Ingresos derivados de financiamiento | AH51: ='CRI-DE'!F136 -> 0
AG52: ESTIMACIÓN DE INGRESOS | AH52: =SUM(AH42:AM51) -> 34841278
B53: E G R E S O S
C54: Servicios personales | AH54: ='COG-RYP'!E3 -> 12933845
C55: Materiales y suministros | AH55: ='COG-RYP'!E4 -> 4587706
C56: Servicios generales | AH56: ='COG-RYP'!E5 -> 6166639
C57: Transferencias, asignaciones, subsidios y otras ayudas | AH57: ='COG-RYP'!E6 -> 1429000
C58: Bienes muebles, inmuebles e intangibles | AH58: ='COG-RYP'!E7 -> 119000
C59: Inversión pública | AH59: ='COG-RYP'!E8 -> 0
C60: Inversiones financieras y otras provisiones | AH60: ='COG-RYP'!E9 -> 0
C61: Participaciones y aportaciones | AH61: ='COG-RYP'!E10 -> 430917
C62: Deuda pública | AH62: ='COG-RYP'!E11 -> 1896351
AG63: PRESUPUESTO DE EGRESOS | AH63: =SUM(AH54:AM62) -> 27563458
B65: INCONSISTENCIAS
B66: Inconsistencia
B67: ="• "&L94 -> • No adjunta la información del presupuesto en formato electrónico.
B68: •
B69: •
B70: •
B71: • No se elaboró el o los formato(s) de: Resultado y proyección de egresos - LDF. Informe sobre estudios actuariales - LDF.
B72: •
B73: •
B74: •
B75: •
B76: •
B77: •
B78: • Se observa diferencia entre la estimación de ingresos de otros recursos de libre disposición (17) y los egresos pagaderos con dicha fuente de financiamiento.
B79: •
B80: •
B81: •
B82: •
B83: •
R85: Guadalajara, Jalisco; a
B88: ELABORÓ | Z88: REVISÓ
L94: =IF(AF9>0,"","No adjunta la información del presupuesto en formato electrónico.") -> No adjunta la información del presupuesto en formato electrónico.
L95: =IF(B29="","No se envía el acta de aprobación al presupuesto.","") -> 
L96: =IF(H29>43829,"El presupuesto se aprobó despues del 30 de diciembre, incumpliendo lo establecido en el art. 218 de la LHM.","") -> 
L97: =IF(Z29=AG29,"","Existe diferencia entre lo establecido en el acta de aprobación y la información remitida en los formatos del presupuesto.") -> 
L98: =Inconsistencias!B28 -> No se elaboró el o los formato(s) de: Resultado y proyección de egresos - LDF. Informe sobre estudios actuariales - LDF.
L99: =Inconsistencias!B45 -> 
L100: =Inconsistencias!B46 -> 
L101: =Inconsistencias!B48 -> 
L102: =Inconsistencias!B50 -> 
L103: =Inconsistencias!B52 -> 
L104: =Inconsistencias!B54 -> 
L105: =Inconsistencias!B56 -> Se observa diferencia entre la estimación de ingresos de otros recursos de libre disposición (17) y los egresos pagaderos con dicha fuente de financiamiento.
L106: =Inconsistencias!B58 -> 
L107: =Inconsistencias!B60 -> 
L108: =Inconsistencias!B62 -> 
L109: =Inconsistencias!B65 -> 
L110: =Inconsistencias!B67 -> 
L112: 3111100100 | M112: Acatic | N112: Altos sur | O112: 21206
L113: 3111100200 | M113: Acatlán de Juárez | N113: Lagunas | O113: 23241
L114: 3112902302 | M114: Administración de Estacionómetros para la Asistencia Social del Municipio de Zapotlán el Grande | N114: Sur | O114: 100534
L115: 3112800010 | M115: Agencia Metropolitana de Seguridad Pública del Área Metropolitana de Guadalajara | N115: Centro | O115: 1495189
L116: 3112209300 | M116: Agua y Saneamiento del Municipio de Tepatitlán | N116: Altos sur | O116: 136123
L117: 3111100300 | M117: Ahualulco de Mercado | N117: Valles | O117: 21714
L118: 3112903906 | M118: Albergue "Las Cuadritas" Fray Antonio Alcalde | N118: Centro | O118: 1495189
L119: 3111100400 | M119: Amacueca | N119: Sur | O119: 5545
L120: 3111100500 | M120: Amatitán | N120: Valles | O120: 14648
L121: 3111100600 | M121: Ameca | N121: Valles | O121: 57340
L122: 3111100800 | M122: Arandas | N122: Altos sur | O122: 72812
L123: 3112800001 | M123: Asociación Intermunicipal para la Protección del Medio Ambiente y el Desarrollo Sustentable del Lago de Chapala | N123: Ciénega | O123: 48839
L124: 3111101000 | M124: Atemajac de Brizuela | N124: Sur | O124: 6655
L125: 3111101100 | M125: Atengo | N125: Sierra de Amula | O125: 5400
L126: 3111101200 | M126: Atenguillo | N126: Costa Sierra Occidente | O126: 4115
L127: 3111101300 | M127: Atotonilco el Alto | N127: Ciénega | O127: 57717
L128: 3111101400 | M128: Atoyac | N128: Lagunas | O128: 8276
L129: 3111101500 | M129: Autlán de Navarro | N129: Sierra de Amula | O129: 57559
L130: 3111101600 | M130: Ayotlán | N130: Ciénega | O130: 38291
L131: 3111101700 | M131: Ayutla | N131: Costa Sierra Occidente | O131: 12664
L132: 3111101900 | M132: Bolaños | N132: Norte | O132: 6820
L133: 3111102000 | M133: Cabo Corrientes | N133: Costa Sierra Occidente | O133: 10029
L134: 3111111700 | M134: Cañadas de Obregón | N134: Altos sur | O134: 4152
L135: 3111102100 | M135: Casimiro Castillo | N135: Costa sur | O135: 21475
L136: 3112909701 | M136: Centro de Estimulación para Personas con Discapacidad Intelectual de Tlajomulco de Zúñiga | N136: Centro | O136: 416626
L137: 3111103000 | M137: Chapala | N137: Sureste | O137: 48839
L138: 3111103100 | M138: Chimaltitán | N138: Norte | O138: 3771
L139: 3111103200 | M139: Chiquilistlán | N139: Sierra de Amula | O139: 5814
L140: 3111102200 | M140: Cihuatlán | N140: Costa sur | O140: 39020
L141: 3111102400 | M141: Cocula | N141: Lagunas | O141: 26174
L142: 3111102500 | M142: Colotlán | N142: Norte | O142: 18091
L143: 3112902301 | M143: Comité de la Feria de Zapotlán el Grande | N143: Sur | O143: 100534
L144: 3112908201 | M144: Comité del Carnaval Sayula | N144: Lagunas | O144: 34829
L145: 3111102600 | M145: Concepción de Buenos Aires | N145: Sureste | O145: 5933
L146: 3112909801 | M146: Consejo Municipal contra las Adicciones en San Pedro Tlaquepaque | N146: Centro | O146: 608114
L147: NA | M147: Consejo Municipal del Deporte de Ahualulco de Mercado | N147: Valles | O147: 21714
L148: NA | M148: Consejo Municipal del Deporte de Degollado, Jalisco | N148: Ciénega | O148: 21132
L149: 3112303900 | M149: Consejo Municipal del Deporte de Guadalajara | N149: Centro | O149: 1495189
L150: 3112305000 | M150: Consejo Municipal del Deporte de Jocotepec | N150: Sureste | O150: 42164
L151: 3112301800 | M151: Consejo Municipal del Deporte de La Barca | N151: Ciénega | O151: 64269
L152: 3112306700 | M152: Consejo Municipal del Deporte de Puerto Vallarta | N152: Costa Sierra Occidente | O152: 255681
L153: 3112309800 | M153: Consejo Municipal del Deporte de San Pedro Tlaquepaque | N153: Centro | O153: 608114
L154: 3112310100 | M154: Consejo Municipal del Deporte de Tonalá | N154: Centro | O154: 478689
L155: 3112311800 | M155: Consejo Municipal del Deporte de Yahualica de González Gallo | N155: Altos Sur | O155: 22284
L156: 3112312000 | M156: Consejo Municipal del Deporte de Zapopan | N156: Centro | O156: 1243756
L157: 3112903902 | M157: Consejo Social de Cooperación para el Desarrollo Urbano de Guadalajara | N157: Centro | O157: 1495189
L158: 3111102700 | M158: Cuautitlán de García Barragán | N158: Costa Sur | O158: 17322
L159: 3111102800 | M159: Cuautla | N159: Sierra de Amula | O159: 2171
L160: 3111102900 | M160: Cuquío | N160: Centro | O160: 17795
L161: 3111103300 | M161: Degollado | N161: Ciénega | O161: 21132
L162: 3112100100 | M162: Desarrollo Integral de la Familia del Municipio de Acatic | N162: Altos Sur | O162: 21206
L163: 3112100200 | M163: Desarrollo Integral de la Familia del Municipio de Acatlán de Juárez | N163: Lagunas | O163: 23241
L164: 3112100300 | M164: Desarrollo Integral de la Familia del Municipio de Ahualulco de Mercado | N164: Valles | O164: 21714
L165: 3112100400 | M165: Desarrollo Integral de la Familia del Municipio de Amacueca | N165: Lagunas | O165: 5545
L166: 3112100500 | M166: Desarrollo Integral de la Familia del Municipio de Amatitán | N166: Valles | O166: 14648
L167: 3112100600 | M167: Desarrollo Integral de la Familia del Municipio de Ameca | N167: Valles | O167: 57340
L168: 3112100800 | M168: Desarrollo Integral de la Familia del Municipio de Arandas | N168: Altos Sur | O168: 72812
L169: 3112101000 | M169: Desarrollo Integral de la Familia del Municipio de Atemajac de Brizuela | N169: Lagunas | O169: 6655
L170: 3112101100 | M170: Desarrollo Integral de la Familia del Municipio de Atengo | N170: Sierra de Amula | O170: 5400
L171: 3112101200 | M171: Desarrollo Integral de la Familia del Municipio de Atenguillo | N171: Costa Sierra Occidental | O171: 4115
L172: 3112101300 | M172: Desarrollo Integral de la Familia del Municipio de Atotonilco el Alto | N172: Ciénega | O172: 57717
L173: 3112101400 | M173: Desarrollo Integral de la Familia del Municipio de Atoyac | N173: Lagunas | O173: 8276
L174: 3112101500 | M174: Desarrollo Integral de la Familia del Municipio de Autlán de Navarro | N174: Sierra de Amula | O174: 57559
L175: 3112101600 | M175: Desarrollo Integral de la Familia del Municipio de Ayotlán | N175: Ciénega | O175: 38291
L176: 3112101700 | M176: Desarrollo Integral de la Familia del Municipio de Ayutla | N176: Costa Sierra Occidental | O176: 12664
L177: 3112101900 | M177: Desarrollo Integral de la Familia del Municipio de Bolaños | N177: Norte | O177: 6820
L178: 3112102000 | M178: Desarrollo Integral de la Familia del Municipio de Cabo Corrientes | N178: Costa Sierra Occidental | O178: 10029
L179: 3112111700 | M179: Desarrollo Integral de la Familia del Municipio de Cañadas de Obregón | N179: Altos Sur | O179: 4152
L180: 3112102100 | M180: Desarrollo Integral de la Familia del Municipio de Casimiro Castillo | N180: Costa Sur | O180: 21475
L181: 3112103000 | M181: Desarrollo Integral de la Familia del Municipio de Chapala | N181: Sureste | O181: 48839
L182: 3112103100 | M182: Desarrollo Integral de la Familia del Municipio de Chimaltitán | N182: Norte | O182: 3771
L183: 3112103200 | M183: Desarrollo Integral de la Familia del Municipio de Chiquilistlán | N183: Sierra de Amula | O183: 5814
L184: 3112102200 | M184: Desarrollo Integral de la Familia del Municipio de Cihuatlán | N184: Costa Sur | O184: 39020
L185: 3112102400 | M185: Desarrollo Integral de la Familia del Municipio de Cocula | N185: Lagunas | O185: 26174
L186: 3112102500 | M186: Desarrollo Integral de la Familia del Municipio de Colotlán | N186: Norte | O186: 18091
L187: 3112102600 | M187: Desarrollo Integral de la Familia del Municipio de Concepción de Buenos Aires | N187: Sureste | O187: 5933
L188: 3112102700 | M188: Desarrollo Integral de la Familia del Municipio de Cuautitlán de García Barragán | N188: Costa Sur | O188: 17322
L189: 3112102800 | M189: Desarrollo Integral de la Familia del Municipio de Cuautla | N189: Sierra de Amula | O189: 2171
L190: 3112102900 | M190: Desarrollo Integral de la Familia del Municipio de Cuquío | N190: Centro | O190: 17795
L191: 3112103300 | M191: Desarrollo Integral de la Familia del Municipio de Degollado | N191: Ciénega | O191: 21132
L192: 3112103400 | M192: Desarrollo Integral de la Familia del Municipio de Ejutla | N192: Sierra de Amula | O192: 2082
L193: 3112100900 | M193: Desarrollo Integral de la Familia del Municipio de El Arenal | N193: Valles | O193: 17545
L194: 3112103700 | M194: Desarrollo Integral de la Familia del Municipio de El Grullo | N194: Sierra de Amula | O194: 23845
L195: 3112105400 | M195: Desarrollo Integral de la Familia del Municipio de El Limón | N195: Sierra de Amula | O195: 5499
L196: 3112107000 | M196: Desarrollo Integral de la Familia del Municipio de El Salto | N196: Centro | O196: 138226
L197: 3112103500 | M197: Desarrollo Integral de la Familia del Municipio de Encarnación de Díaz | N197: Altos Norte | O197: 51396
L198: 3112103600 | M198: Desarrollo Integral de la Familia del Municipio de Etzatlán | N198: Valles | O198: 18632
L199: 3112107900 | M199: Desarrollo Integral de la Familia del Municipio de Gómez Farías | N199: Sur | O199: 14011
L200: 3112103800 | M200: Desarrollo Integral de la Familia del Municipio de Guachinango | N200: Costa Sierra Occidental | O200: 4323
L201: 3112103900 | M201: Desarrollo Integral de la Familia del Municipio de Guadalajara | N201: Centro | O201: 1495189
L202: 3112104000 | M202: Desarrollo Integral de la Familia del Municipio de Hostotipaquillo | N202: Valles | O202: 10284
L203: 3112104100 | M203: Desarrollo Integral de la Familia del Municipio de Huejúcar | N203: Norte | O203: 6084
L204: 3112104200 | M204: Desarrollo Integral de la Familia del Municipio de Huejuquilla el Alto | N204: Norte | O204: 8781
L205: 3112104400 | M205: Desarrollo Integral de la Familia del Municipio de Ixtlahuacán de los Membrillos | N205: Centro | O205: 41060
L206: 3112104500 | M206: Desarrollo Integral de la Familia del Municipio de Ixtlahuacán del Río | N206: Centro | O206: 19005
L207: 3112104600 | M207: Desarrollo Integral de la Familia del Municipio de Jalostotitlán | N207: Altos Sur | O207: 31948
L208: 3112104700 | M208: Desarrollo Integral de la Familia del Municipio de Jamay | N208: Ciénega | O208: 22881
L209: 3112104800 | M209: Desarrollo Integral de la Familia del Municipio de Jesús María | N209: Altos Sur | O209: 18634
L210: 3112104900 | M210: Desarrollo Integral de la Familia del Municipio de Jilotlán de los Dolores | N210: Sur | O210: 9545
L211: 3112105000 | M211: Desarrollo Integral de la Familia del Municipio de Jocotepec | N211: Sureste | O211: 42164
L212: 3112105100 | M212: Desarrollo Integral de la Familia del Municipio de Juanacatlán | N212: Centro | O212: 13218
L213: 3112105200 | M213: Desarrollo Integral de la Familia del Municipio de Juchitlán | N213: Sierra de Amula | O213: 5515
L214: 3112101800 | M214: Desarrollo Integral de la Familia del Municipio de La Barca | N214: Ciénega | O214: 64269
L215: 3112104300 | M215: Desarrollo Integral de la Familia del Municipio de La Huerta | N215: Costa Sur | O215: 23428
L216: 3112105700 | M216: Desarrollo Integral de la Familia del Municipio de La Manzanilla de la Paz | N216: Sureste | O216: 3755
L217: 3112105300 | M217: Desarrollo Integral de la Familia del Municipio de Lagos de Moreno | N217: Altos Norte | O217: 153817
L218: 3112105500 | M218: Desarrollo Integral de la Familia del Municipio de Magdalena | N218: Valles | O218: 21321
... 255 more rows

Sheet Inconsistencias
B2: PRESUPUESTO DE EGRESOS 2020
B3: INFORMACIÓN ADICIONAL
B5: NOMBRE DEL ENTE PÚBLICO
B6: Tuxcueca
B9: DOCUMENTO REMITIDO | M9: EJERCICIO | Q9: DOCUMENTACIÓN CORRESPONDE A:
B10: X | C10: Presupuesto de egresos | M10: 2020 | Q10: X | R10: Normal
C11: Modificación al presupuesto | M11: 2020 | R11: Complementaria | AA11: No.
B12: La modificación al presupuesto es la No. | Q12: Se acompaña respaldo electrónico
B13: INFORMACIÓN DE APROBACIÓN DEL PRESUPUESTO
B14: Acta número | H14: Fecha del acuerdo | O14: Acuerdo número
B15: 25 | H15: 2019-12-12 | O15: 2019-12-12
B16: FORMATOS ELABORADOS
B17: =IF('CRI-RYP'!D24>0,IF('CRI-RYP'!F24>0,"X",""),"") -> X | C17: Resultado y proyección de ingresos - LDF.
B18: =IF('CRI-DE'!F141>0,"X","") -> X | C18: Estimación de ingresos (Clasificación por rubro de ingresos de libre disposición y etiquetados).
B19: =IF('COG-RYP'!D24>0,IF('COG-RYP'!F24>0,"X",""),"") ->  | C19: Resultado y proyección de egresos - LDF.
B20: =IF('COG-FF'!M429>0,"X","") -> X | C20: Presupuesto de egresos (Clasificador por objeto del gasto y fuente de financiamiento).
B21: =IF('CTG-FF'!M8>0,"X","") -> X | C21: Presupuesto de egresos (Clasificador por tipo de gasto, fuente de financiamiento y objeto del gasto).
B22: =IF(CF!C146>0,"X","") -> X | C22: Presupuesto de egresos (Clasificación funcional del gasto).
B23: =IF(CA!D76>0,"X","") -> X | C23: Presupuesto de egresos (Clasificación administrativa).
B24: =IF(SUM(EA!B2:F49)>0,"X","") ->  | C24: Informe sobre estudios actuariales - LDF.
B25: =IF(Plantilla!O429>0,"X","") -> X | C25: Plantilla de personal de carácter permanente.
B26: Se considera que los formatos han sido correctamente elaborados, salvo que se generen las siguientes:
B27: Inconsistencia relacionada con la elaboración de formatos:
B28: =IF(SUM(C35:C43)>0,"No se elaboró el o los formato(s) de: ","")&B35&B36&B37&B38&B39&B40&B41&B42&B43 -> No se elaboró el o los formato(s) de: Resultado y proyección de egresos - LDF. Informe sobre estudios actuariales - LDF.
B35: =IF(B17="X","",C17) ->  | C35: =IF(B17="X",0,1) -> 0
B36: =IF(B18="X","",C18) ->  | C36: =IF(B18="X",0,1) -> 0
B37: Resultado y proyección de egresos - LDF. | C37: 1
C38: 0
C39: 0
C40: 0
C41: 0
B42: Informe sobre estudios actuariales - LDF. | C42: 1
C43: 0
B44: Inconsistencia relacionada con el equilibrio ingreso vs. gasto:
B45: =IF('CRI-RYP'!E24='COG-RYP'!E24,"","El total de la estimación de ingresos es diferente al total del presupuesto de egresos.") -> 
B46: =IF(SUM('CRI-DE'!D2+'CRI-DE'!D21+'CRI-DE'!D27+'CRI-DE'!D30+'CRI-DE'!D60+'CRI-DE'!D65)='CTG-FF'!C8,"","Se observa diferencia entre la estimación de ingresos fiscales (11) y los egresos pagaderos con dicha fuente de financiamiento.") -> 
B48: =IF('CRI-DE'!E140='CTG-FF'!D8,"","Se observa diferencia entre la estimación de financiamiento interno (12) y los egresos pagaderos con dicha fuente de financiamiento.") -> 
B50: =IF('CRI-DE'!F79='CTG-FF'!F8,"","Se observa diferencia entre la estimación de ingresos propios (14) y los egresos pagaderos con dicha fuente de financiamiento.") -> 
B52: =IF(SUM('CRI-DE'!F95:F105)='CTG-FF'!G8,"","Se observa diferencia entre la estimación de ingresos de recursos federales de libre disposición (15) y los egresos pagaderos con dicha fuente de financiamiento.") -> 
B54: =IF('CRI-DE'!D106='CTG-FF'!H8,"","Se observa diferencia entre la estimación de ingresos de recursos estatales de libre disposición (16) y los egresos pagaderos con dicha fuente de financiamiento.") -> 
B56: =IF(('CRI-DE'!D115+'CRI-DE'!D124)='CTG-FF'!I8,"","Se observa diferencia entre la estimación de ingresos de otros recursos de libre disposición (17) y los egresos pagaderos con dicha fuente de financiamiento.") -> Se observa diferencia entre la estimación de ingresos de otros recursos de libre disposición (17) y los egresos pagaderos con dicha fuente de financiamiento.
B58: =IF('CRI-DE'!E107='CTG-FF'!J8,"","Se observa diferencia entre la estimación de ingresos de recursos federales etiquetados (25) y los egresos pagaderos con dicha fuente de financiamiento.") -> 
B60: =IF('CRI-M'!O116='CTG-FF'!K8,"","Se observa diferencia entre la estimación de ingresos de recursos estatales etiquetados (26) y los egresos pagaderos con dicha fuente de financiamiento.") -> 
B62: =IF(('CRI-M'!O115+'CRI-M'!O123+'CRI-M'!O129+'CRI-M'!O133)='CTG-FF'!L8,"","Se observa diferencia entre la estimación de ingresos otros recursos de transferencia federal etiquetados (27) y los egresos pagaderos con dicha fuente de financiamiento.") -> 
B64: Inconsistencia relacionada con el monto presupuestado en sus diferentes clasificadores:
B65: =IF('COG-RYP'!E24=CF!C146,"","El total del presupuesto de egresos en su clasificación por objeto del gasto difiere con el total de los egresos por clasificación funcional del gasto.") -> 
B67: =IF('COG-RYP'!E24=CA!D76,"","El total del presupuesto de egresos en su clasificación por objeto del gasto difiere con el total de los egresos en la clasificación administrativa.") -> 

Sheet CRI-M
A1: CRI-LI | C1: ENERO | D1: FEBRERO | E1: MARZO | F1: ABRIL | G1: MAYO | H1: JUNIO | I1: JULIO | J1: AGOSTO | K1: SEPTIEMBRE | L1: OCTUBRE | M1: NOVIEMBRE | N1: DICIEMBRE | O1: TOTAL
A2: 1000 | B2: IMPUESTOS | C2: =C3+C5+C9+C10+C11+C12+C13+C19 -> 1432600 | D2: =D3+D5+D9+D10+D11+D12+D13+D19 -> 768435 | E2: 364929 | F2: 101928 | G2: 314293 | H2: 371209 | I2: 448611 | J2: 320726 | K2: 209724 | L2: 98672 | M2: 64275 | N2: 74000 | O2: =SUM(C2:N2) -> 4569402
A3: 1100 | B3: Impuestos sobre los ingresos | C3: =SUM(C4) -> 9000 | D3: =SUM(D4) -> 900 | E3: 1500 | F3: 0 | G3: 1500 | H3: 0 | I3: 1500 | J3: 3000 | K3: 0 | L3: 1000 | M3: 0 | N3: 0 | O3: =SUM(C3:N3) -> 18400
A4: 1101 | B4: Impuestos sobre espectáculos públicos | C4: 9000 | D4: 900 | E4: 1500 | F4: 0 | G4: 1500 | I4: 1500 | J4: 3000 | L4: 1000 | O4: 18400
A5: 1200 | B5: Impuestos sobre el patrimonio | C5: =SUM(C6:C8) -> 1423600 | D5: =SUM(D6:D8) -> 767035 | E5: 363429 | F5: 101928 | G5: 307793 | H5: 367609 | I5: 440611 | J5: 315926 | K5: 207824 | L5: 95372 | M5: 55000 | N5: 71500 | O5: 4517627
A6: 1201 | B6: Impuesto predial | C6: 1231600 | D6: 606718 | E6: 189402 | F6: 68757 | G6: 120793 | H6: 71162 | I6: 60151 | J6: 133482 | K6: 155694 | L6: 86172 | M6: 50000 | N6: 62000 | O6: 2835931
A7: 1202 | B7: Impuestos sobre transmisiones patrimoniales | C7: 192000 | D7: 160317 | E7: 174027 | F7: 33171 | G7: 187000 | H7: 296447 | I7: 380460 | J7: 182444 | K7: 52130 | L7: 9200 | M7: 5000 | N7: 9500 | O7: 1681696
A8: 1203 | B8: Impuestos sobre negocios jurídicos | C8: 0 | O8: 0
A9: 1300 | B9: Impuestos sobre la producción, el consumo y las transacciones | C9: 0 | D9: 0 | E9: 0 | F9: 0 | G9: 0 | H9: 0 | I9: 0 | J9: 0 | K9: 0 | L9: 0 | M9: 0 | N9: 0 | O9: 0
A10: 1400 | B10: Impuestos al comercio exterior | C10: 0 | D10: 0 | E10: 0 | F10: 0 | G10: 0 | H10: 0 | I10: 0 | J10: 0 | K10: 0 | L10: 0 | M10: 0 | N10: 0 | O10: 0
A11: 1500 | B11: Impuestos sobre nóminas y asimilables | C11: 0 | D11: 0 | E11: 0 | F11: 0 | G11: 0 | H11: 0 | I11: 0 | J11: 0 | K11: 0 | L11: 0 | M11: 0 | N11: 0 | O11: 0
A12: 1600 | B12: Impuestos ecológicos | C12: 0 | D12: 0 | E12: 0 | F12: 0 | G12: 0 | H12: 0 | I12: 0 | J12: 0 | K12: 0 | L12: 0 | M12: 0 | N12: 0 | O12: 0
A13: 1700 | B13: Accesorios de impuestos | C13: =SUM(C14:C18) -> 0 | D13: =SUM(D14:D18) -> 500 | E13: 0 | F13: 0 | G13: 5000 | H13: 3600 | I13: 6500 | J13: 1800 | K13: 1900 | L13: 2300 | M13: 2300 | N13: 2500 | O13: 26400
A14: 1701 | B14: Recargos | D14: 500 | G14: 5000 | H14: 3600 | I14: 6500 | J14: 1800 | K14: 1900 | L14: 2300 | M14: 2300 | N14: 2500 | O14: 26400
A15: 1702 | B15: Actualizaciones | O15: 0
A16: 1703 | B16: Multas | O16: 0
A17: 1704 | B17: Gastos de ejecución | O17: 0
A18: 1709 | B18: Otros no especificados | O18: 0
A19: 1800 | B19: Otros impuestos | C19: =SUM(C20) -> 0 | D19: =SUM(D20) -> 0 | E19: 0 | F19: 0 | G19: 0 | H19: 0 | I19: 0 | J19: 0 | K19: 0 | L19: 0 | M19: 6975 | N19: 0 | O19: 6975
A20: 1801 | B20: Otros impuestos | M20: 6975 | O20: 6975
A21: 2000 | B21: CUOTAS Y APORTACIONES DE SEGURIDAD SOCIAL | C21: =SUM(C22:C26) -> 0 | D21: =SUM(D22:D26) -> 0 | E21: 0 | F21: 0 | G21: 0 | H21: 0 | I21: 0 | J21: 0 | K21: 0 | L21: 0 | M21: 0 | N21: 0 | O21: 0
A22: 2100 | B22: Aportaciones para fondos de vivienda | O22: 0
A23: 2200 | B23: Cuotas para la seguridad social | O23: 0
A24: 2300 | B24: Cuotas de ahorro para el retiro | O24: 0
A25: 2400 | B25: Otras cuotas y aportaciones para la seguridad social | O25: 0
A26: 2500 | B26: Accesorios de cuotas y aportaciones de seguridad social | O26: 0
A27: 3000 | B27: CONTRIBUCIONES DE MEJORAS | C27: =SUM(C28) -> 0 | D27: =SUM(D28) -> 0 | E27: 0 | F27: 0 | G27: 0 | H27: 0 | I27: 0 | J27: 0 | K27: 0 | L27: 0 | M27: 0 | N27: 0 | O27: 0
A28: 3100 | B28: Contribuciones de mejoras por obras públicas | C28: =SUM(C29) -> 0 | D28: 0 | E28: 0 | F28: 0 | G28: 0 | H28: 0 | I28: 0 | J28: 0 | K28: 0 | L28: 0 | M28: 0 | N28: 0 | O28: 0
A29: 3101 | B29: Contribuciones de mejoras por obras públicas | O29: 0
A30: 4000 | B30: DERECHOS | C30: =C31+C36+C37+C52+C54 -> 998855 | D30: =D31+D36+D37+D52+D54 -> 372472 | E30: 226482 | F30: 160370 | G30: 83194 | H30: 66142 | I30: 132621 | J30: 116835 | K30: 108806 | L30: 78727 | M30: 28736 | N30: 15876 | O30: 2389116
A31: 4100 | B31: Derechos por el uso, goce, aprovechamiento o explotación de bienes de dominio público | C31: =SUM(C32:C35) -> 4700 | D31: =SUM(D32:D35) -> 3200 | E31: 14273 | F31: 44388 | G31: 3400 | H31: 4307 | I31: 234 | J31: 15484 | K31: 65180 | L31: 305 | M31: 1500 | N31: 1500 | O31: 158471
A32: 4101 | B32: Derechos por el uso del piso | C32: 2500 | D32: 0 | E32: 3960 | F32: 34800 | G32: 1960 | H32: 2100 | J32: 15000 | K32: 65180 | O32: 125500
A33: 4102 | B33: Derechos por el uso de los estacionamientos | O33: 0
A34: 4103 | B34: Derechos de uso de cementerios y panteones municipales | C34: 2200 | D34: 3200 | E34: 10313 | F34: 9588 | G34: 1440 | H34: 2207 | I34: 234 | J34: 484 | L34: 305 | M34: 1500 | N34: 1500 | O34: 32971
A35: 4104 | B35: Derechos de concesiones y demás inmuebles de propiedad municipal | O35: 0
A36: 4200 | B36: Derechos a los hidrocarburos (Derogado) | O36: 0
A37: 4300 | B37: Derechos por prestación de servicios | C37: =SUM(C38:C51) -> 979329 | D37: =SUM(D38:D51) -> 364422 | E37: 204792 | F37: 88639 | G37: 68216 | H37: 54915 | I37: 124917 | J37: 96789 | K37: 37526 | L37: 60522 | M37: 20410 | N37: 8050 | O37: 2108527
A38: 4301 | B38: Derechos de licencias y permisos de giros | C38: 58229 | D38: 21190 | E38: 34447 | F38: 20130 | G38: 1055 | H38: 2625 | I38: 7856 | L38: 4306 | O38: 149838
A39: 4302 | B39: Derechos de licencias y permisos de anuncios | C39: 7000 | D39: 6500 | E39: 9200 | F39: 7032 | G39: 1150 | H39: 2525 | I39: 4426 | J39: 1325 | K39: 400 | L39: 5485 | M39: 499 | N39: 500 | O39: 46042
A40: 4303 | B40: Derechos de licencias de construcción, reconstrucción, reparación o demolición de obras | C40: 2000 | E40: 5000 | G40: 2467 | I40: 9080 | O40: 18547
A41: 4304 | B41: Derechos de regularizaciones de los registros de obra | O41: 0
A42: 4305 | B42: Derechos de alineamiento, designación de número oficial e inspección | C42: 4500 | D42: 2296 | E42: 2000 | F42: 2800 | G42: 5800 | H42: 8012 | I42: 23906 | J42: 8000 | K42: 560 | L42: 1680 | M42: 40 | N42: 50 | O42: 59644
A43: 4306 | B43: Derechos de licencias de cambio de régimen de propiedad y urbanización | C43: 500 | O43: 500
A44: 4307 | B44: Derechos de servicios de obra | O44: 0
A45: 4308 | B45: Derechos de servicios de sanidad | O45: 0
A46: 4309 | B46: Derechos de servicio de limpieza, recolección, traslado, tratamiento y disposición final de residuos | C46: 1000 | D46: 1000 | E46: 1000 | F46: 2000 | G46: 3000 | H46: 2600 | I46: 1000 | L46: 9000 | M46: 500 | N46: 500 | O46: 21600
A47: 4310 | B47: Derechos de agua potable, drenaje, alcantarillado, tratamiento y disposición final de aguas residuales | C47: 885000 | D47: 303736 | E47: 130565 | F47: 40212 | G47: 35041 | H47: 21322 | I47: 56346 | J47: 63062 | K47: 12900 | L47: 23500 | M47: 10500 | N47: 2000 | O47: 1584184
A48: 4311 | B48: Derechos del rastro | C48: 0 | D48: 500 | E48: 300 | F48: 500 | G48: 300 | H48: 300 | I48: 200 | J48: 200 | O48: 2300
A49: 4312 | B49: Derechos del registro civil | C49: 14000 | D49: 21000 | E49: 10673 | F49: 9711 | G49: 11168 | H49: 11498 | I49: 13726 | J49: 14396 | K49: 10850 | L49: 11288 | M49: 3671 | N49: 2500 | O49: 134481
A50: 4313 | B50: Derechos de las certificaciones | C50: 3600 | D50: 6200 | E50: 9357 | F50: 5004 | G50: 4985 | H50: 6033 | I50: 7252 | J50: 8056 | K50: 11566 | L50: 5263 | M50: 5200 | N50: 2500 | O50: 75016
A51: 4314 | B51: Derechos de los servicios de catastro | C51: 3500 | D51: 2000 | E51: 2250 | F51: 1250 | G51: 3250 | I51: 1125 | J51: 1750 | K51: 1250 | O51: 16375
A52: 4400 | B52: Otros derechos | C52: =SUM(C53) -> 5326 | D52: =SUM(D53) -> 250 | E52: 5326 | F52: 21000 | G52: 9850 | H52: 4945 | I52: 854 | J52: 2531 | K52: 5327 | L52: 15000 | M52: 5326 | N52: 5326 | O52: 81061
A53: 4401 | B53: Otros derechos | C53: 5326 | D53: 250 | E53: 5326 | F53: 21000 | G53: 9850 | H53: 4945 | I53: 854 | J53: 2531 | K53: 5327 | L53: 15000 | M53: 5326 | N53: 5326 | O53: 81061
A54: 4500 | B54: Accesorios de derechos | C54: =SUM(C55:C59) -> 9500 | D54: =SUM(D55:D59) -> 4600 | E54: 2091 | F54: 6343 | G54: 1728 | H54: 1975 | I54: 6616 | J54: 2031 | K54: 773 | L54: 2900 | M54: 1500 | N54: 1000 | O54: 41057
A55: 4501 | B55: Recargos | C55: 9500 | D55: 4600 | E55: 2091 | F55: 6343 | G55: 1728 | H55: 1975 | I55: 6616 | J55: 2031 | K55: 773 | L55: 2900 | M55: 1500 | N55: 1000 | O55: 41057
A56: 4502 | B56: Actualizaciones | O56: 0
A57: 4503 | B57: Multas | O57: 0
A58: 4504 | B58: Gastos de ejecución | O58: 0
A59: 4509 | B59: Otros no especificados | O59: 0
A60: 5000 | B60: PRODUCTOS | C60: =C61+C64 -> 19000 | D60: =D61+D64 -> 12696 | E60: 14670 | F60: 10787 | G60: 10000 | H60: 10696 | I60: 17045 | J60: 10679 | K60: 13445 | L60: 9202 | M60: 0 | N60: 0 | O60: 128220
A61: 5100 | B61: Productos | C61: =SUM(C62:C63) -> 19000 | D61: =SUM(D62:D63) -> 12696 | E61: 14670 | F61: 10787 | G61: 10000 | H61: 10696 | I61: 17045 | J61: 10679 | K61: 13445 | L61: 9202 | M61: 0 | N61: 0 | O61: 128220
A62: 5101 | B62: Uso, goce, aprovechamiento o explotación de bienes de dominio privado | O62: 0
A63: 5102 | B63: Productos diversos | C63: 19000 | D63: 12696 | E63: 14670 | F63: 10787 | G63: 10000 | H63: 10696 | I63: 17045 | J63: 10679 | K63: 13445 | L63: 9202 | O63: 128220
A64: 5200 | B64: Productos de capital (Derogado) | O64: 0
A65: 6000 | B65: APROVECHAMIENTOS | C65: =C66+C70+C73 -> 0 | D65: =D66+D70+D73 -> 0 | E65: 0 | F65: 0 | G65: 0 | H65: 0 | I65: 0 | J65: 0 | K65: 0 | L65: 0 | M65: 0 | N65: 0 | O65: 0
A66: 6100 | B66: Aprovechamientos | C66: =SUM(C67:C69) -> 0 | D66: =SUM(D67:D69) -> 0 | E66: 0 | F66: 0 | G66: 0 | H66: 0 | I66: 0 | J66: 0 | K66: 0 | L66: 0 | M66: 0 | N66: 0 | O66: 0
A67: 6101 | B67: Aprovechamientos de las sanciones, multas, honorarios y donativos | O67: =SUM(C67:N67) -> 0
A68: 6102 | B68: Aprovechamientos de las indemnizaciones a favor del municipio | O68: 0
A69: 6103 | B69: Otros aprovechamientos | O69: 0
A70: 6200 | B70: Aprovechamientos patrimoniales | C70: =SUM(C71:C72) -> 0 | D70: =SUM(D71:D72) -> 0 | E70: 0 | F70: 0 | G70: 0 | H70: 0 | I70: 0 | J70: 0 | K70: 0 | L70: 0 | M70: 0 | N70: 0 | O70: 0
A71: 6201 | B71: Aprovechamientos por el uso o enajenación de bienes | O71: 0
A72: 6202 | B72: Aprovechamientos por recuperación de capital o patrimonio invertido | O72: 0
A73: 6300 | B73: Accesorios de aprovechamientos | C73: =SUM(C74:C78) -> 0 | D73: =SUM(D74:D78) -> 0 | E73: 0 | F73: 0 | G73: 0 | H73: 0 | I73: 0 | J73: 0 | K73: 0 | L73: 0 | M73: 0 | N73: 0 | O73: 0
A74: 6301 | B74: Recargos | O74: 0
A75: 6302 | B75: Actualizaciones | O75: 0
A76: 6303 | B76: Multas | O76: 0
A77: 6304 | B77: Gastos de ejecución | O77: 0
A78: 6309 | B78: Otros no especificados | O78: 0
A79: 7000 | B79: INGRESOS POR VENTAS DE BIENES, PRESTACIÓN DE SERVICIOS Y OTROS INGRESOS | C79: =C80+C82+C83+C85+C86+C87+C88+C90+C91 -> 0 | D79: =D80+D82+D83+D85+D86+D87+D88+D90+D91 -> 0 | E79: 0 | F79: 0 | G79: 0 | H79: 0 | I79: 0 | J79: 0 | K79: 0 | L79: 0 | M79: 0 | N79: 0 | O79: 0
A80: 7100 | B80: Ingresos por venta de bienes y prestación de servicios de instituciones públicas de seguridad social | C80: =SUM(C81) -> 0 | D80: =SUM(D81) -> 0 | E80: 0 | F80: 0 | G80: 0 | H80: 0 | I80: 0 | J80: 0 | K80: 0 | L80: 0 | M80: 0 | N80: 0 | O80: 0
A81: 7101 | B81: Ingresos por venta de bienes y prestación de servicios de instituciones públicas de seguridad social | O81: 0
A82: 7200 | B82: Ingresos por venta de bienes y prestación de servicios de empresas productivas del estado | O82: 0
A83: 7300 | B83: Ingresos por venta de bienes y prestación de servicios de entidades paraestatales y fideicomisos no empresariales y no financieros | C83: =SUM(C84) -> 0 | D83: =SUM(D84) -> 0 | E83: 0 | F83: 0 | G83: 0 | H83: 0 | I83: 0 | J83: 0 | K83: 0 | L83: 0 | M83: 0 | N83: 0 | O83: 0
A84: 7301 | B84: Ingresos por venta de bienes y prestación de servicios de entidades paraestatales y fideicomisos no empresariales y no financieros | O84: 0
A85: 7400 | B85: Ingresos por venta de bienes y prestación de servicios de entidades paraestatales empresariales no financieras con participación estatal mayoritaria | O85: 0
A86: 7500 | B86: Ingresos por venta de bienes y prestación de servicios de entidades paraestatales empresariales financieras monetarias con participación estatal mayoritaria | O86: 0
A87: 7600 | B87: Ingresos por venta de bienes y prestación de servicios de entidades paraestatales empresariales financieras no monetarias con participación estatal mayoritaria | O87: 0
A88: 7700 | B88: Ingresos por venta de bienes y prestación de servicios de fideicomisos financieros públicos con participación estatal mayoritaria | C88: =SUM(C89) -> 0 | D88: =SUM(D89) -> 0 | E88: 0 | F88: 0 | G88: 0 | H88: 0 | I88: 0 | J88: 0 | K88: 0 | L88: 0 | M88: 0 | N88: 0 | O88: 0
A89: 7701 | B89: Ingresos por venta de bienes y prestación de servicios de fideicomisos financieros públicos con participación estatal mayoritaria | O89: 0
A90: 7800 | B90: Ingresos por venta de bienes y prestación de servicios de los poderes legislativo y judicial, y de los órganos autónomos | O90: 0
A91: 7900 | B91: Otros ingresos | C91: =SUM(C92) -> 0 | D91: =SUM(D92) -> 0 | E91: 0 | F91: 0 | G91: 0 | H91: 0 | I91: 0 | J91: 0 | K91: 0 | L91: 0 | M91: 0 | N91: 0 | O91: 0
A92: 7901 | B92: Otros ingresos | O92: 0
A93: 8000 | B93: PARTICIPACIONES, APORTACIONES, CONVENIOS, INCENTIVOS DERIVADOS DE LA COLABORACIÓN FISCAL Y FONDOS DISTINTOS DE LAS APORTACIONES | C93: =C94+C107+C110+C117+C123 -> 2379594 | D93: =D94+D107+D110+D117+D123 -> 2199077 | E93: 2624977 | F93: 2235598 | G93: 2259049 | H93: 2746394 | I93: 2545935 | J93: 2285026 | K93: 2242773 | L93: 2261161 | M93: 2003663 | N93: 1971293 | O93: 27754540
A94: 8100 | B94: Participaciones | C94: =SUM(C95:C106) -> 1699928 | D94: =SUM(D95:D106) -> 1508070 | E94: 1933927 | F94: 1556202 | G94: 1569781 | H94: 1632088 | I94: 1865267 | J94: 1598753 | K94: 1563617 | L94: 1578482 | M94: 1622143 | N94: 1586819 | O94: 19715077
A95: 8101 | B95: Fondo general de participaciones (federal) | C95: 1079601 | D95: 1069097 | E95: 1361651 | F95: 1077895 | G95: 1176721 | H95: 1217280 | I95: 1303145 | J95: 1154161 | K95: 1144749 | L95: 1149455 | M95: 1187198 | N95: 1158191 | O95: 14079144
A96: 8102 | B96: Fondo de fomento municipal (federal) | C96: 435128 | D96: 218627 | E96: 378095 | F96: 276598 | G96: 202475 | H96: 228565 | I96: 246675 | J96: 255064 | K96: 220149 | L96: 237607 | M96: 239874 | N96: 232916 | O96: 3171773
A97: 8103 | B97: Fondo de fiscalización y recaudación (federal) | C97: 14290 | D97: 22159 | E97: 13990 | F97: 23810 | G97: 25896 | H97: 21186 | I97: 76619 | J97: 21371 | K97: 22073 | L97: 21722 | M97: 21898 | N97: 27062 | O97: 312076
A98: 8104 | B98: Fondo de compensación (federal) | I98: 56604 | O98: 56604
A99: 8105 | B99: Fondo de extracción de hidrocarburos (federal) | O99: 0
A100: 8106 | B100: Impuesto especial sobre producción y servicios (federal) | C100: 30968 | D100: 21559 | E100: 44980 | F100: 43519 | G100: 22796 | H100: 23204 | I100: 33883 | J100: 31573 | K100: 41163 | L100: 36368 | M100: 38766 | N100: 32536 | O100: 401315
A101: 8107 | B101: 0.136% de la recaudación federal participable (federal) | O101: 0
A102: 8108 | B102: 3.17% sobre extracción de petróleo (federal) | O102: 0
A103: 8109 | B103: Gasolinas y diésel (federal) | C103: 80384 | D103: 89271 | E103: 76251 | F103: 75077 | G103: 82433 | H103: 83324 | I103: 85624 | J103: 76034 | K103: 80451 | L103: 78243 | M103: 79347 | N103: 80555 | O103: 966994
A104: 8110 | B104: Fondo del impuesto sobre la renta (federal) | C104: 58000 | D104: 85000 | E104: 56000 | F104: 56000 | G104: 56000 | H104: 56000 | I104: 56154 | J104: 55141 | K104: 55032 | L104: 55087 | M104: 55060 | N104: 55559 | O104: 699033
A105: 8111 | B105: Fondo de estabilización de los ingresos de las entidades federativas (federal) | O105: 0
A106: 8112 | B106: Participaciones del estado | C106: 1557 | D106: 2357 | E106: 2960 | F106: 3303 | G106: 3460 | H106: 2529 | I106: 6563 | J106: 5409 | O106: 28138
A107: 8200 | B107: Aportaciones | C107: =SUM(C108:C109) -> 656324 | D107: =SUM(D108:D109) -> 656324 | E107: 657050 | F107: 656326 | G107: 656324 | H107: 656324 | I107: 656324 | J107: 656324 | K107: 656324 | L107: 656324 | M107: 356926 | N107: 356926 | O107: 7277820
A108: 8201 | B108: Fondo de aportaciones para la infraestructura social municipal | C108: 299398 | D108: 299398 | E108: 299721 | F108: 299398 | G108: 299398 | H108: 299398 | I108: 299398 | J108: 299398 | K108: 299398 | L108: 299398 | O108: 2994303
A109: 8202 | B109: Fondo de aportaciones para el fortalecimiento municipal | C109: 356926 | D109: 356926 | E109: 357329 | F109: 356928 | G109: 356926 | H109: 356926 | I109: 356926 | J109: 356926 | K109: 356926 | L109: 356926 | M109: 356926 | N109: 356926 | O109: 4283517
A110: 8300 | B110: Convenios | C110: =SUM(C111:C116) -> 0 | D110: =SUM(D111:D116) -> 0 | E110: 0 | F110: 0 | G110: 0 | H110: 430917 | I110: 0 | J110: 0 | K110: 0 | L110: 0 | M110: 0 | N110: =SUM(N111:N116) -> 0 | O110: =SUM(C110:N110) -> 430917
A111: 8301 | B111: Convenios de protección social en salud | O111: 0
A112: 8302 | B112: Convenios de descentralizados | O112: 0
A113: 8303 | B113: Convenio de reasignación | O113: 0
A114: 8304 | B114: Otros convenios y subsidios (Con ingresos de libre disposición) | H114: 430917 | O114: 430917
A115: 8304 | B115: Otros convenios y subsidios (Con ingresos etiquetados federales) | O115: 0
A116: 8304 | B116: Otros convenios y subsidios (Con ingresos etiquetados estatales) | O116: =SUM(C116:N116) -> 0
A117: 8400 | B117: Incentivos derivados de la colaboración fiscal | C117: =SUM(C118:C122) -> 23342 | D117: =SUM(D118:D122) -> 34683 | E117: 34000 | F117: 23070 | G117: 32944 | H117: 27065 | I117: 24344 | J117: 29949 | K117: 22832 | L117: 26355 | M117: 24594 | N117: 27548 | O117: 330726
A118: 8401 | B118: Tenencia o uso de vehículos | C118: 50 | D118: 17 | E118: 21 | F118: 31 | G118: 13 | H118: 13 | O118: 145
A119: 8402 | B119: Fondo de compensación ISAN | C119: 4429 | D119: 4429 | E119: 4429 | F119: 4429 | G119: 4429 | H119: 4429 | I119: 4429 | J119: 4429 | K119: 4429 | L119: 4429 | M119: 4429 | N119: 4429 | O119: 53148
A120: 8403 | B120: Impuesto sobre automóviles nuevos | C120: 18863 | D120: 30237 | E120: 29550 | F120: 18610 | G120: 28502 | H120: 22623 | I120: 19915 | J120: 25520 | K120: 18403 | L120: 21926 | M120: 20165 | N120: 23119 | O120: 277433
A121: 8404 | B121: Fondo de compensación de repecos-intermedios | O121: 0
A122: 8405 | B122: Otros incentivos económicos | O122: 0
A123: 8500 | B123: Fondos distintos de aportaciones | C123: =SUM(C124:C125) -> 0 | D123: =SUM(D124:D125) -> 0 | E123: 0 | F123: 0 | G123: 0 | H123: 0 | I123: 0 | J123: 0 | K123: 0 | L123: 0 | M123: 0 | N123: 0 | O123: 0
A124: 8501 | B124: Fondo para entidades federativas y municipios productores de hidrocarburos | O124: 0
A125: 8502 | B125: Fondo minero | O125: 0
A126: 9000 | B126: TRANSFERENCIAS, ASIGNACIONES, SUBSIDIOS Y SUBVENCIONES Y PENSIONES Y JUBILACIONES | C126: =C127+C130+C131+C134+C135+C137+C138 -> 0 | D126: =D127+D130+D131+D134+D135+D137+D138 -> 0 | E126: 0 | F126: 0 | G126: 0 | H126: 0 | I126: 0 | J126: 0 | K126: 0 | L126: 0 | M126: 0 | N126: 0 | O126: 0
A127: 9100 | B127: Transferencias y asignaciones | C127: =SUM(C128:C129) -> 0 | D127: =SUM(D128:D129) -> 0 | E127: 0 | F127: 0 | G127: 0 | H127: 0 | I127: 0 | J127: 0 | K127: 0 | L127: 0 | M127: 0 | N127: 0 | O127: 0
A128: 9101 | B128: Transferencias y asignaciones (Con ingresos de libre disposición) | O128: 0
A129: 9101 | B129: Transferencias y asignaciones (Con ingresos etiquetados) | O129: 0
A130: 9200 | B130: Transferencias al resto del sector público (derogado) | O130: 0
A131: 9300 | B131: Subsidios y subvenciones | C131: =SUM(C132:C133) -> 0 | D131: =SUM(D132:D133) -> 0 | E131: 0 | F131: 0 | G131: 0 | H131: 0 | I131: 0 | J131: 0 | K131: 0 | L131: 0 | M131: 0 | N131: 0 | O131: 0
A132: 9301 | B132: Subsidios y subvenciones (Con ingresos de libre disposición) | O132: =SUM(C132:N132) -> 0
A133: 9301 | B133: Subsidios y subvenciones (Con ingresos etiquetados) | O133: 0
A134: 9400 | B134: Ayudas sociales (derogado) | O134: 0
A135: 9500 | B135: Pensiones y jubilaciones | C135: =SUM(C136) -> 0 | D135: =SUM(D136) -> 0 | E135: 0 | F135: 0 | G135: 0 | H135: 0 | I135: 0 | J135: 0 | K135: 0 | L135: 0 | M135: 0 | N135: 0 | O135: 0
A136: 9501 | B136: Pensiones y jubilaciones | O136: 0
A137: 9600 | B137: Transferencias a fideicomisos, mandatos y análogos (derogado) | O137: 0
A138: 9700 | B138: Transferencias del fondo mexicano del petróleo para la estabilización y el desarrollo | C138: =SUM(C139) -> 0 | D138: =SUM(D139) -> 0 | E138: 0 | F138: 0 | G138: 0 | H138: 0 | I138: 0 | J138: 0 | K138: 0 | L138: 0 | M138: 0 | N138: 0 | O138: 0
A139: 9701 | B139: Transferencias del fondo mexicano del petróleo para la estabilización y el desarrollo | O139: 0
A140: 0 | B140: INGRESOS DERIVADOS DE FINANCIAMIENTO | C140: =C141+C142+C143 -> 0 | D140: =D141+D142+D143 -> 0 | E140: 0 | F140: 0 | G140: 0 | H140: 0 | I140: 0 | J140: 0 | K140: 0 | L140: 0 | M140: 0 | N140: 0 | O140: 0
A141: 100 | B141: Endeudamiento interno | O141: 0
A142: 200 | B142: Endeudamiento externo | O142: 0
A143: 300 | B143: Financiamiento interno | C143: =SUM(C144) -> 0 | D143: =SUM(D144) -> 0 | E143: 0 | F143: 0 | G143: 0 | H143: 0 | I143: 0 | J143: 0 | K143: 0 | L143: 0 | M143: 0 | N143: 0 | O143: 0
A144: 301 | B144: Financiamiento interno | O144: 0
A145: ESTIMACIÓN DE INGRESOS | C145: =C2+C21+C27+C30+C60+C65+C79+C93+C126+C140 -> 4830049 | D145: =D2+D21+D27+D30+D60+D65+D79+D93+D126+D140 -> 3352680 | E145: 3231058 | F145: 2508683 | G145: 2666536 | H145: 3194441 | I145: 3144212 | J145: 2733266 | K145: 2574748 | L145: 2447762 | M145: 2096674 | N145: 2061169 | O145: 34841278

Sheet COG-M
A1: COG | B1: DESCRIPCIÓN | D1: ENERO | E1: FEBRERO | F1: MARZO | G1: ABRIL | H1: MAYO | I1: JUNIO | J1: JULIO | K1: AGOSTO | L1: SEPTIEMBRE | M1: OCTUBRE | N1: NOVIEMBRE | O1: DICIEMBRE | P1: TOTAL
A2: 1000 | B2: SERVICIOS PERSONALES | D2: =D3+D19+D39+D75+D96+D130+D137 -> 1146259 | E2: 1146259 | F2: 1146259 | G2: 1146259 | H2: 1146259 | I2: 1171259 | J2: 1586616 | K2: 1146259 | L2: 1146259 | M2: 1146259 | N2: 1146259 | O2: 2436447 | P2: 15510653
A3: 1100 | B3: REMUNERACIONES AL PERSONAL DE CARÁCTER PERMANENTE | D3: =SUM(D4:D18) -> 1052743 | E3: =SUM(E4:E18) -> 1052743 | F3: 1052743 | G3: 1052743 | H3: 1052743 | I3: 1052743 | J3: 1052743 | K3: 1052743 | L3: 1052743 | M3: 1052743 | N3: 1052743 | O3: 1052743 | P3: =SUM(P4:P18) -> 12632916
A4: 111 | B4: Dietas | C4: 11 | D4: =(SUMIF(Plantilla!$E$3:$E$4,C4,Plantilla!$H$3:$H$4))/12 -> 152802 | E4: =D4 -> 152802 | F4: =E4 -> 152802 | G4: 152802 | H4: 152802 | I4: 152802 | J4: 152802 | K4: 152802 | L4: 152802 | M4: 152802 | N4: 152802 | O4: 152802 | P4: =SUM(D4:O4) -> 1833624
C5: 15 | D5: =(SUMIF(Plantilla!$E$3:$E$4,C5,Plantilla!$H$3:$H$4))/12 -> 16978 | E5: =D5 -> 16978 | F5: 16978 | G5: 16978 | H5: 16978 | I5: 16978 | J5: 16978 | K5: 16978 | L5: 16978 | M5: 16978 | N5: 16978 | O5: 16978 | P5: 203736
C6: 16 | D6: =(SUMIF(Plantilla!$E$3:$E$4,C6,Plantilla!$H$3:$H$4))/12 -> 0 | E6: =D6 -> 0 | F6: 0 | G6: 0 | H6: 0 | I6: 0 | J6: 0 | K6: 0 | L6: 0 | M6: 0 | N6: 0 | O6: 0 | P6: 0
C7: 17 | D7: =(SUMIF(Plantilla!$E$3:$E$4,C7,Plantilla!$H$3:$H$4))/12 -> 0 | E7: =D7 -> 0 | F7: 0 | G7: 0 | H7: 0 | I7: 0 | J7: 0 | K7: 0 | L7: 0 | M7: 0 | N7: 0 | O7: 0 | P7: 0
A8: 112 | B8: Haberes | P8: 0
A9: 113 | B9: Sueldos base al personal permanente | C9: 11 | D9: =(SUMIF(Plantilla!$E$5:$E$428,'COG-M'!C9,Plantilla!$H$5:$H$428))/12 -> 16200 | E9: =D9 -> 16200 | F9: =E9 -> 16200 | G9: 16200 | H9: 16200 | I9: 16200 | J9: 16200 | K9: 16200 | L9: 16200 | M9: 16200 | N9: 16200 | O9: 16200 | P9: 194400
C10: 14 | D10: =(SUMIF(Plantilla!$E$5:$E$428,'COG-M'!C10,Plantilla!$H$5:$H$428))/12 -> 0 | E10: =D10 -> 0 | F10: 0 | G10: 0 | H10: 0 | I10: 0 | J10: 0 | K10: 0 | L10: 0 | M10: 0 | N10: 0 | O10: 0 | P10: 0
C11: 15 | D11: =(SUMIF(Plantilla!$E$5:$E$428,'COG-M'!C11,Plantilla!$H$5:$H$428))/12 -> 658529 | E11: =D11 -> 658529 | F11: 658529 | G11: 658529 | H11: 658529 | I11: 658529 | J11: 658529 | K11: 658529 | L11: 658529 | M11: 658529 | N11: 658529 | O11: 658529 | P11: 7902348
C12: 16 | D12: =(SUMIF(Plantilla!$E$5:$E$428,'COG-M'!C12,Plantilla!$H$5:$H$428))/12 -> 0 | E12: =D12 -> 0 | F12: 0 | G12: 0 | H12: 0 | I12: 0 | J12: 0 | K12: 0 | L12: 0 | M12: 0 | N12: 0 | O12: 0 | P12: 0
C13: 17 | D13: =(SUMIF(Plantilla!$E$5:$E$428,'COG-M'!C13,Plantilla!$H$5:$H$428))/12 -> 0 | E13: =D13 -> 0 | F13: 0 | G13: 0 | H13: 0 | I13: 0 | J13: 0 | K13: 0 | L13: 0 | M13: 0 | N13: 0 | O13: 0 | P13: 0
C14: 25 | D14: =(SUMIF(Plantilla!$E$5:$E$428,'COG-M'!C14,Plantilla!$H$5:$H$428))/12 -> 208234 | E14: =D14 -> 208234 | F14: 208234 | G14: 208234 | H14: 208234 | I14: 208234 | J14: 208234 | K14: 208234 | L14: 208234 | M14: 208234 | N14: 208234 | O14: 208234 | P14: 2498808
A15: 114 | B15: Remuneraciones por adscripción laboral en el extranjero | C15: 11 | P15: 0
C16: 15 | P16: 0
C17: 16 | P17: 0
C18: 17 | P18: 0
A19: 1200 | B19: REMUNERACIONES AL PERSONAL DE CARÁCTER TRANSITORIO | D19: =SUM(D20:D38) -> 76716 | E19: =SUM(E20:E38) -> 76716 | F19: 76716 | G19: 76716 | H19: 76716 | I19: 76716 | J19: 76716 | K19: 76716 | L19: 76716 | M19: 76716 | N19: 76716 | O19: 76724 | P19: =SUM(P20:P38) -> 920600
A20: 121 | B20: Honorarios asimilables a salarios | C20: 11 | P20: =SUM(D20:O20) -> 0
C21: 14 | P21: =SUM(D21:O21) -> 0
C22: 15 | P22: 0
C23: 16 | P23: 0
C24: 17 | P24: 0
A25: 122 | B25: Sueldos base al personal eventual | C25: 11 | D25: 76716 | E25: 76716 | F25: 76716 | G25: 76716 | H25: 76716 | I25: 76716 | J25: 76716 | K25: 76716 | L25: 76716 | M25: 76716 | N25: 76716 | O25: 76724 | P25: 920600
C26: 14 | P26: 0
C27: 15 | P27: 0
C28: 16 | P28: 0
C29: 17 | P29: 0
C30: 25 | P30: 0
C31: 26 | P31: 0
C32: 27 | P32: 0
A33: 123 | B33: Retribuciones por servicios de carácter social | C33: 11 | P33: 0
C34: 14 | P34: 0
C35: 15 | P35: 0
C36: 16 | P36: 0
C37: 17 | P37: 0
A38: 124 | B38: Retribución a los representantes de los trabajadores y de los patrones en la Junta de Conciliación y Arbitraje | P38: =SUM(D38:O38) -> 0
A39: 1300 | B39: REMUNERACIONES ADICIONALES Y ESPECIALES | D39: =SUM(D40:D74) -> 16800 | E39: =SUM(E40:E74) -> 16800 | F39: 16800 | G39: 16800 | H39: 16800 | I39: 16800 | J39: 457157 | K39: 16800 | L39: 16800 | M39: 16800 | N39: 16800 | O39: 1306980 | P39: 1932137
A40: 131 | B40: Primas por años de servicios efectivos prestados | C40: 11 | P40: =SUM(D40:O40) -> 0
C41: 14 | P41: 0
C42: 15 | P42: 0
C43: 16 | P43: 0
C44: 17 | P44: 0
A45: 132 | B45: Primas de vacaciones, dominical y gratificación de fin de año | C45: 11 | J45: 342302 | P45: 342302
C46: 14 | P46: 0
C47: 15 | J47: 98055 | O47: 1290180 | P47: 1388235
C48: 16 | P48: 0
C49: 17 | P49: 0
C50: 25 | P50: 0
A51: 133 | B51: Horas extraordinarias | C51: 11 | P51: 0
C52: 14 | P52: 0
C53: 15 | P53: 0
C54: 16 | P54: 0
C55: 17 | P55: 0
C56: 25 | P56: 0
A57: 134 | B57: Compensaciones | C57: 11 | P57: 0
C58: 14 | P58: 0
C59: 15 | D59: 10300 | E59: 10300 | F59: 10300 | G59: 10300 | H59: 10300 | I59: 10300 | J59: 10300 | K59: 10300 | L59: 10300 | M59: 10300 | N59: 10300 | O59: 10300 | P59: 123600
C60: 16 | P60: 0
C61: 17 | P61: 0
C62: 25 | D62: 6500 | E62: 6500 | F62: 6500 | G62: 6500 | H62: 6500 | I62: 6500 | J62: 6500 | K62: 6500 | L62: 6500 | M62: 6500 | N62: 6500 | O62: 6500 | P62: 78000
A63: 135 | B63: Sobrehaberes | P63: 0
A64: 136 | B64: Asignaciones de técnico, de mando, por comisión, de vuelo y de técnico especial | P64: 0
A65: 137 | B65: Honorarios especiales | C65: 11 | P65: 0
C66: 14 | P66: 0
C67: 15 | P67: 0
C68: 16 | P68: 0
C69: 17 | P69: 0
A70: 138 | B70: Participaciones por vigilancia en el cumplimiento de la leyes y custodia de valores | C70: 11 | P70: 0
C71: 14 | P71: 0
C72: 15 | P72: 0
C73: 16 | P73: 0
C74: 17 | P74: 0
A75: 1400 | B75: SEGURIDAD SOCIAL | D75: =SUM(D76:D95) -> 0 | E75: =SUM(E76:E95) -> 0 | F75: 0 | G75: 0 | H75: 0 | I75: 0 | J75: 0 | K75: 0 | L75: 0 | M75: 0 | N75: 0 | O75: 0 | P75: 0
A76: 141 | B76: Aportaciones de seguridad social | C76: 11 | P76: =SUM(D76:O76) -> 0
C77: 14 | P77: =SUM(D77:O77) -> 0
C78: 15 | P78: 0
C79: 16 | P79: 0
C80: 17 | P80: 0
A81: 142 | B81: Aportaciones a fondos de vivienda | C81: 11 | P81: 0
C82: 14 | P82: 0
C83: 15 | P83: 0
C84: 16 | P84: 0
C85: 17 | P85: 0
A86: 143 | B86: Aportaciones al sistema para el retiro | C86: 11 | P86: 0
C87: 14 | P87: 0
C88: 15 | P88: 0
C89: 16 | P89: 0
C90: 17 | P90: 0
A91: 144 | B91: Aportaciones para seguros | C91: 11 | P91: 0
C92: 14 | P92: 0
C93: 15 | P93: 0
C94: 16 | P94: 0
C95: 17 | P95: 0
A96: 1500 | B96: OTRAS PRESTACIONES SOCIALES Y ECONÓMICAS | D96: =SUM(D97:D129) -> 0 | E96: =SUM(E97:E129) -> 0 | F96: 0 | G96: 0 | H96: 0 | I96: 25000 | J96: 0 | K96: 0 | L96: 0 | M96: 0 | N96: 0 | O96: 0 | P96: 25000
A97: 151 | B97: Cuotas para el fondo de ahorro y fondo de trabajo | C97: 11 | P97: =SUM(D97:O97) -> 0
C98: 14 | P98: 0
C99: 15 | P99: 0
C100: 16 | P100: 0
C101: 17 | P101: 0
C102: 25 | P102: 0
A103: 152 | B103: Indemnizaciones | C103: 11 | P103: 0
C104: 14 | P104: 0
C105: 15 | I105: 25000 | P105: 25000
C106: 16 | P106: 0
C107: 17 | P107: 0
C108: 27 | P108: 0
A109: 153 | B109: Prestaciones y haberes de retiro | C109: 11 | P109: 0
C110: 14 | P110: 0
C111: 15 | P111: 0
C112: 16 | P112: 0
C113: 17 | P113: 0
A114: 154 | B114: Prestaciones contractuales | C114: 11 | P114: 0
C115: 14 | P115: 0
C116: 15 | P116: 0
C117: 16 | P117: 0
C118: 17 | P118: 0
C119: 25 | P119: 0
A120: 155 | B120: Apoyos a la capacitación de los servidores públicos | C120: 11 | P120: 0
C121: 14 | P121: 0
C122: 15 | P122: 0
C123: 16 | P123: 0
C124: 17 | P124: 0
A125: 159 | B125: Otras prestaciones sociales y económicas | C125: 11 | P125: 0
C126: 14 | P126: 0
C127: 15 | P127: 0
C128: 16 | P128: 0
C129: 17 | P129: 0
A130: 1600 | B130: PREVISIONES | D130: =SUM(D131:D136) -> 0 | E130: =SUM(E131:E136) -> 0 | F130: 0 | G130: 0 | H130: 0 | I130: 0 | J130: 0 | K130: 0 | L130: 0 | M130: 0 | N130: 0 | O130: 0 | P130: 0
A131: 161 | B131: Previsiones de carácter laboral, económica y de seguridad social | C131: 11 | P131: =SUM(D131:O131) -> 0
C132: 14 | P132: 0
C133: 15 | P133: 0
C134: 16 | P134: 0
C135: 17 | P135: 0
C136: 25 | P136: 0
A137: 1700 | B137: PAGO DE ESTÍMULOS A SERVIDORES PÚBLICOS | D137: =SUM(D138:D147) -> 0 | E137: =SUM(E138:E147) -> 0 | F137: 0 | G137: 0 | H137: 0 | I137: 0 | J137: 0 | K137: 0 | L137: 0 | M137: 0 | N137: 0 | O137: 0 | P137: 0
A138: 171 | B138: Estímulos | C138: 11 | P138: =SUM(D138:O138) -> 0
C139: 14 | P139: =SUM(D139:O139) -> 0
C140: 15 | P140: 0
C141: 16 | P141: 0
C142: 17 | P142: 0
A143: 172 | B143: Recompensas | C143: 11 | P143: 0
C144: 14 | P144: 0
C145: 15 | P145: 0
C146: 16 | P146: 0
C147: 17 | P147: 0
A148: 2000 | B148: MATERIALES Y SUMINISTROS | D148: =D149+D190+D207+D217+D290+D332+D344+D373+D395 -> 669980 | E148: 459601 | F148: 444701 | G148: 471035 | H148: 383600 | I148: 449439 | J148: 373278 | K148: 543335 | L148: 400575 | M148: 376554 | N148: 353646 | O148: 307121 | P148: 5232865
A149: 2100 | B149: MATERIALES DE ADMINISTRACIÓN, EMISIÓN DE DOCUMENTOS Y ARTÍCULOS OFICIALES | D149: =SUM(D150:D189) -> 186776 | E149: 44176 | F149: 67176 | G149: 65131 | H149: 44176 | I149: 119314 | J149: 41674 | K149: 97170 | L149: 96650 | M149: 41650 | N149: 64650 | O149: 57550 | P149: 926093
A150: 211 | B150: Materiales, útiles y equipos menores de oficina | C150: 11 | D150: 26600 | F150: 13000 | I150: 13000 | K150: 6500 | L150: 13000 | O150: 5900 | P150: =SUM(D150:O150) -> 78000
C151: 14 | P151: =SUM(D151:O151) -> 0
C152: 15 | P152: 0
C153: 16 | D153: 2500 | E153: 2500 | F153: 2500 | G153: 2500 | H153: 2500 | I153: 638 | K153: 15000 | P153: 28138
C154: 17 | P154: 0
A155: 212 | B155: Materiales y útiles de impresión y reproducción | C155: 11 | D155: 24000 | I155: 21000 | P155: 45000
C156: 14 | P156: 0
C157: 15 | K157: 10000 | L157: 12000 | N157: 13000 | P157: 35000
C158: 16 | P158: 0
C159: 17 | P159: 0
A160: 213 | B160: Material estadístico y geográfico | C160: 11 | P160: 0
C161: 14 | P161: 0
C162: 15 | P162: 0
C163: 16 | P163: 0
C164: 17 | P164: 0
A165: 214 | B165: Materiales, útiles y equipos menores de tecnologías de la información y comunicaciones | C165: 11 | D165: 10000 | I165: 8000 | P165: 18000
C166: 14 | P166: 0
C167: 15 | P167: 0
C168: 16 | P168: 0
C169: 17 | P169: 0
A170: 215 | B170: Material impreso e información digital | C170: 11 | D170: 25000 | G170: 10955 | I170: 25000 | L170: 20000 | P170: 80955
C171: 14 | P171: 0
C172: 15 | P172: 0
C173: 16 | P173: 0
C174: 17 | P174: 0
A175: 216 | B175: Material de limpieza | C175: 11 | D175: 10000 | F175: 10000 | I175: 10000 | L175: 10000 | O175: 10000 | P175: 50000
C176: 14 | P176: 0
C177: 15 | G177: 10000 | K177: 10000 | N177: 10000 | P177: 30000
C178: 16 | P178: 0
C179: 17 | P179: 0
A180: 217 | B180: Materiales y útiles de enseñanza | C180: 11 | D180: 31250 | E180: 31250 | F180: 31250 | G180: 31250 | H180: 31250 | I180: 31250 | J180: 31250 | K180: 31250 | L180: 31250 | M180: 31250 | N180: 31250 | O180: 31250 | P180: 375000
C181: 14 | P181: 0
C182: 15 | D182: 10426 | E182: 10426 | F182: 10426 | G182: 10426 | H182: 10426 | I182: 10426 | J182: 10424 | K182: 10420 | L182: 10400 | M182: 10400 | N182: 10400 | O182: 10400 | P182: 125000
C183: 16 | P183: 0
C184: 17 | P184: 0
A185: 218 | B185: Materiales para el registro e identificación de bienes y personas | C185: 11 | D185: 35000 | P185: 35000
C186: 14 | P186: 0
C187: 15 | D187: 12000 | K187: 14000 | P187: 26000
C188: 16 | P188: 0
C189: 17 | P189: 0
A190: 2200 | B190: ALIMENTOS Y UTENSILIOS | D190: =SUM(D191:D206) -> 41438 | E190: 31438 | F190: 31438 | G190: 31438 | H190: 41438 | I190: 31438 | J190: 31438 | K190: 39438 | L190: 31438 | M190: 31438 | N190: 31438 | O190: 31447 | P190: 405265
A191: 221 | B191: Productos alimenticios para personas | C191: 11 | D191: 14302 | E191: 14302 | F191: 14302 | G191: 14302 | H191: 14302 | I191: 14302 | J191: 14302 | K191: 14302 | L191: 14302 | M191: 14302 | N191: 14302 | O191: 14309 | P191: =SUM(D191:O191) -> 171631
C192: 14 | P192: =SUM(D192:O192) -> 0
C193: 15 | D193: 17136 | E193: 17136 | F193: 17136 | G193: 17136 | H193: 17136 | I193: 17136 | J193: 17136 | K193: 17136 | L193: 17136 | M193: 17136 | N193: 17136 | O193: 17138 | P193: 205634
C194: 16 | P194: 0
C195: 17 | P195: 0
C196: 25 | P196: 0
A197: 222 | B197: Productos alimenticios para animales | C197: 11 | P197: 0
C198: 14 | P198: 0
C199: 15 | P199: 0
C200: 16 | P200: 0
... 1888 more rows

Sheet BDI (hidden)
A1: No. ente | B1: =FU!K14 -> Tuxcueca
A2: región | B2: =FU!B12 -> Sureste
A3: población | B3: =FU!C12 -> 6316
A4: año | B4: =FU!Q18 -> 2020
A5: 100000 | B5: I | C5: 1000 | D5: 0 | E5: IMPUESTOS | F5: ='CRI-M'!O2 -> 4569402
A6: 110000 | B6: I | C6: 1100 | D6: 0 | E6: Impuestos sobre los ingresos | F6: ='CRI-M'!O3 -> 18400
A7: 110111 | B7: I | C7: 1101 | D7: 11 | E7: Impuestos sobre espectáculos públicos | F7: ='CRI-M'!O4 -> 18400
A8: 120000 | B8: I | C8: 1200 | D8: 0 | E8: Impuestos sobre el patrimonio | F8: ='CRI-M'!O5 -> 4517627
A9: 120111 | B9: I | C9: 1201 | D9: 11 | E9: Impuesto predial | F9: ='CRI-M'!O6 -> 2835931
A10: 120211 | B10: I | C10: 1202 | D10: 11 | E10: Impuestos sobre transmisiones patrimoniales | F10: ='CRI-M'!O7 -> 1681696
A11: 120311 | B11: I | C11: 1203 | D11: 11 | E11: Impuestos sobre negocios jurídicos | F11: ='CRI-M'!O8 -> 0
A12: 130000 | B12: I | C12: 1300 | D12: 0 | E12: Impuestos sobre la producción, el consumo y las transacciones | F12: ='CRI-M'!O9 -> 0
A13: 140000 | B13: I | C13: 1400 | D13: 0 | E13: Impuestos al comercio exterior | F13: ='CRI-M'!O10 -> 0
A14: 150000 | B14: I | C14: 1500 | D14: 0 | E14: Impuestos sobre nóminas y asimilables | F14: ='CRI-M'!O11 -> 0
A15: 160000 | B15: I | C15: 1600 | D15: 0 | E15: Impuestos ecológicos | F15: ='CRI-M'!O12 -> 0
A16: 170000 | B16: I | C16: 1700 | D16: 0 | E16: Accesorios de impuestos | F16: ='CRI-M'!O13 -> 26400
A17: 170111 | B17: I | C17: 1701 | D17: 11 | E17: Recargos | F17: ='CRI-M'!O14 -> 26400
A18: 170211 | B18: I | C18: 1702 | D18: 11 | E18: Actualizaciones | F18: ='CRI-M'!O15 -> 0
A19: 170311 | B19: I | C19: 1703 | D19: 11 | E19: Multas | F19: ='CRI-M'!O16 -> 0
A20: 170411 | B20: I | C20: 1704 | D20: 11 | E20: Gastos de ejecución | F20: ='CRI-M'!O17 -> 0
A21: 170911 | B21: I | C21: 1709 | D21: 11 | E21: Otros no especificados | F21: ='CRI-M'!O18 -> 0
A22: 180000 | B22: I | C22: 1800 | D22: 0 | E22: Otros impuestos | F22: ='CRI-M'!O19 -> 6975
A23: 180111 | B23: I | C23: 1801 | D23: 11 | E23: Otros impuestos | F23: ='CRI-M'!O20 -> 6975
A24: 200000 | B24: I | C24: 2000 | D24: 0 | E24: CUOTAS Y APORTACIONES DE SEGURIDAD SOCIAL | F24: ='CRI-M'!O21 -> 0
A25: 210000 | B25: I | C25: 2100 | D25: 0 | E25: Aportaciones para fondos de vivienda | F25: ='CRI-M'!O22 -> 0
A26: 220000 | B26: I | C26: 2200 | D26: 0 | E26: Cuotas para la seguridad social | F26: ='CRI-M'!O23 -> 0
A27: 230000 | B27: I | C27: 2300 | D27: 0 | E27: Cuotas de ahorro para el retiro | F27: ='CRI-M'!O24 -> 0
A28: 240000 | B28: I | C28: 2400 | D28: 0 | E28: Otras cuotas y aportaciones para la seguridad social | F28: ='CRI-M'!O25 -> 0
A29: 250000 | B29: I | C29: 2500 | D29: 0 | E29: Accesorios de cuotas y aportaciones de seguridad social | F29: ='CRI-M'!O26 -> 0
A30: 300000 | B30: I | C30: 3000 | D30: 0 | E30: CONTRIBUCIONES DE MEJORAS | F30: ='CRI-M'!O27 -> 0
A31: 310000 | B31: I | C31: 3100 | D31: 0 | E31: Contribuciones de mejoras por obras públicas | F31: ='CRI-M'!O28 -> 0
A32: 310111 | B32: I | C32: 3101 | D32: 11 | E32: Contribuciones de mejoras por obras públicas | F32: ='CRI-M'!O29 -> 0
A33: 400000 | B33: I | C33: 4000 | D33: 0 | E33: DERECHOS | F33: ='CRI-M'!O30 -> 2389116
A34: 410000 | B34: I | C34: 4100 | D34: 0 | E34: Derechos por el uso, goce, aprovechamiento o explotación de bienes de dominio público | F34: ='CRI-M'!O31 -> 158471
A35: 410111 | B35: I | C35: 4101 | D35: 11 | E35: Derechos por el uso del piso | F35: ='CRI-M'!O32 -> 125500
A36: 410211 | B36: I | C36: 4102 | D36: 11 | E36: Derechos por el uso de los estacionamientos | F36: ='CRI-M'!O33 -> 0
A37: 410311 | B37: I | C37: 4103 | D37: 11 | E37: Derechos de uso de cementerios y panteones municipales | F37: ='CRI-M'!O34 -> 32971
A38: 410411 | B38: I | C38: 4104 | D38: 11 | E38: Derechos de concesiones y demás inmuebles de propiedad municipal | F38: ='CRI-M'!O35 -> 0
A39: 420000 | B39: I | C39: 4200 | D39: 0 | E39: Derechos a los hidrocarburos (Derogado) | F39: ='CRI-M'!O36 -> 0
A40: 430000 | B40: I | C40: 4300 | D40: 0 | E40: Derechos por prestación de servicios | F40: ='CRI-M'!O37 -> 2108527
A41: 430111 | B41: I | C41: 4301 | D41: 11 | E41: Derechos de licencias y permisos de giros | F41: ='CRI-M'!O38 -> 149838
A42: 430211 | B42: I | C42: 4302 | D42: 11 | E42: Derechos de licencias y permisos de anuncios | F42: ='CRI-M'!O39 -> 46042
A43: 430311 | B43: I | C43: 4303 | D43: 11 | E43: Derechos de licencias de construcción, reconstrucción, reparación o demolición de obras | F43: ='CRI-M'!O40 -> 18547
A44: 430411 | B44: I | C44: 4304 | D44: 11 | E44: Derechos de regularizaciones de los registros de obra | F44: ='CRI-M'!O41 -> 0
A45: 430511 | B45: I | C45: 4305 | D45: 11 | E45: Derechos de alineamiento, designación de número oficial e inspección | F45: ='CRI-M'!O42 -> 59644
A46: 430611 | B46: I | C46: 4306 | D46: 11 | E46: Derechos de licencias de cambio de régimen de propiedad y urbanización | F46: ='CRI-M'!O43 -> 500
A47: 430711 | B47: I | C47: 4307 | D47: 11 | E47: Derechos de servicios de obra | F47: ='CRI-M'!O44 -> 0
A48: 430811 | B48: I | C48: 4308 | D48: 11 | E48: Derechos de servicios de sanidad | F48: ='CRI-M'!O45 -> 0
A49: 430911 | B49: I | C49: 4309 | D49: 11 | E49: Derechos de servicio de limpieza, recolección, traslado, tratamiento y disposición final de residuos | F49: ='CRI-M'!O46 -> 21600
A50: 431011 | B50: I | C50: 4310 | D50: 11 | E50: Derechos de agua potable, drenaje, alcantarillado, tratamiento y disposición final de aguas residuales | F50: ='CRI-M'!O47 -> 1584184
A51: 431111 | B51: I | C51: 4311 | D51: 11 | E51: Derechos del rastro | F51: ='CRI-M'!O48 -> 2300
A52: 431211 | B52: I | C52: 4312 | D52: 11 | E52: Derechos del registro civil | F52: ='CRI-M'!O49 -> 134481
A53: 431311 | B53: I | C53: 4313 | D53: 11 | E53: Derechos de las certificaciones | F53: ='CRI-M'!O50 -> 75016
A54: 431411 | B54: I | C54: 4314 | D54: 11 | E54: Derechos de los servicios de catastro | F54: ='CRI-M'!O51 -> 16375
A55: 440000 | B55: I | C55: 4400 | D55: 0 | E55: Otros derechos | F55: ='CRI-M'!O52 -> 81061
A56: 440111 | B56: I | C56: 4401 | D56: 11 | E56: Otros derechos | F56: ='CRI-M'!O53 -> 81061
A57: 450000 | B57: I | C57: 4500 | D57: 0 | E57: Accesorios de derechos | F57: ='CRI-M'!O54 -> 41057
A58: 450111 | B58: I | C58: 4501 | D58: 11 | E58: Recargos | F58: ='CRI-M'!O55 -> 41057
A59: 450211 | B59: I | C59: 4502 | D59: 11 | E59: Actualizaciones | F59: ='CRI-M'!O56 -> 0
A60: 450311 | B60: I | C60: 4503 | D60: 11 | E60: Multas | F60: ='CRI-M'!O57 -> 0
A61: 450411 | B61: I | C61: 4504 | D61: 11 | E61: Gastos de ejecución | F61: ='CRI-M'!O58 -> 0
A62: 450911 | B62: I | C62: 4509 | D62: 11 | E62: Otros no especificados | F62: ='CRI-M'!O59 -> 0
A63: 500000 | B63: I | C63: 5000 | D63: 0 | E63: PRODUCTOS | F63: ='CRI-M'!O60 -> 128220
A64: 510000 | B64: I | C64: 5100 | D64: 0 | E64: Productos | F64: ='CRI-M'!O61 -> 128220
A65: 510111 | B65: I | C65: 5101 | D65: 11 | E65: Uso, goce, aprovechamiento o explotación de bienes de dominio privado | F65: ='CRI-M'!O62 -> 0
A66: 510211 | B66: I | C66: 5102 | D66: 11 | E66: Productos diversos | F66: ='CRI-M'!O63 -> 128220
A67: 520000 | B67: I | C67: 5200 | D67: 0 | E67: Productos de capital (Derogado) | F67: ='CRI-M'!O64 -> 0
A68: 600000 | B68: I | C68: 6000 | D68: 0 | E68: APROVECHAMIENTOS | F68: ='CRI-M'!O65 -> 0
A69: 610000 | B69: I | C69: 6100 | D69: 0 | E69: Aprovechamientos | F69: ='CRI-M'!O66 -> 0
A70: 610111 | B70: I | C70: 6101 | D70: 11 | E70: Aprovechamientos de las sanciones, multas, honorarios y donativos | F70: ='CRI-M'!O67 -> 0
A71: 610211 | B71: I | C71: 6102 | D71: 11 | E71: Aprovechamientos de las indemnizaciones a favor del municipio | F71: ='CRI-M'!O68 -> 0
A72: 610311 | B72: I | C72: 6103 | D72: 11 | E72: Otros aprovechamientos | F72: ='CRI-M'!O69 -> 0
A73: 620000 | B73: I | C73: 6200 | D73: 0 | E73: Aprovechamientos patrimoniales | F73: ='CRI-M'!O70 -> 0
A74: 620111 | B74: I | C74: 6201 | D74: 11 | E74: Aprovechamientos por el uso o enajenación de bienes | F74: ='CRI-M'!O71 -> 0
A75: 620211 | B75: I | C75: 6202 | D75: 11 | E75: Aprovechamientos por recuperación de capital o patrimonio invertido | F75: ='CRI-M'!O72 -> 0
A76: 630000 | B76: I | C76: 6300 | D76: 0 | E76: Accesorios de aprovechamientos | F76: ='CRI-M'!O73 -> 0
A77: 630111 | B77: I | C77: 6301 | D77: 11 | E77: Recargos | F77: ='CRI-M'!O74 -> 0
A78: 630211 | B78: I | C78: 6302 | D78: 11 | E78: Actualizaciones | F78: ='CRI-M'!O75 -> 0
A79: 630311 | B79: I | C79: 6303 | D79: 11 | E79: Multas | F79: ='CRI-M'!O76 -> 0
A80: 630411 | B80: I | C80: 6304 | D80: 11 | E80: Gastos de ejecución | F80: ='CRI-M'!O77 -> 0
A81: 630911 | B81: I | C81: 6309 | D81: 11 | E81: Otros no especificados | F81: ='CRI-M'!O78 -> 0
A82: 700000 | B82: I | C82: 7000 | D82: 0 | E82: INGRESOS POR VENTAS DE BIENES, PRESTACIÓN DE SERVICIOS Y OTROS INGRESOS | F82: ='CRI-M'!O79 -> 0
A83: 710000 | B83: I | C83: 7100 | D83: 0 | E83: Ingresos por venta de bienes y prestación de servicios de instituciones públicas de seguridad social | F83: ='CRI-M'!O80 -> 0
A84: 710114 | B84: I | C84: 7101 | D84: 14 | E84: Ingresos por venta de bienes y prestación de servicios de instituciones públicas de seguridad social | F84: ='CRI-M'!O81 -> 0
A85: 720000 | B85: I | C85: 7200 | D85: 0 | E85: Ingresos por venta de bienes y prestación de servicios de empresas productivas del estado | F85: ='CRI-M'!O82 -> 0
A86: 730000 | B86: I | C86: 7300 | D86: 0 | E86: Ingresos por venta de bienes y prestación de servicios de entidades paraestatales y fideicomisos no empresariales y no financieros | F86: ='CRI-M'!O83 -> 0
A87: 730114 | B87: I | C87: 7301 | D87: 14 | E87: Ingresos por venta de bienes y prestación de servicios de entidades paraestatales y fideicomisos no empresariales y no financieros | F87: ='CRI-M'!O84 -> 0
A88: 740000 | B88: I | C88: 7400 | D88: 0 | E88: Ingresos por venta de bienes y prestación de servicios de entidades paraestatales empresariales no financieras con participación estatal mayoritaria | F88: ='CRI-M'!O85 -> 0
A89: 750000 | B89: I | C89: 7500 | D89: 0 | E89: Ingresos por venta de bienes y prestación de servicios de entidades paraestatales empresariales financieras monetarias con participación estatal mayoritaria | F89: ='CRI-M'!O86 -> 0
A90: 760000 | B90: I | C90: 7600 | D90: 0 | E90: Ingresos por venta de bienes y prestación de servicios de entidades paraestatales empresariales financieras no monetarias con participación estatal mayoritaria | F90: ='CRI-M'!O87 -> 0
A91: 770000 | B91: I | C91: 7700 | D91: 0 | E91: Ingresos por venta de bienes y prestación de servicios de fideicomisos financieros públicos con participación estatal mayoritaria | F91: ='CRI-M'!O88 -> 0
A92: 770114 | B92: I | C92: 7701 | D92: 14 | E92: Ingresos por venta de bienes y prestación de servicios de fideicomisos financieros públicos con participación estatal mayoritaria | F92: ='CRI-M'!O89 -> 0
A93: 780000 | B93: I | C93: 7800 | D93: 0 | E93: Ingresos por venta de bienes y prestación de servicios de los poderes legislativo y judicial, y de los órganos autónomos | F93: ='CRI-M'!O90 -> 0
A94: 790000 | B94: I | C94: 7900 | D94: 0 | E94: Otros ingresos | F94: ='CRI-M'!O91 -> 0
A95: 790114 | B95: I | C95: 7901 | D95: 14 | E95: Otros ingresos | F95: ='CRI-M'!O92 -> 0
A96: 800000 | B96: I | C96: 8000 | D96: 0 | E96: PARTICIPACIONES, APORTACIONES, CONVENIOS, INCENTIVOS DERIVADOS DE LA COLABORACIÓN FISCAL Y FONDOS DISTINTOS DE LAS APORTACIONES | F96: ='CRI-M'!O93 -> 27754540
A97: 810000 | B97: I | C97: 8100 | D97: 0 | E97: Participaciones | F97: ='CRI-M'!O94 -> 19715077
A98: 810115 | B98: I | C98: 8101 | D98: 15 | E98: Fondo general de participaciones (federal) | F98: ='CRI-M'!O95 -> 14079144
A99: 810215 | B99: I | C99: 8102 | D99: 15 | E99: Fondo de fomento municipal (federal) | F99: ='CRI-M'!O96 -> 3171773
A100: 810315 | B100: I | C100: 8103 | D100: 15 | E100: Fondo de fiscalización y recaudación (federal) | F100: ='CRI-M'!O97 -> 312076
A101: 810415 | B101: I | C101: 8104 | D101: 15 | E101: Fondo de compensación (federal) | F101: ='CRI-M'!O98 -> 56604
A102: 810515 | B102: I | C102: 8105 | D102: 15 | E102: Fondo de extracción de hidrocarburos (federal) | F102: ='CRI-M'!O99 -> 0
A103: 810615 | B103: I | C103: 8106 | D103: 15 | E103: Impuesto especial sobre producción y servicios (federal) | F103: ='CRI-M'!O100 -> 401315
A104: 810715 | B104: I | C104: 8107 | D104: 15 | E104: 0.136% de la recaudación federal participable (federal) | F104: ='CRI-M'!O101 -> 0
A105: 810815 | B105: I | C105: 8108 | D105: 15 | E105: 3.17% sobre extracción de petróleo (federal) | F105: ='CRI-M'!O102 -> 0
A106: 810915 | B106: I | C106: 8109 | D106: 15 | E106: Gasolinas y diésel (federal) | F106: ='CRI-M'!O103 -> 966994
A107: 811015 | B107: I | C107: 8110 | D107: 15 | E107: Fondo del impuesto sobre la renta (federal) | F107: ='CRI-M'!O104 -> 699033
A108: 811115 | B108: I | C108: 8111 | D108: 15 | E108: Fondo de estabilización de los ingresos de las entidades federativas (federal) | F108: ='CRI-M'!O105 -> 0
A109: 811216 | B109: I | C109: 8112 | D109: 16 | E109: Participaciones del estado | F109: ='CRI-M'!O106 -> 28138
A110: 820000 | B110: I | C110: 8200 | D110: 0 | E110: Aportaciones | F110: ='CRI-M'!O107 -> 7277820
A111: 820125 | B111: I | C111: 8201 | D111: 25 | E111: Fondo de aportaciones para la infraestructura social municipal | F111: ='CRI-M'!O108 -> 2994303
A112: 820225 | B112: I | C112: 8202 | D112: 25 | E112: Fondo de aportaciones para el fortalecimiento municipal | F112: ='CRI-M'!O109 -> 4283517
A113: 830000 | B113: I | C113: 8300 | D113: 0 | E113: Convenios | F113: ='CRI-M'!O110 -> 430917
A114: 830125 | B114: I | C114: 8301 | D114: 25 | E114: Convenios de protección social en salud | F114: ='CRI-M'!O111 -> 0
A115: 830225 | B115: I | C115: 8302 | D115: 25 | E115: Convenios de descentralizados | F115: ='CRI-M'!O112 -> 0
A116: 830325 | B116: I | C116: 8303 | D116: 25 | E116: Convenio de reasignación | F116: ='CRI-M'!O113 -> 0
A117: 830417 | B117: I | C117: 8304 | D117: 17 | E117: Otros convenios y subsidios (Con ingresos de libre disposición) | F117: ='CRI-M'!O114 -> 430917
A118: 830425 | B118: I | C118: 8304 | D118: 25 | E118: Otros convenios y subsidios (Con ingresos etiquetados federales) | F118: ='CRI-M'!O115 -> 0
A119: 830426 | B119: I | C119: 8304 | D119: 26 | E119: Otros convenios y subsidios (Con ingresos etiquetados estatales) | F119: ='CRI-M'!O116 -> 0
A120: 840000 | B120: I | C120: 8400 | D120: 0 | E120: Incentivos derivados de la colaboración fiscal | F120: ='CRI-M'!O117 -> 330726
A121: 840117 | B121: I | C121: 8401 | D121: 17 | E121: Tenencia o uso de vehículos | F121: ='CRI-M'!O118 -> 145
A122: 840217 | B122: I | C122: 8402 | D122: 17 | E122: Fondo de compensación ISAN | F122: ='CRI-M'!O119 -> 53148
A123: 840317 | B123: I | C123: 8403 | D123: 17 | E123: Impuesto sobre automóviles nuevos | F123: ='CRI-M'!O120 -> 277433
A124: 840417 | B124: I | C124: 8404 | D124: 17 | E124: Fondo de compensación de repecos-intermedios | F124: ='CRI-M'!O121 -> 0
A125: 840517 | B125: I | C125: 8405 | D125: 17 | E125: Otros incentivos económicos | F125: ='CRI-M'!O122 -> 0
A126: 850000 | B126: I | C126: 8500 | D126: 0 | E126: Fondos distintos de aportaciones | F126: ='CRI-M'!O123 -> 0
A127: 850127 | B127: I | C127: 8501 | D127: 27 | E127: Fondo para entidades federativas y municipios productores de hidrocarburos | F127: ='CRI-M'!O124 -> 0
A128: 850227 | B128: I | C128: 8502 | D128: 27 | E128: Fondo minero | F128: ='CRI-M'!O125 -> 0
A129: 900000 | B129: I | C129: 9000 | D129: 0 | E129: TRANSFERENCIAS, ASIGNACIONES, SUBSIDIOS Y SUBVENCIONES Y PENSIONES Y JUBILACIONES | F129: ='CRI-M'!O126 -> 0
A130: 910000 | B130: I | C130: 9100 | D130: 0 | E130: Transferencias y asignaciones | F130: ='CRI-M'!O127 -> 0
A131: 910111 | B131: I | C131: 9101 | D131: 11 | E131: Transferencias y asignaciones (Con ingresos de libre disposición) | F131: ='CRI-M'!O128 -> 0
A132: 910127 | B132: I | C132: 9101 | D132: 27 | E132: Transferencias y asignaciones (Con ingresos etiquetados) | F132: ='CRI-M'!O129 -> 0
A133: 920000 | B133: I | C133: 9200 | D133: 0 | E133: Transferencias al resto del sector público (derogado) | F133: ='CRI-M'!O130 -> 0
A134: 930000 | B134: I | C134: 9300 | D134: 0 | E134: Subsidios y subvenciones | F134: ='CRI-M'!O131 -> 0
A135: 930111 | B135: I | C135: 9301 | D135: 11 | E135: Subsidios y subvenciones (Con ingresos de libre disposición) | F135: ='CRI-M'!O132 -> 0
A136: 930127 | B136: I | C136: 9301 | D136: 27 | E136: Subsidios y subvenciones (Con ingresos etiquetados) | F136: ='CRI-M'!O133 -> 0
A137: 940000 | B137: I | C137: 9400 | D137: 0 | E137: Ayudas sociales (derogado) | F137: ='CRI-M'!O134 -> 0
A138: 950000 | B138: I | C138: 9500 | D138: 0 | E138: Pensiones y jubilaciones | F138: ='CRI-M'!O135 -> 0
A139: 950111 | B139: I | C139: 9501 | D139: 11 | E139: Pensiones y jubilaciones | F139: ='CRI-M'!O136 -> 0
A140: 960000 | B140: I | C140: 9600 | D140: 0 | E140: Transferencias a fideicomisos, mandatos y análogos (derogado) | F140: ='CRI-M'!O137 -> 0
A141: 970000 | B141: I | C141: 9700 | D141: 0 | E141: Transferencias del fondo mexicano del petróleo para la estabilización y el desarrollo | F141: ='CRI-M'!O138 -> 0
A142: 970111 | B142: I | C142: 9701 | D142: 11 | E142: Transferencias del fondo mexicano del petróleo para la estabilización y el desarrollo | F142: ='CRI-M'!O139 -> 0
A143: 0 | B143: I | C143: 0 | D143: 0 | E143: INGRESOS DERIVADOS DE FINANCIAMIENTO | F143: ='CRI-M'!O140 -> 0
A144: 10000 | B144: I | C144: 100 | D144: 0 | E144: Endeudamiento interno | F144: ='CRI-M'!O141 -> 0
A145: 20000 | B145: I | C145: 200 | D145: 0 | E145: Endeudamiento externo | F145: ='CRI-M'!O142 -> 0
A146: 30000 | B146: I | C146: 300 | D146: 0 | E146: Financiamiento interno | F146: ='CRI-M'!O143 -> 0
A147: 30112 | B147: I | C147: 301 | D147: 12 | E147: Financiamiento interno | F147: ='CRI-M'!O144 -> 0
B148: I | E148: ESTIMACIÓN DE INGRESOS | F148: ='CRI-M'!O145 -> 34841278
A149: 100000 | B149: E | C149: 1000 | D149: 0 | E149: SERVICIOS PERSONALES | F149: ='COG-M'!P2 -> 15510653
A150: 110000 | B150: E | C150: 1100 | D150: 0 | E150: REMUNERACIONES AL PERSONAL DE CARÁCTER PERMANENTE | F150: ='COG-M'!P3 -> 12632916
A151: 111111 | B151: E | C151: 111 | D151: 11 | E151: Dietas | F151: ='COG-M'!P4 -> 1833624
A152: 111115 | B152: E | C152: 111 | D152: 15 | F152: ='COG-M'!P5 -> 203736
A153: 111116 | B153: E | C153: 111 | D153: 16 | F153: ='COG-M'!P6 -> 0
A154: 111117 | B154: E | C154: 111 | D154: 17 | F154: ='COG-M'!P7 -> 0
A155: 111200 | B155: E | C155: 112 | D155: 0 | E155: Haberes | F155: ='COG-M'!P8 -> 0
A156: 111311 | B156: E | C156: 113 | D156: 11 | E156: Sueldos base al personal permanente | F156: ='COG-M'!P9 -> 194400
A157: 111314 | B157: E | C157: 113 | D157: 14 | F157: ='COG-M'!P10 -> 0
A158: 111315 | B158: E | C158: 113 | D158: 15 | F158: ='COG-M'!P11 -> 7902348
A159: 111316 | B159: E | C159: 113 | D159: 16 | F159: ='COG-M'!P12 -> 0
A160: 111317 | B160: E | C160: 113 | D160: 17 | F160: ='COG-M'!P13 -> 0
A161: 111325 | B161: E | C161: 113 | D161: 25 | F161: ='COG-M'!P14 -> 2498808
A162: 111411 | B162: E | C162: 114 | D162: 11 | E162: Remuneraciones por adscripción laboral en el extranjero | F162: ='COG-M'!P15 -> 0
A163: 111415 | B163: E | C163: 114 | D163: 15 | F163: ='COG-M'!P16 -> 0
A164: 111416 | B164: E | C164: 114 | D164: 16 | F164: ='COG-M'!P17 -> 0
A165: 111417 | B165: E | C165: 114 | D165: 17 | F165: ='COG-M'!P18 -> 0
A166: 120000 | B166: E | C166: 1200 | D166: 0 | E166: REMUNERACIONES AL PERSONAL DE CARÁCTER TRANSITORIO | F166: ='COG-M'!P19 -> 920600
A167: 112111 | B167: E | C167: 121 | D167: 11 | E167: Honorarios asimilables a salarios | F167: ='COG-M'!P20 -> 0
A168: 112114 | B168: E | C168: 121 | D168: 14 | F168: ='COG-M'!P21 -> 0
A169: 112115 | B169: E | C169: 121 | D169: 15 | F169: ='COG-M'!P22 -> 0
A170: 112116 | B170: E | C170: 121 | D170: 16 | F170: ='COG-M'!P23 -> 0
A171: 112117 | B171: E | C171: 121 | D171: 17 | F171: ='COG-M'!P24 -> 0
A172: 112211 | B172: E | C172: 122 | D172: 11 | E172: Sueldos base al personal eventual | F172: ='COG-M'!P25 -> 920600
A173: 112214 | B173: E | C173: 122 | D173: 14 | F173: ='COG-M'!P26 -> 0
A174: 112215 | B174: E | C174: 122 | D174: 15 | F174: ='COG-M'!P27 -> 0
A175: 112216 | B175: E | C175: 122 | D175: 16 | F175: ='COG-M'!P28 -> 0
A176: 112217 | B176: E | C176: 122 | D176: 17 | F176: ='COG-M'!P29 -> 0
A177: 112225 | B177: E | C177: 122 | D177: 25 | F177: ='COG-M'!P30 -> 0
A178: 112226 | B178: E | C178: 122 | D178: 26 | F178: ='COG-M'!P31 -> 0
A179: 112227 | B179: E | C179: 122 | D179: 27 | F179: ='COG-M'!P32 -> 0
A180: 112311 | B180: E | C180: 123 | D180: 11 | E180: Retribuciones por servicios de carácter social | F180: ='COG-M'!P33 -> 0
A181: 112314 | B181: E | C181: 123 | D181: 14 | F181: ='COG-M'!P34 -> 0
A182: 112315 | B182: E | C182: 123 | D182: 15 | F182: ='COG-M'!P35 -> 0
A183: 112316 | B183: E | C183: 123 | D183: 16 | F183: ='COG-M'!P36 -> 0
A184: 112317 | B184: E | C184: 123 | D184: 17 | F184: ='COG-M'!P37 -> 0
A185: 112400 | B185: E | C185: 124 | D185: 0 | E185: Retribución a los representantes de los trabajadores y de los patrones en la Junta de Conciliación y Arbitraje | F185: ='COG-M'!P38 -> 0
A186: 130000 | B186: E | C186: 1300 | D186: 0 | E186: REMUNERACIONES ADICIONALES Y ESPECIALES | F186: ='COG-M'!P39 -> 1932137
A187: 113111 | B187: E | C187: 131 | D187: 11 | E187: Primas por años de servicios efectivos prestados | F187: ='COG-M'!P40 -> 0
A188: 113114 | B188: E | C188: 131 | D188: 14 | F188: ='COG-M'!P41 -> 0
A189: 113115 | B189: E | C189: 131 | D189: 15 | F189: ='COG-M'!P42 -> 0
A190: 113116 | B190: E | C190: 131 | D190: 16 | F190: ='COG-M'!P43 -> 0
A191: 113117 | B191: E | C191: 131 | D191: 17 | F191: ='COG-M'!P44 -> 0
A192: 113211 | B192: E | C192: 132 | D192: 11 | E192: Primas de vacaciones, dominical y gratificación de fin de año | F192: ='COG-M'!P45 -> 342302
A193: 113214 | B193: E | C193: 132 | D193: 14 | F193: ='COG-M'!P46 -> 0
A194: 113215 | B194: E | C194: 132 | D194: 15 | F194: ='COG-M'!P47 -> 1388235
A195: 113216 | B195: E | C195: 132 | D195: 16 | F195: ='COG-M'!P48 -> 0
A196: 113217 | B196: E | C196: 132 | D196: 17 | F196: ='COG-M'!P49 -> 0
A197: 113225 | B197: E | C197: 132 | D197: 25 | F197: ='COG-M'!P50 -> 0
A198: 113311 | B198: E | C198: 133 | D198: 11 | E198: Horas extraordinarias | F198: ='COG-M'!P51 -> 0
A199: 113314 | B199: E | C199: 133 | D199: 14 | F199: ='COG-M'!P52 -> 0
A200: 113315 | B200: E | C200: 133 | D200: 15 | F200: ='COG-M'!P53 -> 0
... 2179 more rows

Sheet CRI-RYP
B1: Resultado 2017 | C1: Resultado 2018 | D1: Resultado 2019 | E1: Estimación 2020 | F1: Proyección 2021 | G1: Proyección 2022 | H1: Proyección 2023
A2: INGRESOS DE LIBRE DISPOSCIÓN
A3: Impuestos | C3: 3585834 | D3: 4579264 | E3: ='CRI-DE'!F2 -> 4569402 | F3: 4797872
A4: Cuotas y aportaciones de seguridad social | E4: ='CRI-DE'!F21 -> 0
A5: Contribuciones de mejoras | E5: ='CRI-DE'!F27 -> 0
A6: Derechos | C6: 1986797 | D6: 2216764 | E6: ='CRI-DE'!F30 -> 2389116 | F6: 2508574
A7: Productos | C7: 125460 | D7: 115000 | E7: ='CRI-DE'!F60 -> 128220 | F7: 134631
A8: Aprovechamientos | C8: 18360 | D8: 0 | E8: ='CRI-DE'!F65 -> 0
A9: Ingresos por venta de bienes y prestación de servicios | E9: ='CRI-DE'!F79 -> 0
A10: Participaciones | C10: 16889108 | D10: 18512263 | E10: ='CRI-DE'!F94 -> 19715077 | F10: 20700831
A11: Incentivos derivados de la colaboración fiscal | E11: ='CRI-DE'!F115 -> 330726 | F11: 347262
A12: Transferencias y asignaciones | E12: ='CRI-DE'!D124 -> 0
A13: Convenios | E13: ='CRI-DE'!D110 -> 430917 | F13: 452463
A14: Otros ingresos de libre disposición | E14: 0
A15: Total de ingresos de libre disposición | B15: =SUM(B3:B14) -> 0 | C15: =SUM(C3:C14) -> 22605559 | D15: 25423291 | E15: 27563458 | F15: 28941633 | G15: 0 | H15: 0
A16: TRANSFERENCIAS FEDERALES ETIQUETADAS
A17: Aportaciones | C17: 4885673 | D17: 7277092 | E17: ='CRI-DE'!E107 -> 7277820 | F17: 7641711
A18: Convenios | E18: ='CRI-DE'!E110 -> 0
A19: Fondos distintos de aportaciones | E19: ='CRI-DE'!E121 -> 0
A20: Transferencias, asignaciones, subsidios y subvenciones y pensiones y jubilaciones | E20: ='CRI-DE'!E124 -> 0
A21: Otras transferencias federales etiquetadas | E21: 0
A22: Total de ingresos etiquetados | B22: =SUM(B17:B21) -> 0 | C22: 4885673 | D22: 7277092 | E22: 7277820 | F22: 7641711 | G22: 0 | H22: 0
A23: Ingresos derivados de financiamientos | B23: =B29 -> 0 | C23: =C29 -> 3500000 | D23: =D29 -> 0 | E23: =E29 -> 0
A24: TOTAL DE INGRESOS | B24: =B15+B22+B23 -> 0 | C24: =C15+C22+C23 -> 30991232 | D24: 32700383 | E24: 34841278 | F24: 36583344 | G24: 0 | H24: 0
A26: DATOS INFORMATIVOS
A27: Ingresos derivados de financiamientos con fuente de pago de recursos de libre disposición | C27: 3500000 | D27: 0 | E27: ='CRI-DE'!D136 -> 0 | F27: 1200000
A28: Ingresos derivados de financiamientos con fuente de pago de transferencias federales etiquetadas | E28: ='CRI-DE'!E136 -> 0
A29: Ingresos derivados de financiamiento | B29: =SUM(B27:B28) -> 0 | C29: 3500000 | D29: 0 | E29: 0 | F29: 1200000 | G29: 0 | H29: 0
A35: =SUM(B24:H24) -> 135116237

Sheet CRI-DE
A1: CRI-LI | B1: DESCRIPCIÓN | D1: INGRESOS DE LIBRE DISPOSICIÓN | E1: INGRESOS ETIQUETADOS | F1: TOTAL
A2: 1000 | B2: IMPUESTOS | D2: =D3+D5+D9+D10+D11+D12+D13+D19 -> 4569402 | E2: =E3+E5+E9+E10+E11+E12+E13+E19 -> 0 | F2: =D2+E2 -> 4569402
A3: 1100 | B3: Impuestos sobre los ingresos | D3: =SUM(D4) -> 18400 | E3: =SUM(E4) -> 0 | F3: =D3+E3 -> 18400
A4: 1101 | C4: Impuestos sobre espectáculos públicos | D4: ='CRI-M'!O4 -> 18400 | F4: 18400
A5: 1200 | B5: Impuestos sobre el patrimonio | D5: =SUM(D6:D8) -> 4517627 | E5: =SUM(E6:E8) -> 0 | F5: 4517627
A6: 1201 | C6: Impuesto predial | D6: ='CRI-M'!O6 -> 2835931 | F6: 2835931
A7: 1202 | C7: Impuestos sobre transmisiones patrimoniales | D7: ='CRI-M'!O7 -> 1681696 | F7: 1681696
A8: 1203 | C8: Impuestos sobre negocios jurídicos | D8: ='CRI-M'!O8 -> 0 | F8: 0
A9: 1300 | B9: Impuestos sobre la producción, el consumo y las transacciones | D9: 0 | E9: 0 | F9: 0
A10: 1400 | B10: Impuestos al comercio exterior | D10: 0 | E10: 0 | F10: 0
A11: 1500 | B11: Impuestos sobre nóminas y asimilables | D11: 0 | E11: 0 | F11: 0
A12: 1600 | B12: Impuestos ecológicos | D12: 0 | E12: 0 | F12: 0
A13: 1700 | B13: Accesorios de impuestos | D13: =SUM(D14:D18) -> 26400 | E13: =SUM(E14:E18) -> 0 | F13: 26400
A14: 1701 | C14: Recargos | D14: ='CRI-M'!O14 -> 26400 | F14: 26400
A15: 1702 | C15: Actualizaciones | D15: ='CRI-M'!O15 -> 0 | F15: 0
A16: 1703 | C16: Multas | D16: ='CRI-M'!O16 -> 0 | F16: 0
A17: 1704 | C17: Gastos de ejecución | D17: ='CRI-M'!O17 -> 0 | F17: 0
A18: 1709 | C18: Otros no especificados | D18: ='CRI-M'!O18 -> 0 | F18: 0
A19: 1800 | B19: Otros impuestos | D19: =SUM(D20) -> 6975 | E19: =SUM(E20) -> 0 | F19: 6975
A20: 1801 | C20: Otros impuestos | D20: ='CRI-M'!O20 -> 6975 | F20: 6975
A21: 2000 | B21: CUOTAS Y APORTACIONES DE SEGURIDAD SOCIAL | D21: =SUM(D22:D26) -> 0 | E21: =SUM(E22:E26) -> 0 | F21: 0
A22: 2100 | B22: Aportaciones para fondos de vivienda | F22: 0
A23: 2200 | B23: Cuotas para la seguirdad social | F23: 0
A24: 2300 | B24: Cuotas de ahorro para el retiro | F24: 0
A25: 2400 | B25: Otras cuotas y aportaciones para la seguirdad social | F25: 0
A26: 2500 | B26: Accesorios de cuotas y aportaciones de seguirdad social | F26: 0
A27: 3000 | B27: CONTRIBUCIONES DE MEJORAS | D27: =SUM(D28) -> 0 | E27: =SUM(E28) -> 0 | F27: 0
A28: 3100 | B28: Contribuciones de mejoras por obras públicas | D28: =SUM(D29) -> 0 | E28: =SUM(E29) -> 0 | F28: 0
A29: 3101 | C29: Contribuciones de mejoras por obras públicas | D29: ='CRI-M'!O29 -> 0 | F29: 0
A30: 4000 | B30: DERECHOS | D30: =D31+D36+D37+D52+D54 -> 2389116 | E30: =E31+E36+E37+E52+E54 -> 0 | F30: 2389116
A31: 4100 | B31: Derechos por el uso, goce, aprovechamiento o explotación de bienes de dominio público | D31: =SUM(D32:D35) -> 158471 | E31: =SUM(E32:E35) -> 0 | F31: 158471
A32: 4101 | C32: Derechos por el uso del piso | D32: ='CRI-M'!O32 -> 125500 | F32: 125500
A33: 4102 | C33: Derechos por el uso de los estacionamientos | D33: ='CRI-M'!O33 -> 0 | F33: 0
A34: 4103 | C34: Derechos de uso de cementerios y panteones municipales | D34: ='CRI-M'!O34 -> 32971 | F34: 32971
A35: 4104 | C35: Derechos de concesiones y demas inmuebles de propiedad municipal | D35: ='CRI-M'!O35 -> 0 | F35: 0
A36: 4200 | B36: Derechos a los hidrocarburos (Derogado) | F36: 0
A37: 4300 | B37: Derechos por prestación de servicios | D37: =SUM(D38:D51) -> 2108527 | E37: =SUM(E38:E51) -> 0 | F37: 2108527
A38: 43-01 | C38: Derechos de licencias y permisos de giros | D38: ='CRI-M'!O38 -> 149838 | F38: 149838
A39: 43-02 | C39: Derechos de licencias y permisos de anuncios | D39: ='CRI-M'!O39 -> 46042 | F39: 46042
A40: 4303 | C40: Derechos de licencias de construcción, reconstrucción, reparación o demolición de obras | D40: ='CRI-M'!O40 -> 18547 | F40: 18547
A41: 4304 | C41: Derechos de regularizaciones de los registros de obra | D41: ='CRI-M'!O41 -> 0 | F41: 0
A42: 4305 | C42: Derechos de alineamiento, designación de número oficial e inspección | D42: ='CRI-M'!O42 -> 59644 | F42: 59644
A43: 4306 | C43: Derechos de licencias de cambio de régimen de propiedad y urbanización | D43: ='CRI-M'!O43 -> 500 | F43: 500
A44: 4307 | C44: Derechos de servicios de obra | D44: ='CRI-M'!O44 -> 0 | F44: 0
A45: 4308 | C45: Derechos de servicios de sanidad | D45: ='CRI-M'!O45 -> 0 | F45: 0
A46: 4309 | C46: Derechos de servicio de limpieza, recolección, traslado, tratamiento y disposición final de residuos | D46: ='CRI-M'!O46 -> 21600 | F46: 21600
A47: 4310 | C47: Derechos de agua potable, drenaje, alcantarillado, tratamiento y disposición final de aguas residuales | D47: ='CRI-M'!O47 -> 1584184 | F47: 1584184
A48: 4311 | C48: Derechos del rastro | D48: ='CRI-M'!O48 -> 2300 | F48: 2300
A49: 4312 | C49: Derechos del registro civil | D49: ='CRI-M'!O49 -> 134481 | F49: 134481
A50: 4313 | C50: Derechos de las certificaciones | D50: ='CRI-M'!O50 -> 75016 | F50: 75016
A51: 4314 | C51: Derechos de los servicios de catastro | D51: ='CRI-M'!O51 -> 16375 | F51: 16375
A52: 4400 | B52: Otros derechos | D52: =SUM(D53) -> 81061 | E52: =SUM(E53) -> 0 | F52: 81061
A53: 4401 | C53: Otros derechos | D53: ='CRI-M'!O53 -> 81061 | F53: 81061
A54: 4500 | B54: Accesorios de derechos | D54: =SUM(D55:D59) -> 41057 | E54: =SUM(E55:E59) -> 0 | F54: 41057
A55: 4501 | C55: Recargos | D55: ='CRI-M'!O55 -> 41057 | F55: 41057
A56: 4502 | C56: Actualizaciones | D56: ='CRI-M'!O56 -> 0 | F56: 0
A57: 4503 | C57: Multas | D57: ='CRI-M'!O57 -> 0 | F57: 0
A58: 4504 | C58: Gastos de ejecución | D58: ='CRI-M'!O58 -> 0 | F58: 0
A59: 4509 | C59: Otros no especificados | D59: ='CRI-M'!O59 -> 0 | F59: 0
A60: 5000 | B60: PRODUCTOS | D60: =D61+D64 -> 128220 | E60: =E61+E64 -> 0 | F60: 128220
A61: 5100 | B61: Productos | D61: =SUM(D62:D63) -> 128220 | E61: =SUM(E62:E63) -> 0 | F61: 128220
A62: 5101 | C62: Uso, goce, aprovechamiento o explotación de bienes de dominio privado | D62: ='CRI-M'!O62 -> 0 | F62: 0
A63: 5102 | C63: Productos diversos | D63: ='CRI-M'!O63 -> 128220 | F63: 128220
A64: 5200 | B64: Productos de capital (Derogado) | F64: 0
A65: 6000 | B65: APROVECHAMIENTOS | D65: =D66+D70+D73 -> 0 | E65: =E66+E70+E73 -> 0 | F65: 0
A66: 6100 | B66: Aprovechamientos | D66: =SUM(D67:D69) -> 0 | E66: =SUM(E67:E69) -> 0 | F66: 0
A67: 6101 | C67: Aprovechamientos de las sanciones, multas, honorarios y donativos | D67: ='CRI-M'!O67 -> 0 | F67: =D67+E67 -> 0
A68: 6102 | C68: Aprovechamientos de las indemnizaciones a favor del municipio | D68: ='CRI-M'!O68 -> 0 | F68: 0
A69: 6103 | C69: Otros aprovechamientos | D69: ='CRI-M'!O69 -> 0 | F69: 0
A70: 6200 | B70: Aprovechamientos patrimoniales | D70: =SUM(D71:D72) -> 0 | E70: =SUM(E71:E72) -> 0 | F70: 0
A71: 62-01 | C71: Aprovechamientos por el uso o enajenación de bienes | D71: ='CRI-M'!O71 -> 0 | F71: 0
A72: 6202 | C72: Aporvechamientos por recuperación de capital o patrimonio invertido | D72: ='CRI-M'!O72 -> 0 | F72: 0
A73: 6300 | B73: Accesorios de aprovechamientos | D73: =SUM(D74:D78) -> 0 | E73: =SUM(E74:E78) -> 0 | F73: 0
A74: 6301 | C74: Recargos | D74: ='CRI-M'!O74 -> 0 | F74: 0
A75: 6302 | C75: Actualizaciones | D75: ='CRI-M'!O75 -> 0 | F75: 0
A76: 6303 | C76: Multas | D76: ='CRI-M'!O76 -> 0 | F76: 0
A77: 6304 | C77: Gastos de ejecución | D77: ='CRI-M'!O77 -> 0 | F77: 0
A78: 6309 | C78: Otros no especificados | D78: ='CRI-M'!O78 -> 0 | F78: 0
A79: 7000 | B79: INGRESOS POR VENTAS DE BIENES, PRESTACIÓN DE SERVICIOS Y OTROS INGRESOS | D79: =D80+D82+D83+D85+D86+D87+D88+D90+D91 -> 0 | E79: =E80+E82+E83+E85+E86+E87+E88+E90+E91 -> 0 | F79: 0
A80: 7100 | B80: Ingresos por venta de bienes y prestación de servicios de instituciones públicas de seguridad social | D80: =SUM(D81) -> 0 | E80: =SUM(E81) -> 0 | F80: 0
A81: 7101 | C81: Ingresos por venta de bienes y prestación de servicios de instituciones públicas de seguridad social | D81: ='CRI-M'!O81 -> 0 | F81: 0
A82: 7200 | B82: Ingresos por venta de bienes y prestación de servicios de empresas productivas del estado | F82: 0
A83: 7300 | B83: Ingresos por venta de bienes y prestación de servicios de entidades paraestatales y fideicomisos no empresariales y no financieros | D83: =SUM(D84) -> 0 | E83: =SUM(E84) -> 0 | F83: 0
A84: 7301 | C84: Ingresos por venta de bienes y prestación de servicios de entidades paraestatales y fideicomisos no empresariales y no financieros | D84: ='CRI-M'!O84 -> 0 | F84: 0
A85: 7400 | B85: Ingresos por venta de bienes y prestación de servicios de entidades paraestatales empresariales no financieras con participación estatal mayoritaria | F85: 0
A86: 7500 | B86: Ingresos por venta de bienes y prestación de servicios de entidades paraestatales empresariales financieras monetarias con participación estatal mayoritaria | F86: 0
A87: 7600 | B87: Ingresos por venta de bienes y prestación de servicios de entidades paraestatales empresariales financieras no monetarias con participación estatal mayoritaria | F87: 0
A88: 7700 | B88: Ingresos por venta de bienes y prestación de servicios de fideicomisos financieros públicos con participación estatal mayoritaria | D88: =SUM(D89) -> 0 | E88: =SUM(E89) -> 0 | F88: 0
A89: 7701 | C89: Ingresos por venta de bienes y prestación de servicios de fideicomisos financieros públicos con participación estatal mayoritaria | D89: ='CRI-M'!O89 -> 0 | F89: 0
A90: 7800 | B90: Ingresos por venta de bienes y prestación de servicios de los poderes legislativo y judicial, y de los órganos autónomos | F90: 0
A91: 7900 | B91: Otros ingresos | D91: =SUM(D92) -> 0 | E91: =SUM(E92) -> 0 | F91: 0
A92: 7901 | C92: Otros ingresos | D92: ='CRI-M'!O92 -> 0 | F92: 0
A93: 8000 | B93: PARTICIPACIONES, APORTACIONES, CONVENIOS, INCENTIVOS DERIVADOS DE LA COLABORACIÓN FISCAL Y FONDOS DISTINTOS DE LAS APORTACIONES | D93: =D94+D107+D110+D115+D121 -> 20476720 | E93: =E94+E107+E110+E115+E121 -> 7277820 | F93: 27754540
A94: 8100 | B94: Participaciones | D94: =SUM(D95:D106) -> 19715077 | E94: =SUM(E95:E106) -> 0 | F94: 19715077
A95: 8101 | C95: Fondo general de participaciones (federal) | D95: ='CRI-M'!O95 -> 14079144 | F95: 14079144
A96: 8102 | C96: Fondo de fomento municipal (federal) | D96: ='CRI-M'!O96 -> 3171773 | F96: 3171773
A97: 8103 | C97: Fondo de fiscalización y recaudación (federal) | D97: ='CRI-M'!O97 -> 312076 | F97: 312076
A98: 8104 | C98: Fondo de compensación (federal) | D98: ='CRI-M'!O98 -> 56604 | F98: 56604
A99: 8105 | C99: Fondo de extracción de hidrocarburos (federal) | D99: ='CRI-M'!O99 -> 0 | F99: 0
A100: 8106 | C100: Impuesto especial sobre producción y servicios (federal) | D100: ='CRI-M'!O100 -> 401315 | F100: 401315
A101: 8107 | C101: 0.136% de la recaudación federal participable (federal) | D101: ='CRI-M'!O101 -> 0 | F101: 0
A102: 8108 | C102: 3.17% sobre extracción de petróleo (federal) | D102: ='CRI-M'!O102 -> 0 | F102: 0
A103: 8109 | C103: Gasolinas y diésel (federal) | D103: ='CRI-M'!O103 -> 966994 | F103: 966994
A104: 8110 | C104: Fondo del impuesto sobre la renta (federal) | D104: ='CRI-M'!O104 -> 699033 | F104: 699033
A105: 8111 | C105: Fondo de estabilización de los ingresos de las entidades federativas (federal) | D105: ='CRI-M'!O105 -> 0 | F105: 0
A106: 8112 | C106: Participaciones del estado | D106: ='CRI-M'!O106 -> 28138 | F106: 28138
A107: 8200 | B107: Aportaciones | D107: =SUM(D108:D109) -> 0 | E107: =SUM(E108:E109) -> 7277820 | F107: 7277820
A108: 8201 | C108: Fondo de aportaciones para la infraestructura social municipal | E108: ='CRI-M'!O108 -> 2994303 | F108: 2994303
A109: 8202 | C109: Fondo de aportaciones para el fortalecimiento municipal | E109: ='CRI-M'!O109 -> 4283517 | F109: 4283517
A110: 8300 | B110: Convenios | D110: =SUM(D111:D114) -> 430917 | E110: =SUM(E111:E114) -> 0 | F110: 430917
A111: 8301 | C111: Convenios de protección social en salud | E111: ='CRI-M'!O111 -> 0 | F111: 0
A112: 8302 | C112: Convenios de descentralizados | E112: ='CRI-M'!O112 -> 0 | F112: 0
A113: 8303 | C113: Convenio de reasignación | E113: ='CRI-M'!O113 -> 0 | F113: 0
A114: 8304 | C114: Otros convenios y subsidios | D114: ='CRI-M'!O114 -> 430917 | E114: ='CRI-M'!O115+'CRI-M'!O116 -> 0 | F114: 430917
A115: 8400 | B115: Incentivos derivados de la colaboración fiscal | D115: =SUM(D116:D120) -> 330726 | E115: =SUM(E116:E120) -> 0 | F115: 330726
A116: 8401 | C116: Tenencia o uso de vehículos | D116: ='CRI-M'!O118 -> 145 | F116: 145
A117: 8402 | C117: Fondo de compensación ISAN | D117: ='CRI-M'!O119 -> 53148 | F117: 53148
A118: 8403 | C118: Impuesto sobre automóviles nuevos | D118: ='CRI-M'!O120 -> 277433 | F118: 277433
A119: 8404 | C119: Fondo de compensación de repecos-intermedios | D119: ='CRI-M'!O121 -> 0 | F119: 0
A120: 8405 | C120: Otros incentivos económicos | D120: ='CRI-M'!O122 -> 0 | F120: 0
A121: 8500 | B121: Fondos distintos de aportaciones | D121: =SUM(D122:D123) -> 0 | E121: =SUM(E122:E123) -> 0 | F121: 0
A122: 8501 | C122: Fondo para entidades federativas y municipios productores de hidrocarburos | E122: ='CRI-M'!O124 -> 0 | F122: 0
A123: 8502 | C123: Fondo minero | E123: ='CRI-M'!O125 -> 0 | F123: 0
A124: 9000 | B124: TRANSFERENCIAS, ASIGNACIONES, SUBSIDIOS Y SUBVENCIONES Y PENSIONES Y JUBILACIONES | D124: =D125+D127+D128+D130+D131+D133+D134 -> 0 | E124: =E125+E127+E128+E130+E131+E133+E134 -> 0 | F124: 0
A125: 9100 | B125: Transferencias y asignaciones | D125: =SUM(D126) -> 0 | E125: =SUM(E126) -> 0 | F125: 0
A126: 9101 | C126: Transferencias y asignaciones | D126: ='CRI-M'!O128 -> 0 | E126: ='CRI-M'!O129 -> 0 | F126: 0
A127: 9200 | B127: Transferencias al resto del sector público (derogado) | F127: 0
A128: 9300 | B128: Subsidios y subvenciones | D128: =SUM(D129) -> 0 | E128: =SUM(E129) -> 0 | F128: 0
A129: 9301 | C129: Subsidios y subvenciones | D129: ='CRI-M'!O132 -> 0 | E129: ='CRI-M'!O133 -> 0 | F129: 0
A130: 9400 | B130: Ayudas sociales (derogado) | F130: 0
A131: 9500 | B131: Pensiones y juvilaciones | D131: =SUM(D132) -> 0 | E131: =SUM(E132) -> 0 | F131: =D131+E131 -> 0
A132: 9501 | C132: Pensiones y juvilaciones | D132: ='CRI-M'!O136 -> 0 | F132: 0
A133: 9600 | B133: Transferencias a fideicomisos, mandatos y análogos (derogado) | F133: 0
A134: 9700 | B134: Transferencias del fondo mexicano del petróleo para la estabilización y el desarrollo | D134: =SUM(D135) -> 0 | E134: =SUM(E135) -> 0 | F134: 0
A135: 97-01 | C135: Transferencias del fondo mexicano del petróleo para la estabilización y el desarrollo | D135: ='CRI-M'!O139 -> 0 | F135: 0
A136: 0 | B136: INGRESOS DERIVADOS DE FINANCIAMIENTO | D136: =D137+D138+D139 -> 0 | E136: =E137+E138+E139 -> 0 | F136: 0
A137: 100 | B137: Endeudamiento interno | F137: 0
A138: 200 | B138: Endeudamiento externo | F138: 0
A139: 300 | B139: Financiamiento interno | D139: =SUM(D140) -> 0 | E139: =SUM(E140) -> 0 | F139: 0
A140: 301 | C140: Financiamiento interno | E140: ='CRI-M'!O144 -> 0 | F140: 0
A141: ESTIMACIÓN DE INGRESOS | D141: =D2+D21+D27+D30+D60+D65+D79+D93+D124+D136 -> 27563458 | E141: =E2+E21+E27+E30+E60+E65+E79+E93+E124+E136 -> 7277820 | F141: =F2+F21+F27+F30+F60+F65+F79+F93+F124+F136 -> 34841278

Sheet COG-RYP
B1: Resultado 2017 | C1: Resultado 2018 | D1: Resultado 2019 | E1: Presupuesto 2020 | F1: Proyección 2021 | G1: Proyección 2022 | H1: Proyección 2023
A2: GASTOS NO ETIQUETADO
A3: Servicios personales | C3: 13110761 | D3: 12508001 | E3: =SUM('COG-FF'!C3:I3) -> 12933845
A4: Materiales y suministros | C4: 1706720 | D4: 2174343 | E4: =SUM('COG-FF'!C40:I40) -> 4587706
A5: Servicios generales | C5: 4865972 | D5: 5955899 | E5: =SUM('COG-FF'!C105:I105) -> 6166639
A6: Transferencias, asignaciones, subsidios y otras ayudas | C6: 1878780 | D6: 1927041.36 | E6: =SUM('COG-FF'!C190:I190) -> 1429000
A7: Bienes muebles, inmuebles e intangibles | C7: 55000 | D7: 62937 | E7: =SUM('COG-FF'!C250:I250) -> 119000
A8: Inversion pública | C8: 2494897 | D8: 693189 | E8: =SUM('COG-FF'!C309:I309) -> 0
A9: Inversiones financieras y otras provisiones | C9: 0 | E9: =SUM('COG-FF'!C331:I331) -> 0
A10: Participaciones y aportaciones | C10: 0 | D10: 834008 | E10: =SUM('COG-FF'!C379:I379) -> 430917
A11: Deuda pública | C11: 2440511 | D11: 3249940 | E11: =SUM('COG-FF'!C397:I397) -> 1896351
A12: Total de gasto no etiquetado | B12: =SUM(B3:B11) -> 0 | C12: 26552641 | D12: 27405358.36 | E12: 27563458 | F12: 0 | G12: 0 | H12: 0
A13: GASTO ETIQUETADO
A14: Servicios personales | C14: 3342869 | D14: 2798733 | E14: =SUM('COG-FF'!J3:L3) -> 2576808
A15: Materiales y suministros | C15: 61800 | D15: 645000 | E15: =SUM('COG-FF'!J40:L40) -> 645159
A16: Servicios generales | D16: 619916 | E16: =SUM('COG-FF'!J105:L105) -> 1061550
A17: Transferencias, asignaciones, subsidios y otras ayudas | E17: =SUM('COG-FF'!J190:L190) -> 0
A18: Bienes muebles, inmuebles e intangibles | E18: =SUM('COG-FF'!J250:L250) -> 0
A19: Inversion pública | C19: 1688100 | D19: 1231376 | E19: =SUM('COG-FF'!J309:L309) -> 2994303
A20: Inversiones financieras y otras provisiones | E20: =SUM('COG-FF'!J331:L331) -> 0
A21: Participaciones y aportaciones | E21: =SUM('COG-FF'!J379:L379) -> 0
A22: Deuda pública | E22: =SUM('COG-FF'!J397:L397) -> 0
A23: Total de gasto etiquetado | B23: =SUM(B14:B22) -> 0 | C23: 5092769 | D23: 5295025 | E23: 7277820 | F23: 0 | G23: 0 | H23: 0
A24: TOTAL DE EGRESOS | B24: =B12+B23 -> 0 | C24: =C12+C23 -> 31645410 | D24: 32700383.36 | E24: 34841278 | F24: 0 | G24: 0 | H24: 0
B160: =SUM(B24:H24) -> 99187071.36

Sheet COG-FF
A1: COG-FF | B1: DESCRIPCIÓN | C1: 1. NO ETIQUETADO | J1: 2. ETIQUETADO | M1: TOTAL ANUAL
C2: 11 RECURSOS FISCALES | D2: 12 FINANCIAMIENTOS INTERNOS | E2: 13 FINANCIAMIENTOS EXTERNOS | F2: 14 INGRESOS PROPIOS | G2: 15 RECURSOS FEDERALES | H2: 16 RECURSOS ESTATALES | I2: 17 OTROS RECURSOS DE LIBRE DISPOSICIÓN | J2: 25 RECURSOS FEDERALES | K2: 26 RECURSOS ESTATALES | L2: 27 OTROS RECURSOS DE TRANSFERENCIAS FEDERALES ETIQUETADAS
A3: 1000 | B3: SERVICIOS PERSONALES | C3: =C4+C9+C14+C23+C28+C35+C37 -> 3290926 | D3: 0 | E3: 0 | F3: 0 | G3: 9642919 | H3: 0 | I3: 0 | J3: 2576808 | K3: 0 | L3: 0 | M3: =M4+M9+M14+M23+M28+M35+M37 -> 15510653
A4: 1100 | B4: REMUNERACIONES AL PERSONAL DE CARÁCTER PERMANENTE | C4: =SUM(C5:C8) -> 2028024 | D4: 0 | E4: 0 | F4: 0 | G4: 8106084 | H4: 0 | I4: 0 | J4: =SUM(J5:J8) -> 2498808 | K4: =SUM(K5:K8) -> 0 | L4: =SUM(L5:L8) -> 0 | M4: =SUM(M5:M8) -> 12632916
A5: 111 | B5: Dietas | C5: ='COG-M'!P4 -> 1833624 | G5: ='COG-M'!P5 -> 203736 | H5: ='COG-M'!P6 -> 0 | I5: ='COG-M'!P7 -> 0 | M5: =SUM(C5:L5) -> 2037360
A6: 112 | B6: Haberes | M6: =SUM(C6:L6) -> 0
A7: 113 | B7: Sueldos base al personal permanente | C7: ='COG-M'!P9 -> 194400 | F7: ='COG-M'!P10 -> 0 | G7: ='COG-M'!P11 -> 7902348 | H7: ='COG-M'!P12 -> 0 | I7: ='COG-M'!P13 -> 0 | J7: ='COG-M'!P14 -> 2498808 | M7: =SUM(C7:L7) -> 10595556
A8: 114 | B8: Remuneraciones por adscripción laboral en el extranjero | C8: ='COG-M'!P15 -> 0 | G8: ='COG-M'!P16 -> 0 | H8: ='COG-M'!P17 -> 0 | I8: ='COG-M'!P18 -> 0 | M8: =SUM(C8:L8) -> 0
A9: 1200 | B9: REMUNERACIONES AL PERSONAL DE CARÁCTER TRANSITORIO | C9: =SUM(C10:C13) -> 920600 | D9: =SUM(D10:D13) -> 0 | E9: 0 | F9: 0 | G9: 0 | H9: 0 | I9: 0 | J9: 0 | K9: 0 | L9: 0 | M9: 920600
A10: 121 | B10: Honorarios asimilables a salarios | C10: ='COG-M'!P20 -> 0 | F10: ='COG-M'!P21 -> 0 | G10: ='COG-M'!P22 -> 0 | H10: ='COG-M'!P23 -> 0 | I10: ='COG-M'!P24 -> 0 | M10: =SUM(C10:L10) -> 0
A11: 122 | B11: Sueldos base al personal eventual | C11: ='COG-M'!P25 -> 920600 | F11: ='COG-M'!P26 -> 0 | G11: ='COG-M'!P27 -> 0 | H11: ='COG-M'!P28 -> 0 | I11: ='COG-M'!P29 -> 0 | J11: ='COG-M'!P30 -> 0 | K11: ='COG-M'!P31 -> 0 | L11: ='COG-M'!P32 -> 0 | M11: =SUM(C11:L11) -> 920600
A12: 123 | B12: Retribuciones por servicios de carácter social | C12: ='COG-M'!P33 -> 0 | F12: ='COG-M'!P34 -> 0 | G12: ='COG-M'!P35 -> 0 | H12: ='COG-M'!P36 -> 0 | I12: ='COG-M'!P37 -> 0 | M12: =SUM(C12:L12) -> 0
A13: 124 | B13: Retribución a los representantes de los trabajadores y de los patrones en la Junta de Conciliación y Arbitraje | M13: =SUM(C13:L13) -> 0
A14: 1300 | B14: REMUNERACIONES ADICIONALES Y ESPECIALES | C14: =SUM(C15:C22) -> 342302 | D14: 0 | E14: 0 | F14: 0 | G14: 1511835 | H14: 0 | I14: 0 | J14: 78000 | K14: 0 | L14: 0 | M14: 1932137
A15: 131 | B15: Primas por años de servicios efectivos prestados | C15: ='COG-M'!P40 -> 0 | F15: ='COG-M'!P41 -> 0 | G15: ='COG-M'!P42 -> 0 | H15: ='COG-M'!P43 -> 0 | I15: ='COG-M'!P44 -> 0 | M15: =SUM(C15:L15) -> 0
A16: 132 | B16: Primas de vacaciones, dominical y gratificación de fin de año | C16: ='COG-M'!P45 -> 342302 | F16: ='COG-M'!P46 -> 0 | G16: ='COG-M'!P47 -> 1388235 | H16: ='COG-M'!P48 -> 0 | I16: ='COG-M'!P49 -> 0 | J16: ='COG-M'!P50 -> 0 | M16: 1730537
A17: 133 | B17: Horas extraordinarias | C17: ='COG-M'!P51 -> 0 | F17: ='COG-M'!P52 -> 0 | G17: ='COG-M'!P53 -> 0 | H17: ='COG-M'!P54 -> 0 | I17: ='COG-M'!P55 -> 0 | J17: ='COG-M'!P56 -> 0 | M17: 0
A18: 134 | B18: Compensaciones | C18: ='COG-M'!P57 -> 0 | F18: ='COG-M'!P58 -> 0 | G18: ='COG-M'!P59 -> 123600 | H18: ='COG-M'!P60 -> 0 | I18: ='COG-M'!P61 -> 0 | J18: ='COG-M'!P62 -> 78000 | M18: 201600
A19: 135 | B19: Sobrehaberes | M19: 0
A20: 136 | B20: Asignaciones de técnico, de mando, por comisión, de vuelo y de técnico especial | M20: 0
A21: 137 | B21: Honorarios especiales | C21: ='COG-M'!P65 -> 0 | F21: ='COG-M'!P66 -> 0 | G21: ='COG-M'!P67 -> 0 | H21: ='COG-M'!P68 -> 0 | I21: ='COG-M'!P69 -> 0 | M21: 0
A22: 138 | B22: Participaciones por vigilancia en el cumplimiento de la leyes y custodia de valores | C22: ='COG-M'!P70 -> 0 | F22: ='COG-M'!P71 -> 0 | G22: ='COG-M'!P72 -> 0 | H22: ='COG-M'!P73 -> 0 | I22: ='COG-M'!P74 -> 0 | M22: 0
A23: 1400 | B23: SEGURIDAD SOCIAL | C23: =SUM(C24:C27) -> 0 | D23: 0 | E23: 0 | F23: 0 | G23: 0 | H23: 0 | I23: 0 | J23: 0 | K23: 0 | L23: 0 | M23: 0
A24: 141 | B24: Aportaciones de seguridad social | C24: ='COG-M'!P76 -> 0 | F24: ='COG-M'!P77 -> 0 | G24: ='COG-M'!P78 -> 0 | H24: ='COG-M'!P79 -> 0 | I24: ='COG-M'!P80 -> 0 | M24: =SUM(C24:L24) -> 0
A25: 142 | B25: Aportaciones a fondos de vivienda | C25: ='COG-M'!P81 -> 0 | F25: ='COG-M'!P82 -> 0 | G25: ='COG-M'!P83 -> 0 | H25: ='COG-M'!P84 -> 0 | I25: ='COG-M'!P85 -> 0 | M25: =SUM(C25:L25) -> 0
A26: 143 | B26: Aportaciones al sistema para el retiro | C26: ='COG-M'!P86 -> 0 | F26: ='COG-M'!P87 -> 0 | G26: ='COG-M'!P88 -> 0 | H26: ='COG-M'!P89 -> 0 | I26: ='COG-M'!P90 -> 0 | M26: =SUM(C26:L26) -> 0
A27: 144 | B27: Aportaciones para seguros | C27: ='COG-M'!P91 -> 0 | F27: ='COG-M'!P92 -> 0 | G27: ='COG-M'!P93 -> 0 | H27: ='COG-M'!P94 -> 0 | I27: ='COG-M'!P95 -> 0 | M27: =SUM(C27:L27) -> 0
A28: 1500 | B28: OTRAS PRESTACIONES SOCIALES Y ECONÓMICAS | C28: =SUM(C29:C34) -> 0 | D28: 0 | E28: 0 | F28: 0 | G28: 25000 | H28: 0 | I28: 0 | J28: 0 | K28: 0 | L28: 0 | M28: 25000
A29: 151 | B29: Cuotas para el fondo de ahorro y fondo de trabajo | C29: ='COG-M'!P97 -> 0 | F29: ='COG-M'!P98 -> 0 | G29: ='COG-M'!P99 -> 0 | H29: ='COG-M'!P100 -> 0 | I29: ='COG-M'!P101 -> 0 | J29: ='COG-M'!P102 -> 0 | M29: =SUM(C29:L29) -> 0
A30: 152 | B30: Indemnizaciones | C30: ='COG-M'!P103 -> 0 | F30: ='COG-M'!P104 -> 0 | G30: ='COG-M'!P105 -> 25000 | H30: ='COG-M'!P106 -> 0 | I30: ='COG-M'!P107 -> 0 | L30: ='COG-M'!P108 -> 0 | M30: 25000
A31: 153 | B31: Prestaciones y haberes de retiro | C31: ='COG-M'!P109 -> 0 | F31: ='COG-M'!P110 -> 0 | G31: ='COG-M'!P111 -> 0 | H31: ='COG-M'!P112 -> 0 | I31: ='COG-M'!P113 -> 0 | M31: 0
A32: 154 | B32: Prestaciones contractuales | C32: ='COG-M'!P114 -> 0 | F32: ='COG-M'!P115 -> 0 | G32: ='COG-M'!P116 -> 0 | H32: ='COG-M'!P117 -> 0 | I32: ='COG-M'!P118 -> 0 | J32: ='COG-M'!P119 -> 0 | M32: 0
A33: 155 | B33: Apoyos a la capacitación de los servidores públicos | C33: ='COG-M'!P120 -> 0 | F33: ='COG-M'!P121 -> 0 | G33: ='COG-M'!P122 -> 0 | H33: ='COG-M'!P123 -> 0 | I33: ='COG-M'!P124 -> 0 | M33: 0
A34: 159 | B34: Otras prestaciones sociales y económicas | C34: ='COG-M'!P125 -> 0 | F34: ='COG-M'!P126 -> 0 | G34: ='COG-M'!P127 -> 0 | H34: ='COG-M'!P128 -> 0 | I34: ='COG-M'!P129 -> 0 | M34: 0
A35: 1600 | B35: PREVISIONES | C35: =SUM(C36) -> 0 | D35: 0 | E35: 0 | F35: 0 | G35: 0 | H35: 0 | I35: 0 | J35: 0 | K35: 0 | L35: 0 | M35: 0
A36: 161 | B36: Previsiones de carácter laboral, económica y de seguridad social | C36: ='COG-M'!P131 -> 0 | F36: ='COG-M'!P132 -> 0 | G36: ='COG-M'!P133 -> 0 | H36: ='COG-M'!P134 -> 0 | I36: ='COG-M'!P135 -> 0 | J36: ='COG-M'!P136 -> 0 | M36: =SUM(C36:L36) -> 0
A37: 1700 | B37: PAGO DE ESTÍMULOS A SERVIDORES PÚBLICOS | C37: =SUM(C38:C39) -> 0 | D37: 0 | E37: 0 | F37: 0 | G37: 0 | H37: 0 | I37: 0 | J37: 0 | K37: 0 | L37: 0 | M37: 0
A38: 171 | B38: Estímulos | C38: ='COG-M'!P138 -> 0 | F38: ='COG-M'!P139 -> 0 | G38: ='COG-M'!P140 -> 0 | H38: ='COG-M'!P141 -> 0 | I38: ='COG-M'!P142 -> 0 | M38: =SUM(C38:L38) -> 0
A39: 172 | B39: Recompensas | C39: ='COG-M'!P143 -> 0 | F39: ='COG-M'!P144 -> 0 | G39: ='COG-M'!P145 -> 0 | H39: ='COG-M'!P146 -> 0 | I39: ='COG-M'!P147 -> 0 | M39: =SUM(C39:L39) -> 0
A40: 2000 | B40: MATERIALES Y SUMINISTROS | C40: =C41+C50+C54+C64+C74+C82+C85+C91+C95 -> 2423175 | D40: 0 | E40: 0 | F40: 0 | G40: 2136393 | H40: 28138 | I40: 0 | J40: =J41+J50+J54+J64+J74+J82+J85+J91+J95 -> 645159 | K40: =K41+K50+K54+K64+K74+K82+K85+K91+K95 -> 0 | L40: =L41+L50+L54+L64+L74+L82+L85+L91+L95 -> 0 | M40: =M41+M50+M54+M64+M74+M82+M85+M91+M95 -> 5232865
A41: 2100 | B41: MATERIALES DE ADMINISTRACIÓN, EMISIÓN DE DOCUMENTOS Y ARTÍCULOS OFICIALES | C41: =SUM(C42:C49) -> 681955 | D41: 0 | E41: 0 | F41: 0 | G41: 216000 | H41: 28138 | I41: 0 | J41: =SUM(J42:J49) -> 0 | K41: =SUM(K42:K49) -> 0 | L41: =SUM(L42:L49) -> 0 | M41: =SUM(M42:M49) -> 926093
A42: 211 | B42: Materiales, útiles y equipos menores de oficina | C42: ='COG-M'!P150 -> 78000 | F42: ='COG-M'!P151 -> 0 | G42: ='COG-M'!P152 -> 0 | H42: ='COG-M'!P153 -> 28138 | I42: ='COG-M'!P154 -> 0 | M42: =SUM(C42:L42) -> 106138
A43: 212 | B43: Materiales y útiles de impresión y reproducción | C43: ='COG-M'!P155 -> 45000 | F43: ='COG-M'!P156 -> 0 | G43: ='COG-M'!P157 -> 35000 | H43: ='COG-M'!P158 -> 0 | I43: ='COG-M'!P159 -> 0 | M43: 80000
A44: 213 | B44: Material estadístico y geográfico | C44: ='COG-M'!P160 -> 0 | F44: ='COG-M'!P161 -> 0 | G44: ='COG-M'!P162 -> 0 | H44: ='COG-M'!P163 -> 0 | I44: ='COG-M'!P164 -> 0 | M44: 0
A45: 214 | B45: Materiales, útiles y equipos menores de tecnologías de la información y comunicaciones | C45: ='COG-M'!P165 -> 18000 | F45: ='COG-M'!P166 -> 0 | G45: ='COG-M'!P167 -> 0 | H45: ='COG-M'!P168 -> 0 | I45: ='COG-M'!P169 -> 0 | M45: 18000
A46: 215 | B46: Material impreso e información digital | C46: ='COG-M'!P170 -> 80955 | F46: ='COG-M'!P171 -> 0 | G46: ='COG-M'!P172 -> 0 | H46: ='COG-M'!P173 -> 0 | I46: ='COG-M'!P174 -> 0 | M46: 80955
A47: 216 | B47: Material de limpieza | C47: ='COG-M'!P175 -> 50000 | F47: ='COG-M'!P176 -> 0 | G47: ='COG-M'!P177 -> 30000 | H47: ='COG-M'!P178 -> 0 | I47: ='COG-M'!P179 -> 0 | M47: 80000
A48: 217 | B48: Materiales y útiles de enseñanza | C48: ='COG-M'!P180 -> 375000 | F48: ='COG-M'!P181 -> 0 | G48: ='COG-M'!P182 -> 125000 | H48: ='COG-M'!P183 -> 0 | I48: ='COG-M'!P184 -> 0 | M48: 500000
A49: 218 | B49: Materiales para el registro e identificación de bienes y personas | C49: ='COG-M'!P185 -> 35000 | F49: ='COG-M'!P186 -> 0 | G49: ='COG-M'!P187 -> 26000 | H49: ='COG-M'!P188 -> 0 | I49: ='COG-M'!P189 -> 0 | M49: 61000
A50: 2200 | B50: ALIMENTOS Y UTENSILIOS | C50: =SUM(C51:C53) -> 199631 | D50: 0 | E50: 0 | F50: 0 | G50: 205634 | H50: 0 | I50: 0 | J50: =SUM(J51:J53) -> 0 | K50: =SUM(K51:K53) -> 0 | L50: =SUM(L51:L53) -> 0 | M50: =SUM(M51:M53) -> 405265
A51: 221 | B51: Productos alimenticios para personas | C51: ='COG-M'!P191 -> 171631 | F51: ='COG-M'!P192 -> 0 | G51: ='COG-M'!P193 -> 205634 | H51: ='COG-M'!P194 -> 0 | I51: ='COG-M'!P195 -> 0 | J51: ='COG-M'!P196 -> 0 | M51: =SUM(C51:L51) -> 377265
A52: 222 | B52: Productos alimenticios para animales | C52: ='COG-M'!P197 -> 0 | F52: ='COG-M'!P198 -> 0 | G52: ='COG-M'!P199 -> 0 | H52: ='COG-M'!P200 -> 0 | I52: ='COG-M'!P201 -> 0 | M52: =SUM(C52:L52) -> 0
A53: 223 | B53: Utensilios para el servicio de alimentación | C53: ='COG-M'!P202 -> 28000 | F53: ='COG-M'!P203 -> 0 | G53: ='COG-M'!P204 -> 0 | H53: ='COG-M'!P205 -> 0 | I53: ='COG-M'!P206 -> 0 | M53: =SUM(C53:L53) -> 28000
A54: 2300 | B54: MATERIAS PRIMAS Y MATERIALES DE PRODUCCIÓN Y COMERCIALIZACIÓN | C54: =SUM(C55:C63) -> 0 | D54: 0 | E54: 0 | F54: 0 | G54: 0 | H54: 0 | I54: 0 | J54: =SUM(J55:J63) -> 0 | K54: =SUM(K55:K63) -> 0 | L54: =SUM(L55:L63) -> 0 | M54: =SUM(M55:M63) -> 0
A55: 231 | B55: Productos alimenticios, agropecuarios y forestales adquiridos como materia prima | M55: =SUM(C55:L55) -> 0
A56: 232 | B56: Insumos textiles adquiridos como materia prima | M56: 0
A57: 233 | B57: Productos de papel, cartón e impresos adquiridos como materia prima | M57: 0
A58: 234 | B58: Combustibles, lubricantes, aditivos, carbón y sus derivados adquiridos como materia prima | M58: 0
A59: 235 | B59: Productos químicos, farmacéuticos y de laboratorio adquiridos como materia prima | M59: 0
A60: 236 | B60: Productos metálicos y a base de minerales no metálicos adquiridos como materia prima | M60: 0
A61: 237 | B61: Productos de cuero, piel, plástico y hule adquiridos como materia prima | M61: 0
A62: 238 | B62: Mercancías adquiridas para su comercialización | M62: 0
A63: 239 | B63: Otros productos adquiridos como materia prima | M63: 0
A64: 2400 | B64: MATERIALES Y ARTÍCULOS DE CONSTRUCCIÓN Y DE REPARACIÓN | C64: =SUM(C65:C73) -> 526600 | D64: 0 | E64: 0 | F64: 0 | G64: 187897 | H64: 0 | I64: 0 | J64: =SUM(J65:J73) -> 0 | K64: =SUM(K65:K73) -> 0 | L64: =SUM(L65:L73) -> 0 | M64: =SUM(M65:M73) -> 714497
A65: 241 | B65: Productos minerales no metálicos | C65: ='COG-M'!P218 -> 139000 | F65: ='COG-M'!P219 -> 0 | G65: ='COG-M'!P220 -> 0 | H65: ='COG-M'!P221 -> 0 | I65: ='COG-M'!P222 -> 0 | J65: ='COG-M'!P223 -> 0 | K65: ='COG-M'!P224 -> 0 | L65: ='COG-M'!P225 -> 0 | M65: =SUM(C65:L65) -> 139000
A66: 242 | B66: Cemento y productos de concreto | C66: ='COG-M'!P226 -> 160000 | F66: ='COG-M'!P227 -> 0 | G66: ='COG-M'!P228 -> 0 | H66: ='COG-M'!P229 -> 0 | I66: ='COG-M'!P230 -> 0 | J66: ='COG-M'!P231 -> 0 | K66: ='COG-M'!P232 -> 0 | L66: ='COG-M'!P233 -> 0 | M66: 160000
A67: 243 | B67: Cal, yeso y productos de yeso | C67: ='COG-M'!P234 -> 4000 | F67: ='COG-M'!P235 -> 0 | G67: ='COG-M'!P236 -> 17000 | H67: ='COG-M'!P237 -> 0 | I67: ='COG-M'!P238 -> 0 | J67: ='COG-M'!P239 -> 0 | K67: ='COG-M'!P240 -> 0 | L67: ='COG-M'!P241 -> 0 | M67: 21000
A68: 244 | B68: Madera y productos de madera | C68: ='COG-M'!P242 -> 5600 | F68: ='COG-M'!P243 -> 0 | G68: ='COG-M'!P244 -> 9000 | H68: ='COG-M'!P245 -> 0 | I68: ='COG-M'!P246 -> 0 | J68: ='COG-M'!P247 -> 0 | K68: ='COG-M'!P248 -> 0 | L68: ='COG-M'!P249 -> 0 | M68: 14600
A69: 245 | B69: Vidrio y productos de vidrio | C69: ='COG-M'!P250 -> 3000 | F69: ='COG-M'!P251 -> 0 | G69: ='COG-M'!P252 -> 0 | H69: ='COG-M'!P253 -> 0 | I69: ='COG-M'!P254 -> 0 | J69: ='COG-M'!P255 -> 0 | K69: ='COG-M'!P256 -> 0 | L69: ='COG-M'!P257 -> 0 | M69: 3000
A70: 246 | B70: Material eléctrico y electrónico | C70: ='COG-M'!P258 -> 150000 | F70: ='COG-M'!P259 -> 0 | G70: ='COG-M'!P260 -> 26000 | H70: ='COG-M'!P261 -> 0 | I70: ='COG-M'!P262 -> 0 | J70: ='COG-M'!P263 -> 0 | K70: ='COG-M'!P264 -> 0 | L70: ='COG-M'!P265 -> 0 | M70: 176000
A71: 247 | B71: Artículos metálicos para la construcción | C71: ='COG-M'!P266 -> 56000 | F71: ='COG-M'!P267 -> 0 | G71: ='COG-M'!P268 -> 22000 | H71: ='COG-M'!P269 -> 0 | I71: ='COG-M'!P270 -> 0 | J71: ='COG-M'!P271 -> 0 | K71: ='COG-M'!P272 -> 0 | L71: ='COG-M'!P273 -> 0 | M71: 78000
A72: 248 | B72: Materiales complementarios | C72: ='COG-M'!P274 -> 9000 | F72: ='COG-M'!P275 -> 0 | G72: ='COG-M'!P276 -> 13000 | H72: ='COG-M'!P277 -> 0 | I72: ='COG-M'!P278 -> 0 | J72: ='COG-M'!P279 -> 0 | K72: ='COG-M'!P280 -> 0 | L72: ='COG-M'!P281 -> 0 | M72: 22000
A73: 249 | B73: Otros materiales y artículos de construcción y reparación | C73: ='COG-M'!P282 -> 0 | F73: ='COG-M'!P283 -> 0 | G73: ='COG-M'!P284 -> 100897 | H73: ='COG-M'!P285 -> 0 | I73: ='COG-M'!P286 -> 0 | J73: ='COG-M'!P287 -> 0 | K73: ='COG-M'!P288 -> 0 | L73: ='COG-M'!P289 -> 0 | M73: 100897
A74: 2500 | B74: PRODUCTOS QUÍMICOS, FARMACÉUTICOS Y DE LABORATORIO | C74: =SUM(C75:C81) -> 124000 | D74: 0 | E74: 0 | F74: 0 | G74: 130000 | H74: 0 | I74: 0 | J74: =SUM(J75:J81) -> 48000 | K74: =SUM(K75:K81) -> 0 | L74: =SUM(L75:L81) -> 0 | M74: =SUM(M75:M81) -> 302000
A75: 251 | B75: Productos químicos básicos | C75: ='COG-M'!P291 -> 27000 | F75: ='COG-M'!P292 -> 0 | G75: ='COG-M'!P293 -> 0 | H75: ='COG-M'!P294 -> 0 | I75: ='COG-M'!P295 -> 0 | M75: =SUM(C75:L75) -> 27000
A76: 252 | B76: Fertilizantes, pesticidas y otros agroquímicos | C76: ='COG-M'!P296 -> 20000 | F76: ='COG-M'!P297 -> 0 | G76: ='COG-M'!P298 -> 25000 | H76: ='COG-M'!P299 -> 0 | I76: ='COG-M'!P300 -> 0 | M76: 45000
A77: 253 | B77: Medicinas y productos farmacéuticos | C77: ='COG-M'!P301 -> 35000 | F77: ='COG-M'!P302 -> 0 | G77: ='COG-M'!P303 -> 0 | H77: ='COG-M'!P304 -> 0 | I77: ='COG-M'!P305 -> 0 | J77: ='COG-M'!P306 -> 48000 | K77: ='COG-M'!P307 -> 0 | L77: ='COG-M'!P308 -> 0 | M77: 83000
A78: 254 | B78: Materiales, accesorios y suministros médicos | C78: ='COG-M'!P309 -> 17000 | F78: ='COG-M'!P310 -> 0 | G78: ='COG-M'!P311 -> 0 | H78: ='COG-M'!P312 -> 0 | I78: ='COG-M'!P313 -> 0 | M78: 17000
A79: 255 | B79: Materiales, accesorios y suministros de laboratorio | C79: ='COG-M'!P314 -> 0 | F79: ='COG-M'!P315 -> 0 | G79: ='COG-M'!P316 -> 0 | H79: ='COG-M'!P317 -> 0 | I79: ='COG-M'!P318 -> 0 | J79: ='COG-M'!P319 -> 0 | K79: ='COG-M'!P320 -> 0 | L79: ='COG-M'!P321 -> 0 | M79: 0
A80: 256 | B80: Fibras sintéticas, hules plásticos y derivados | C80: ='COG-M'!P322 -> 25000 | F80: ='COG-M'!P323 -> 0 | G80: ='COG-M'!P324 -> 50000 | H80: ='COG-M'!P325 -> 0 | I80: ='COG-M'!P326 -> 0 | M80: 75000
A81: 259 | B81: Otros productos químicos | C81: ='COG-M'!P327 -> 0 | F81: ='COG-M'!P328 -> 0 | G81: ='COG-M'!P329 -> 55000 | H81: ='COG-M'!P330 -> 0 | I81: ='COG-M'!P331 -> 0 | M81: 55000
A82: 2600 | B82: COMBUSTIBLES, LUBRICANTES Y ADITIVOS | C82: =SUM(C83:C84) -> 535989 | D82: 0 | E82: 0 | F82: 0 | G82: 1086862 | H82: 0 | I82: 0 | J82: =SUM(J83:J84) -> 407159 | K82: =SUM(K83:K84) -> 0 | L82: =SUM(L83:L84) -> 0 | M82: =SUM(M83:M84) -> 2030010
A83: 261 | B83: Combustibles, lubricantes y aditivos | C83: ='COG-M'!P333 -> 535989 | F83: ='COG-M'!P334 -> 0 | G83: ='COG-M'!P335 -> 1086862 | H83: ='COG-M'!P336 -> 0 | I83: ='COG-M'!P337 -> 0 | J83: ='COG-M'!P338 -> 407159 | M83: =SUM(C83:L83) -> 2030010
A84: 262 | B84: Carbón y sus derivados | C84: ='COG-M'!P339 -> 0 | F84: ='COG-M'!P340 -> 0 | G84: ='COG-M'!P341 -> 0 | H84: ='COG-M'!P342 -> 0 | I84: ='COG-M'!P343 -> 0 | M84: =SUM(C84:L84) -> 0
A85: 2700 | B85: VESTUARIO, BLANCOS, PRENDAS DE PROTECCIÓN Y ARTÍCULOS DEPORTIVOS | C85: =SUM(C86:C90) -> 87000 | D85: 0 | E85: 0 | F85: 0 | G85: 35000 | H85: 0 | I85: 0 | J85: =SUM(J86:J90) -> 115000 | K85: =SUM(K86:K90) -> 0 | L85: =SUM(L86:L90) -> 0 | M85: =SUM(M86:M90) -> 237000
A86: 271 | B86: Vestuario y uniformes | C86: ='COG-M'!P345 -> 87000 | F86: ='COG-M'!P346 -> 0 | G86: ='COG-M'!P347 -> 0 | H86: ='COG-M'!P348 -> 0 | I86: ='COG-M'!P349 -> 0 | M86: =SUM(C86:L86) -> 87000
A87: 272 | B87: Prendas de seguridad y protección personal | C87: ='COG-M'!P350 -> 0 | F87: ='COG-M'!P351 -> 0 | G87: ='COG-M'!P352 -> 0 | H87: ='COG-M'!P353 -> 0 | I87: ='COG-M'!P354 -> 0 | J87: ='COG-M'!P355 -> 115000 | K87: ='COG-M'!P356 -> 0 | L87: ='COG-M'!P357 -> 0 | M87: =SUM(C87:L87) -> 115000
A88: 273 | B88: Artículos deportivos | C88: ='COG-M'!P358 -> 0 | F88: ='COG-M'!P359 -> 0 | G88: ='COG-M'!P360 -> 25000 | H88: ='COG-M'!P361 -> 0 | I88: ='COG-M'!P362 -> 0 | M88: =SUM(C88:L88) -> 25000
A89: 274 | B89: Productos textiles | C89: ='COG-M'!P363 -> 0 | F89: ='COG-M'!P364 -> 0 | G89: ='COG-M'!P365 -> 10000 | H89: ='COG-M'!P366 -> 0 | I89: ='COG-M'!P367 -> 0 | M89: =SUM(C89:L89) -> 10000
A90: 275 | B90: Blancos y otros productos textiles, excepto prendas de vestir | C90: ='COG-M'!P368 -> 0 | F90: ='COG-M'!P369 -> 0 | G90: ='COG-M'!P370 -> 0 | H90: ='COG-M'!P371 -> 0 | I90: ='COG-M'!P372 -> 0 | M90: =SUM(C90:L90) -> 0
A91: 2800 | B91: MATERIALES Y SUMINISTROS PARA SEGURIDAD | C91: =SUM(C92:C94) -> 0 | D91: 0 | E91: 0 | F91: 0 | G91: 0 | H91: 0 | I91: 0 | J91: =SUM(J92:J94) -> 0 | K91: =SUM(K92:K94) -> 0 | L91: =SUM(L92:L94) -> 0 | M91: =SUM(M92:M94) -> 0
A92: 281 | B92: Sustancias y materiales explosivos | C92: ='COG-M'!P374 -> 0 | F92: ='COG-M'!P375 -> 0 | G92: ='COG-M'!P376 -> 0 | H92: ='COG-M'!P377 -> 0 | I92: ='COG-M'!P378 -> 0 | M92: =SUM(C92:L92) -> 0
A93: 282 | B93: Materiales de seguridad pública | C93: ='COG-M'!P379 -> 0 | F93: ='COG-M'!P380 -> 0 | G93: ='COG-M'!P381 -> 0 | H93: ='COG-M'!P382 -> 0 | I93: ='COG-M'!P383 -> 0 | J93: ='COG-M'!P384 -> 0 | K93: ='COG-M'!P385 -> 0 | L93: ='COG-M'!P386 -> 0 | M93: =SUM(C93:L93) -> 0
A94: 283 | B94: Prendas de protección para seguridad pública y nacional | C94: ='COG-M'!P387 -> 0 | F94: ='COG-M'!P388 -> 0 | G94: ='COG-M'!P389 -> 0 | H94: ='COG-M'!P390 -> 0 | I94: ='COG-M'!P391 -> 0 | J94: ='COG-M'!P392 -> 0 | K94: ='COG-M'!P393 -> 0 | L94: ='COG-M'!P394 -> 0 | M94: =SUM(C94:L94) -> 0
A95: 2900 | B95: HERRAMIENTAS, REFACCIONES Y ACCESORIOS MENORES | C95: =SUM(C96:C104) -> 268000 | D95: 0 | E95: 0 | F95: 0 | G95: 275000 | H95: 0 | I95: 0 | J95: =SUM(J96:J104) -> 75000 | K95: =SUM(K96:K104) -> 0 | L95: =SUM(L96:L104) -> 0 | M95: =SUM(M96:M104) -> 618000
A96: 291 | B96: Herramientas menores | C96: ='COG-M'!P396 -> 20000 | F96: ='COG-M'!P397 -> 0 | G96: ='COG-M'!P398 -> 65000 | H96: ='COG-M'!P399 -> 0 | I96: ='COG-M'!P400 -> 0 | M96: =SUM(C96:L96) -> 85000
A97: 292 | B97: Refacciones y accesorios menores de edificios | C97: ='COG-M'!P401 -> 32000 | F97: ='COG-M'!P402 -> 0 | G97: ='COG-M'!P403 -> 0 | H97: ='COG-M'!P404 -> 0 | I97: ='COG-M'!P405 -> 0 | M97: 32000
A98: 293 | B98: Refacciones y accesorios menores de mobiliario y equipo de administración, educacional y recreativo | C98: ='COG-M'!P406 -> 61000 | F98: ='COG-M'!P407 -> 0 | G98: ='COG-M'!P408 -> 130000 | H98: ='COG-M'!P409 -> 0 | I98: ='COG-M'!P410 -> 0 | M98: 191000
A99: 294 | B99: Refacciones y accesorios menores de equipo de cómputo y tecnologías de la información | C99: ='COG-M'!P411 -> 35000 | F99: ='COG-M'!P412 -> 0 | G99: ='COG-M'!P413 -> 0 | H99: ='COG-M'!P414 -> 0 | I99: ='COG-M'!P415 -> 0 | M99: 35000
A100: 295 | B100: Refacciones y accesorios menores de equipo e instrumental médico y de laboratorio | C100: ='COG-M'!P416 -> 0 | F100: ='COG-M'!P417 -> 0 | G100: ='COG-M'!P418 -> 0 | H100: ='COG-M'!P419 -> 0 | I100: ='COG-M'!P420 -> 0 | M100: 0
A101: 296 | B101: Refacciones y accesorios menores de equipo de transporte | C101: ='COG-M'!P421 -> 120000 | F101: ='COG-M'!P422 -> 0 | G101: ='COG-M'!P423 -> 80000 | H101: ='COG-M'!P424 -> 0 | I101: ='COG-M'!P425 -> 0 | J101: ='COG-M'!P426 -> 75000 | M101: 275000
A102: 297 | B102: Refacciones y accesorios menores de equipo de defensa y seguridad | C102: ='COG-M'!P427 -> 0 | F102: ='COG-M'!P428 -> 0 | G102: ='COG-M'!P429 -> 0 | H102: ='COG-M'!P430 -> 0 | I102: ='COG-M'!P431 -> 0 | J102: ='COG-M'!P432 -> 0 | M102: 0
A103: 298 | B103: Refacciones y accesorios menores de maquinaria y otros equipos | C103: ='COG-M'!P433 -> 0 | F103: ='COG-M'!P434 -> 0 | G103: ='COG-M'!P435 -> 0 | H103: ='COG-M'!P436 -> 0 | I103: ='COG-M'!P437 -> 0 | M103: 0
A104: 299 | B104: Refacciones y accesorios menores otros bienes muebles | C104: ='COG-M'!P438 -> 0 | F104: ='COG-M'!P439 -> 0 | G104: ='COG-M'!P440 -> 0 | H104: ='COG-M'!P441 -> 0 | I104: ='COG-M'!P442 -> 0 | M104: 0
A105: 3000 | B105: SERVICIOS GENERALES | C105: =C106+C116+C126+C136+C146+C156+C164+C174+C180 -> 1318637 | D105: =D106+D116+D126+D136+D146+D156+D164+D174+D180 -> 0 | E105: 0 | F105: 0 | G105: 4517276 | H105: 0 | I105: 330726 | J105: 1061550 | K105: 0 | L105: 0 | M105: 7228189
A106: 3100 | B106: SERVICIOS BÁSICOS | C106: =SUM(C107:C115) -> 769637 | D106: =SUM(D107:D115) -> 0 | E106: 0 | F106: 0 | G106: 2595637 | H106: 0 | I106: 330726 | J106: 1000000 | K106: 0 | L106: 0 | M106: 4696000
A107: 311 | B107: Energía eléctrica | C107: ='COG-M'!P445 -> 728637 | F107: ='COG-M'!P446 -> 0 | G107: ='COG-M'!P447 -> 2500637 | H107: ='COG-M'!P448 -> 0 | I107: ='COG-M'!P449 -> 330726 | J107: ='COG-M'!P450 -> 1000000 | M107: =SUM(C107:L107) -> 4560000
A108: 312 | B108: Gas | C108: ='COG-M'!P451 -> 0 | F108: ='COG-M'!P452 -> 0 | G108: ='COG-M'!P453 -> 25000 | H108: ='COG-M'!P454 -> 0 | I108: ='COG-M'!P455 -> 0 | M108: 25000
A109: 313 | B109: Agua | C109: ='COG-M'!P456 -> 0 | F109: ='COG-M'!P457 -> 0 | G109: ='COG-M'!P458 -> 0 | H109: ='COG-M'!P459 -> 0 | I109: ='COG-M'!P460 -> 0 | M109: 0
A110: 314 | B110: Telefonía tradicional | C110: ='COG-M'!P461 -> 0 | F110: ='COG-M'!P462 -> 0 | G110: ='COG-M'!P463 -> 60000 | H110: ='COG-M'!P464 -> 0 | I110: ='COG-M'!P465 -> 0 | M110: 60000
A111: 315 | B111: Telefonía celular | C111: ='COG-M'!P466 -> 0 | F111: ='COG-M'!P467 -> 0 | G111: ='COG-M'!P468 -> 0 | H111: ='COG-M'!P469 -> 0 | I111: ='COG-M'!P470 -> 0 | M111: 0
A112: 316 | B112: Servicios de telecomunicaciones y satélites | C112: ='COG-M'!P471 -> 0 | F112: ='COG-M'!P472 -> 0 | G112: ='COG-M'!P473 -> 0 | H112: ='COG-M'!P474 -> 0 | I112: ='COG-M'!P475 -> 0 | M112: 0
A113: 317 | B113: Servicios de acceso de Internet, redes y procesamiento de información | C113: ='COG-M'!P476 -> 36000 | F113: ='COG-M'!P477 -> 0 | G113: ='COG-M'!P478 -> 10000 | H113: ='COG-M'!P479 -> 0 | I113: ='COG-M'!P480 -> 0 | M113: 46000
A114: 318 | B114: Servicios postales y telegráficos | C114: ='COG-M'!P481 -> 5000 | F114: ='COG-M'!P482 -> 0 | G114: ='COG-M'!P483 -> 0 | H114: ='COG-M'!P484 -> 0 | I114: ='COG-M'!P485 -> 0 | M114: 5000
A115: 319 | B115: Servicios integrales y otros servicios | C115: ='COG-M'!P486 -> 0 | F115: ='COG-M'!P487 -> 0 | G115: ='COG-M'!P488 -> 0 | H115: ='COG-M'!P489 -> 0 | I115: ='COG-M'!P490 -> 0 | M115: 0
A116: 3200 | B116: SERVICIOS DE ARRENDAMIENTO | C116: =SUM(C117:C125) -> 60000 | D116: =SUM(D117:D125) -> 0 | E116: 0 | F116: 0 | G116: 280000 | H116: 0 | I116: 0 | J116: 0 | K116: 0 | L116: 0 | M116: 340000
A117: 321 | B117: Arrendamiento de terrenos | C117: ='COG-M'!P492 -> 0 | F117: ='COG-M'!P493 -> 0 | G117: ='COG-M'!P494 -> 0 | H117: ='COG-M'!P495 -> 0 | I117: ='COG-M'!P496 -> 0 | M117: =SUM(C117:L117) -> 0
A118: 322 | B118: Arrendamiento de edificios | C118: ='COG-M'!P497 -> 0 | F118: ='COG-M'!P498 -> 0 | G118: ='COG-M'!P499 -> 90000 | H118: ='COG-M'!P500 -> 0 | I118: ='COG-M'!P501 -> 0 | J118: ='COG-M'!P502 -> 0 | M118: 90000
A119: 323 | B119: Arrendamiento de mobiliario y equipo de administración, educacional y recreativo | C119: ='COG-M'!P503 -> 0 | F119: ='COG-M'!P504 -> 0 | G119: ='COG-M'!P505 -> 89000 | H119: ='COG-M'!P506 -> 0 | I119: ='COG-M'!P507 -> 0 | M119: 89000
A120: 324 | B120: Arrendamiento de equipo e instrumental médico y de laboratorio | C120: ='COG-M'!P508 -> 0 | F120: ='COG-M'!P509 -> 0 | G120: ='COG-M'!P510 -> 0 | H120: ='COG-M'!P511 -> 0 | I120: ='COG-M'!P512 -> 0 | M120: 0
A121: 325 | B121: Arrendamiento de equipo de transporte | C121: ='COG-M'!P513 -> 0 | F121: ='COG-M'!P514 -> 0 | G121: ='COG-M'!P515 -> 18000 | H121: ='COG-M'!P516 -> 0 | I121: ='COG-M'!P517 -> 0 | M121: 18000
A122: 326 | B122: Arrendamiento de maquinaria, otros equipos y herramientas | C122: ='COG-M'!P518 -> 0 | F122: ='COG-M'!P519 -> 0 | G122: ='COG-M'!P520 -> 9000 | H122: ='COG-M'!P521 -> 0 | I122: ='COG-M'!P522 -> 0 | J122: ='COG-M'!P523 -> 0 | M122: 9000
A123: 327 | B123: Arrendamiento de activos intangibles | C123: ='COG-M'!P524 -> 60000 | F123: ='COG-M'!P525 -> 0 | G123: ='COG-M'!P526 -> 0 | H123: ='COG-M'!P527 -> 0 | I123: ='COG-M'!P528 -> 0 | M123: 60000
A124: 328 | B124: Arrendamiento financiero | C124: ='COG-M'!P529 -> 0 | F124: ='COG-M'!P530 -> 0 | G124: ='COG-M'!P531 -> 0 | H124: ='COG-M'!P532 -> 0 | I124: ='COG-M'!P533 -> 0 | J124: ='COG-M'!P534 -> 0 | M124: 0
A125: 329 | B125: Otros arrendamientos | C125: ='COG-M'!P535 -> 0 | F125: ='COG-M'!P536 -> 0 | G125: ='COG-M'!P537 -> 74000 | H125: ='COG-M'!P538 -> 0 | I125: ='COG-M'!P539 -> 0 | M125: 74000
A126: 3300 | B126: SERVICIOS PROFESIONALES, CIENTÍFICOS, TÉCNICOS Y OTROS SERVICIOS | C126: =SUM(C127:C135) -> 78000 | D126: =SUM(D127:D135) -> 0 | E126: 0 | F126: 0 | G126: 27000 | H126: 0 | I126: 0 | J126: 0 | K126: 0 | L126: 0 | M126: 105000
A127: 331 | B127: Servicios legales, de contabilidad, auditoría y relacionados | C127: ='COG-M'!P541 -> 0 | F127: ='COG-M'!P542 -> 0 | G127: ='COG-M'!P543 -> 0 | H127: ='COG-M'!P544 -> 0 | I127: ='COG-M'!P545 -> 0 | M127: =SUM(C127:L127) -> 0
A128: 332 | B128: Servicios de diseño, arquitectura, ingeniería y actividades relacionadas | C128: ='COG-M'!P546 -> 0 | F128: ='COG-M'!P547 -> 0 | G128: ='COG-M'!P548 -> 0 | H128: ='COG-M'!P549 -> 0 | I128: ='COG-M'!P550 -> 0 | J128: ='COG-M'!P551 -> 0 | M128: 0
A129: 333 | B129: Servicios de consultoría administrativa, procesos, técnica y en tecnologías de la información | C129: ='COG-M'!P552 -> 0 | F129: ='COG-M'!P553 -> 0 | G129: ='COG-M'!P554 -> 27000 | H129: ='COG-M'!P555 -> 0 | I129: ='COG-M'!P556 -> 0 | M129: 27000
A130: 334 | B130: Servicios de capacitación | C130: ='COG-M'!P557 -> 0 | F130: ='COG-M'!P558 -> 0 | G130: ='COG-M'!P559 -> 0 | H130: ='COG-M'!P560 -> 0 | I130: ='COG-M'!P561 -> 0 | M130: 0
A131: 335 | B131: Servicios de investigación científica y desarrollo | C131: ='COG-M'!P562 -> 0 | F131: ='COG-M'!P563 -> 0 | G131: ='COG-M'!P564 -> 0 | H131: ='COG-M'!P565 -> 0 | I131: ='COG-M'!P566 -> 0 | M131: 0
A132: 336 | B132: Servicios de apoyo administrativo, traducción, fotocopiado e impresión | C132: ='COG-M'!P567 -> 78000 | F132: ='COG-M'!P568 -> 0 | G132: ='COG-M'!P569 -> 0 | H132: ='COG-M'!P570 -> 0 | I132: ='COG-M'!P571 -> 0 | M132: 78000
A133: 337 | B133: Servicios de protección y seguridad | C133: ='COG-M'!P572 -> 0 | F133: ='COG-M'!P573 -> 0 | G133: ='COG-M'!P574 -> 0 | H133: ='COG-M'!P575 -> 0 | I133: ='COG-M'!P576 -> 0 | M133: 0
A134: 338 | B134: Servicios de vigilancia | C134: ='COG-M'!P577 -> 0 | F134: ='COG-M'!P578 -> 0 | G134: ='COG-M'!P579 -> 0 | H134: ='COG-M'!P580 -> 0 | I134: ='COG-M'!P581 -> 0 | M134: 0
A135: 339 | B135: Servicios profesionales, científicos y técnicos integrales | C135: ='COG-M'!P582 -> 0 | F135: ='COG-M'!P583 -> 0 | G135: ='COG-M'!P584 -> 0 | H135: ='COG-M'!P585 -> 0 | I135: ='COG-M'!P586 -> 0 | M135: 0
A136: 3400 | B136: SERVICIOS FINANCIEROS, BANCARIOS Y COMERCIALES | C136: =SUM(C137:C145) -> 25000 | D136: =SUM(D137:D145) -> 0 | E136: 0 | F136: 0 | G136: 0 | H136: 0 | I136: 0 | J136: 0 | K136: 0 | L136: 0 | M136: 25000
A137: 341 | B137: Servicios financieros y bancarios | C137: ='COG-M'!P588 -> 25000 | F137: ='COG-M'!P589 -> 0 | G137: ='COG-M'!P590 -> 0 | H137: ='COG-M'!P591 -> 0 | I137: ='COG-M'!P592 -> 0 | J137: ='COG-M'!P593 -> 0 | K137: ='COG-M'!P594 -> 0 | L137: ='COG-M'!P595 -> 0 | M137: =SUM(C137:L137) -> 25000
A138: 342 | B138: Servicios de cobranza, investigación crediticia y similar | C138: ='COG-M'!P596 -> 0 | F138: ='COG-M'!P597 -> 0 | G138: ='COG-M'!P598 -> 0 | H138: ='COG-M'!P599 -> 0 | I138: ='COG-M'!P600 -> 0 | M138: 0
A139: 343 | B139: Servicios de recaudación, traslado y custodia de valores | C139: ='COG-M'!P601 -> 0 | F139: ='COG-M'!P602 -> 0 | G139: ='COG-M'!P603 -> 0 | H139: ='COG-M'!P604 -> 0 | I139: ='COG-M'!P605 -> 0 | J139: ='COG-M'!P606 -> 0 | K139: ='COG-M'!P607 -> 0 | L139: ='COG-M'!P608 -> 0 | M139: 0
A140: 344 | B140: Seguros de responsabilidad patrimonial y fianzas | C140: ='COG-M'!P609 -> 0 | F140: ='COG-M'!P610 -> 0 | G140: ='COG-M'!P611 -> 0 | H140: ='COG-M'!P612 -> 0 | I140: ='COG-M'!P613 -> 0 | M140: 0
A141: 345 | B141: Seguro de bienes patrimoniales | C141: ='COG-M'!P614 -> 0 | F141: ='COG-M'!P615 -> 0 | G141: ='COG-M'!P616 -> 0 | H141: ='COG-M'!P617 -> 0 | I141: ='COG-M'!P618 -> 0 | M141: 0
A142: 346 | B142: Almacenaje, envase y embalaje | C142: ='COG-M'!P619 -> 0 | F142: ='COG-M'!P620 -> 0 | G142: ='COG-M'!P621 -> 0 | H142: ='COG-M'!P622 -> 0 | I142: ='COG-M'!P623 -> 0 | M142: 0
A143: 347 | B143: Fletes y maniobras | C143: ='COG-M'!P624 -> 0 | F143: ='COG-M'!P625 -> 0 | G143: ='COG-M'!P626 -> 0 | H143: ='COG-M'!P627 -> 0 | I143: ='COG-M'!P628 -> 0 | M143: 0
A144: 348 | B144: Comisiones por ventas | C144: ='COG-M'!P629 -> 0 | F144: ='COG-M'!P630 -> 0 | G144: ='COG-M'!P631 -> 0 | H144: ='COG-M'!P632 -> 0 | I144: ='COG-M'!P633 -> 0 | M144: 0
A145: 349 | B145: Servicios financieros, bancarios y comerciales integrales | C145: ='COG-M'!P634 -> 0 | F145: ='COG-M'!P635 -> 0 | G145: ='COG-M'!P636 -> 0 | H145: ='COG-M'!P637 -> 0 | I145: ='COG-M'!P638 -> 0 | M145: 0
A146: 3500 | B146: SERVICIOS DE INSTALACIÓN, REPARACIÓN, MANTENIMIENTO Y CONSERVACIÓN | C146: =SUM(C147:C155) -> 122000 | D146: =SUM(D147:D155) -> 0 | E146: 0 | F146: 0 | G146: 1051222 | H146: 0 | I146: 0 | J146: 61550 | K146: 0 | L146: 0 | M146: 1234772
A147: 351 | B147: Conservación y mantenimiento menor de inmuebles | C147: ='COG-M'!P640 -> 0 | F147: ='COG-M'!P641 -> 0 | G147: ='COG-M'!P642 -> 67222 | H147: ='COG-M'!P643 -> 0 | I147: ='COG-M'!P644 -> 0 | M147: =SUM(C147:L147) -> 67222
A148: 352 | B148: Instalación, reparación y mantenimiento de mobiliario y equipo de administración, educacional y recreativo | C148: ='COG-M'!P645 -> 25000 | F148: ='COG-M'!P646 -> 0 | G148: ='COG-M'!P647 -> 0 | H148: ='COG-M'!P648 -> 0 | I148: ='COG-M'!P649 -> 0 | M148: 25000
A149: 353 | B149: Instalación, reparación y mantenimiento de equipo de cómputo y tecnología de la información | C149: ='COG-M'!P650 -> 0 | F149: ='COG-M'!P651 -> 0 | G149: ='COG-M'!P652 -> 0 | H149: ='COG-M'!P653 -> 0 | I149: ='COG-M'!P654 -> 0 | M149: 0
A150: 354 | B150: Instalación, reparación y mantenimiento de equipo e instrumental médico y de laboratorio | C150: ='COG-M'!P655 -> 0 | F150: ='COG-M'!P656 -> 0 | G150: ='COG-M'!P657 -> 0 | H150: ='COG-M'!P658 -> 0 | I150: ='COG-M'!P659 -> 0 | M150: 0
A151: 355 | B151: Reparación y mantenimiento de equipo de transporte | C151: ='COG-M'!P660 -> 97000 | F151: ='COG-M'!P661 -> 0 | G151: ='COG-M'!P662 -> 0 | H151: ='COG-M'!P663 -> 0 | I151: ='COG-M'!P664 -> 0 | J151: ='COG-M'!P665 -> 61550 | M151: 158550
A152: 356 | B152: Reparación y mantenimiento de equipo de defensa y seguridad | C152: ='COG-M'!P666 -> 0 | F152: ='COG-M'!P667 -> 0 | G152: ='COG-M'!P668 -> 0 | H152: ='COG-M'!P669 -> 0 | I152: ='COG-M'!P670 -> 0 | J152: ='COG-M'!P671 -> 0 | M152: 0
A153: 357 | B153: Instalación, reparación y mantenimiento de maquinaria, otros equipos y herramienta | C153: ='COG-M'!P672 -> 0 | F153: ='COG-M'!P673 -> 0 | G153: ='COG-M'!P674 -> 180000 | H153: ='COG-M'!P675 -> 0 | I153: ='COG-M'!P676 -> 0 | M153: 180000
A154: 358 | B154: Servicios de limpieza y manejo de desechos | C154: ='COG-M'!P677 -> 0 | F154: ='COG-M'!P678 -> 0 | G154: ='COG-M'!P679 -> 804000 | H154: ='COG-M'!P680 -> 0 | I154: ='COG-M'!P681 -> 0 | M154: 804000
A155: 359 | B155: Servicios de jardinería y fumigación | C155: ='COG-M'!P682 -> 0 | F155: ='COG-M'!P683 -> 0 | G155: ='COG-M'!P684 -> 0 | H155: ='COG-M'!P685 -> 0 | I155: ='COG-M'!P686 -> 0 | M155: 0
A156: 3600 | B156: SERVICIOS DE COMUNICACIÓN SOCIAL Y PUBLICIDAD | C156: =SUM(C157:C163) -> 0 | D156: =SUM(D157:D163) -> 0 | E156: 0 | F156: 0 | G156: 60500 | H156: 0 | I156: 0 | J156: 0 | K156: 0 | L156: 0 | M156: 60500
A157: 361 | B157: Difusión por radio, televisión y otros medios de mensajes sobre programas y actividades gubernamentales | C157: ='COG-M'!P688 -> 0 | F157: ='COG-M'!P689 -> 0 | G157: ='COG-M'!P690 -> 0 | H157: ='COG-M'!P691 -> 0 | I157: ='COG-M'!P692 -> 0 | M157: =SUM(C157:L157) -> 0
A158: 362 | B158: Difusión por radio, televisión y otros medios de mensajes comerciales para promover la venta de bienes o servicios | C158: ='COG-M'!P693 -> 0 | F158: ='COG-M'!P694 -> 0 | G158: ='COG-M'!P695 -> 45000 | H158: ='COG-M'!P696 -> 0 | I158: ='COG-M'!P697 -> 0 | M158: 45000
A159: 363 | B159: Servicios de creatividad, preproducción y producción de publicidad, excepto Internet | C159: ='COG-M'!P698 -> 0 | F159: ='COG-M'!P699 -> 0 | G159: ='COG-M'!P700 -> 12000 | H159: ='COG-M'!P701 -> 0 | I159: ='COG-M'!P702 -> 0 | M159: 12000
A160: 364 | B160: Servicios de revelado de fotografías | C160: ='COG-M'!P703 -> 0 | F160: ='COG-M'!P704 -> 0 | G160: ='COG-M'!P705 -> 3500 | H160: ='COG-M'!P706 -> 0 | I160: ='COG-M'!P707 -> 0 | M160: 3500
A161: 365 | B161: Servicios de la industria fílmica, del sonido y del video | C161: ='COG-M'!P708 -> 0 | F161: ='COG-M'!P709 -> 0 | G161: ='COG-M'!P710 -> 0 | H161: ='COG-M'!P711 -> 0 | I161: ='COG-M'!P712 -> 0 | M161: 0
A162: 366 | B162: Servicio de creación y difusión de contenido exclusivamente a través de Internet | C162: ='COG-M'!P713 -> 0 | F162: ='COG-M'!P714 -> 0 | G162: ='COG-M'!P715 -> 0 | H162: ='COG-M'!P716 -> 0 | I162: ='COG-M'!P717 -> 0 | M162: 0
A163: 369 | B163: Otros servicios de información | C163: ='COG-M'!P718 -> 0 | F163: ='COG-M'!P719 -> 0 | G163: ='COG-M'!P720 -> 0 | H163: ='COG-M'!P721 -> 0 | I163: ='COG-M'!P722 -> 0 | M163: 0
A164: 3700 | B164: SERVICIOS DE TRASLADO Y VIÁTICOS | C164: =SUM(C165:C173) -> 117000 | D164: =SUM(D165:D173) -> 0 | E164: 0 | F164: 0 | G164: 42000 | H164: 0 | I164: 0 | J164: 0 | K164: 0 | L164: 0 | M164: =SUM(M165:M173) -> 159000
A165: 371 | B165: Pasajes aéreos | C165: ='COG-M'!P724 -> 28000 | F165: ='COG-M'!P725 -> 0 | G165: ='COG-M'!P726 -> 0 | H165: ='COG-M'!P727 -> 0 | I165: ='COG-M'!P728 -> 0 | M165: =SUM(C165:L165) -> 28000
A166: 372 | B166: Pasajes terrestres | C166: ='COG-M'!P729 -> 8000 | F166: ='COG-M'!P730 -> 0 | G166: ='COG-M'!P731 -> 0 | H166: ='COG-M'!P732 -> 0 | I166: ='COG-M'!P733 -> 0 | M166: 8000
A167: 373 | B167: Pasajes marítimos, lacustres y fluviales | C167: ='COG-M'!P734 -> 0 | F167: ='COG-M'!P735 -> 0 | G167: ='COG-M'!P736 -> 0 | H167: ='COG-M'!P737 -> 0 | I167: ='COG-M'!P738 -> 0 | M167: 0
A168: 374 | B168: Autotransporte | C168: ='COG-M'!P739 -> 0 | F168: ='COG-M'!P740 -> 0 | G168: ='COG-M'!P741 -> 0 | H168: ='COG-M'!P742 -> 0 | I168: ='COG-M'!P743 -> 0 | M168: 0
A169: 375 | B169: Viáticos en el país | C169: ='COG-M'!P744 -> 56000 | F169: ='COG-M'!P745 -> 0 | G169: ='COG-M'!P746 -> 25000 | H169: ='COG-M'!P747 -> 0 | I169: ='COG-M'!P748 -> 0 | M169: 81000
A170: 376 | B170: Viáticos en el extranjero | C170: ='COG-M'!P749 -> 0 | F170: ='COG-M'!P750 -> 0 | G170: ='COG-M'!P751 -> 17000 | H170: ='COG-M'!P752 -> 0 | I170: ='COG-M'!P753 -> 0 | M170: 17000
A171: 377 | B171: Gastos de instalación y traslado de menaje | C171: ='COG-M'!P754 -> 0 | F171: ='COG-M'!P755 -> 0 | G171: ='COG-M'!P756 -> 0 | H171: ='COG-M'!P757 -> 0 | I171: ='COG-M'!P758 -> 0 | M171: 0
A172: 378 | B172: Servicios integrales de traslado y viáticos | C172: ='COG-M'!P759 -> 0 | F172: ='COG-M'!P760 -> 0 | G172: ='COG-M'!P761 -> 0 | H172: ='COG-M'!P762 -> 0 | I172: ='COG-M'!P763 -> 0 | M172: 0
A173: 379 | B173: Otros servicios de traslado y hospedaje | C173: ='COG-M'!P764 -> 25000 | F173: ='COG-M'!P765 -> 0 | G173: ='COG-M'!P766 -> 0 | H173: ='COG-M'!P767 -> 0 | I173: ='COG-M'!P768 -> 0 | M173: 25000
A174: 3800 | B174: SERVICIOS OFICIALES | C174: =SUM(C175:C179) -> 147000 | D174: =SUM(D175:D179) -> 0 | E174: 0 | F174: 0 | G174: 0 | H174: 0 | I174: 0 | J174: 0 | K174: 0 | L174: 0 | M174: 147000
A175: 381 | B175: Gastos de ceremonial | C175: ='COG-M'!P770 -> 50000 | F175: ='COG-M'!P771 -> 0 | G175: ='COG-M'!P772 -> 0 | H175: ='COG-M'!P773 -> 0 | I175: ='COG-M'!P774 -> 0 | M175: =SUM(C175:L175) -> 50000
A176: 382 | B176: Gastos de orden social y cultural | C176: ='COG-M'!P775 -> 72000 | F176: ='COG-M'!P776 -> 0 | G176: ='COG-M'!P777 -> 0 | H176: ='COG-M'!P778 -> 0 | I176: ='COG-M'!P779 -> 0 | M176: =SUM(C176:L176) -> 72000
A177: 383 | B177: Congresos y convenciones | C177: ='COG-M'!P780 -> 25000 | F177: ='COG-M'!P781 -> 0 | G177: ='COG-M'!P782 -> 0 | H177: ='COG-M'!P783 -> 0 | I177: ='COG-M'!P784 -> 0 | M177: =SUM(C177:L177) -> 25000
A178: 384 | B178: Exposiciones | C178: ='COG-M'!P785 -> 0 | F178: ='COG-M'!P786 -> 0 | G178: ='COG-M'!P787 -> 0 | H178: ='COG-M'!P788 -> 0 | I178: ='COG-M'!P789 -> 0 | M178: =SUM(C178:L178) -> 0
A179: 385 | B179: Gastos de representación | C179: ='COG-M'!P790 -> 0 | F179: ='COG-M'!P791 -> 0 | G179: ='COG-M'!P792 -> 0 | H179: ='COG-M'!P793 -> 0 | I179: ='COG-M'!P794 -> 0 | M179: =SUM(C179:L179) -> 0
A180: 3900 | B180: OTROS SERVICIOS GENERALES | C180: =SUM(C181:C189) -> 0 | D180: =SUM(D181:D189) -> 0 | E180: 0 | F180: 0 | G180: 460917 | H180: 0 | I180: 0 | J180: 0 | K180: 0 | L180: 0 | M180: 460917
A181: 391 | B181: Servicios funerarios y de cementerios | C181: ='COG-M'!P796 -> 0 | F181: ='COG-M'!P797 -> 0 | G181: ='COG-M'!P798 -> 30000 | H181: ='COG-M'!P799 -> 0 | I181: ='COG-M'!P800 -> 0 | M181: =SUM(C181:L181) -> 30000
A182: 392 | B182: Impuestos y derechos | C182: ='COG-M'!P801 -> 0 | F182: ='COG-M'!P802 -> 0 | G182: ='COG-M'!P803 -> 430917 | H182: ='COG-M'!P804 -> 0 | I182: ='COG-M'!P805 -> 0 | M182: 430917
A183: 393 | B183: Impuestos y derechos de importación | C183: ='COG-M'!P806 -> 0 | F183: ='COG-M'!P807 -> 0 | G183: ='COG-M'!P808 -> 0 | H183: ='COG-M'!P809 -> 0 | I183: ='COG-M'!P810 -> 0 | M183: 0
A184: 394 | B184: Sentencias y resoluciones por autoridad competente | C184: ='COG-M'!P811 -> 0 | F184: ='COG-M'!P812 -> 0 | G184: ='COG-M'!P813 -> 0 | H184: ='COG-M'!P814 -> 0 | I184: ='COG-M'!P815 -> 0 | M184: 0
A185: 395 | B185: Penas, multas, accesorios y actualizaciones | C185: ='COG-M'!P816 -> 0 | F185: ='COG-M'!P817 -> 0 | G185: ='COG-M'!P818 -> 0 | H185: ='COG-M'!P819 -> 0 | I185: ='COG-M'!P820 -> 0 | M185: 0
A186: 396 | B186: Otros gastos por responsabilidades | C186: ='COG-M'!P821 -> 0 | F186: ='COG-M'!P822 -> 0 | G186: ='COG-M'!P823 -> 0 | H186: ='COG-M'!P824 -> 0 | I186: ='COG-M'!P825 -> 0 | M186: 0
A187: 397 | B187: Utilidades | M187: 0
A188: 398 | B188: Impuesto sobre nómina y otros que se deriven de una relación laboral | C188: ='COG-M'!P827 -> 0 | F188: ='COG-M'!P828 -> 0 | G188: ='COG-M'!P829 -> 0 | H188: ='COG-M'!P830 -> 0 | I188: ='COG-M'!P831 -> 0 | M188: 0
A189: 399 | B189: Otros servicios generales | C189: ='COG-M'!P832 -> 0 | F189: ='COG-M'!P833 -> 0 | G189: ='COG-M'!P834 -> 0 | H189: ='COG-M'!P835 -> 0 | I189: ='COG-M'!P836 -> 0 | M189: 0
A190: 4000 | B190: TRANSFERENCIAS, ASIGNACIONES, SUBSIDIOS Y OTRAS AYUDAS | C190: =C191+C201+C207+C217+C226+C230+C238+C240+C246 -> 0 | D190: =D191+D201+D207+D217+D226+D230+D238+D240+D246 -> 0 | E190: 0 | F190: 0 | G190: 1429000 | H190: 0 | I190: 0 | J190: 0 | K190: 0 | L190: 0 | M190: 1429000
A191: 4100 | B191: TRANSFERENCIAS INTERNAS Y ASIGNACIONES AL SECTOR PÚBLICO | C191: =SUM(C192:C200) -> 0 | D191: =SUM(D192:D200) -> 0 | E191: 0 | F191: 0 | G191: 0 | H191: 0 | I191: 0 | J191: 0 | K191: 0 | L191: 0 | M191: 0
A192: 411 | B192: Asignaciones presupuestarias al Poder Ejecutivo | M192: =SUM(C192:L192) -> 0
A193: 412 | B193: Asignaciones presupuestarias al Poder Legislativo | M193: 0
A194: 413 | B194: Asignaciones presupuestarias al Poder Judicial | M194: 0
A195: 414 | B195: Asignaciones presupuestarias a Órganos Autónomos | M195: 0
A196: 415 | B196: Transferencias internas otorgadas a entidades paraestatales no empresariales y no financieras | C196: ='COG-M'!P843 -> 0 | F196: ='COG-M'!P844 -> 0 | G196: ='COG-M'!P845 -> 0 | H196: ='COG-M'!P846 -> 0 | I196: ='COG-M'!P847 -> 0 | M196: 0
A197: 416 | B197: Transferencias internas otorgadas a entidades paraestatales empresariales y no financieras | M197: 0
A198: 417 | B198: Transferencias internas otorgadas a fideicomisos públicos empresariales y no financieros | C198: ='COG-M'!P849 -> 0 | F198: ='COG-M'!P850 -> 0 | G198: ='COG-M'!P851 -> 0 | H198: ='COG-M'!P852 -> 0 | I198: ='COG-M'!P853 -> 0 | M198: 0
A199: 418 | B199: Transferencias internas otorgadas a instituciones paraestatales públicas financieras | M199: 0
A200: 419 | B200: Transferencias internas otorgadas a fideicomisos públicos financieros | M200: 0
... 229 more rows

Sheet CTG-FF
A1: CTG | B1: DESCRIPCIÓN | C1: 1. NO ETIQUETADO | J1: 2. ETIQUETADO | M1: TOTAL ANUAL
C2: 1.1 RECURSOS FISCALES | D2: 1.2 FINANCIAMIENTOS INTERNOS | E2: 1.3 FINANCIAMIENTOS EXTERNOS | F2: 1.4 INGRESOS PROPIOS | G2: 1.5 RECURSOS FEDERALES | H2: 1.6 RECURSOS ESTATALES | I2: 1.7 OTROS RECURSOS DE LIBRE DISPOSICIÓN | J2: 2.5 RECURSOS FEDERALES | K2: 2.6 RECURSOS ESTATALES | L2: 2.7 OTROS RECURSOS DE TRANSFERENCIAS FEDERALES ETIQUETADAS
A3: 1 | B3: Gasto corriente | C3: =SUM('COG-FF'!C3+'COG-FF'!C40+'COG-FF'!C105+'COG-FF'!C190-'COG-FF'!C226) -> 7032738 | D3: =SUM('COG-FF'!D3+'COG-FF'!D40+'COG-FF'!D105+'COG-FF'!D190-'COG-FF'!D226) -> 0 | E3: =SUM('COG-FF'!E3+'COG-FF'!E40+'COG-FF'!E105+'COG-FF'!E190-'COG-FF'!E226) -> 0 | F3: =SUM('COG-FF'!F3+'COG-FF'!F40+'COG-FF'!F105+'COG-FF'!F190-'COG-FF'!F226) -> 0 | G3: =SUM('COG-FF'!G3+'COG-FF'!G40+'COG-FF'!G105+'COG-FF'!G190-'COG-FF'!G226) -> 17375588 | H3: =SUM('COG-FF'!H3+'COG-FF'!H40+'COG-FF'!H105+'COG-FF'!H190-'COG-FF'!H226) -> 28138 | I3: =SUM('COG-FF'!I3+'COG-FF'!I40+'COG-FF'!I105+'COG-FF'!I190-'COG-FF'!I226) -> 330726 | J3: =SUM('COG-FF'!J3+'COG-FF'!J40+'COG-FF'!J105+'COG-FF'!J190-'COG-FF'!J226) -> 4283517 | K3: =SUM('COG-FF'!K3+'COG-FF'!K40+'COG-FF'!K105+'COG-FF'!K190-'COG-FF'!K226) -> 0 | L3: =SUM('COG-FF'!L3+'COG-FF'!L40+'COG-FF'!L105+'COG-FF'!L190-'COG-FF'!L226) -> 0 | M3: =SUM(C3:L3) -> 29050707
A4: 2 | B4: Gasto de capital | C4: =SUM('COG-FF'!C250+'COG-FF'!C309+'COG-FF'!C331) -> 54000 | D4: =SUM('COG-FF'!D250+'COG-FF'!D309+'COG-FF'!D331) -> 0 | E4: =SUM('COG-FF'!E250+'COG-FF'!E309+'COG-FF'!E331) -> 0 | F4: =SUM('COG-FF'!F250+'COG-FF'!F309+'COG-FF'!F331) -> 0 | G4: =SUM('COG-FF'!G250+'COG-FF'!G309+'COG-FF'!G331) -> 65000 | H4: =SUM('COG-FF'!H250+'COG-FF'!H309+'COG-FF'!H331) -> 0 | I4: =SUM('COG-FF'!I250+'COG-FF'!I309+'COG-FF'!I331) -> 0 | J4: =SUM('COG-FF'!J250+'COG-FF'!J309+'COG-FF'!J331) -> 2994303 | K4: =SUM('COG-FF'!K250+'COG-FF'!K309+'COG-FF'!K331) -> 0 | L4: =SUM('COG-FF'!L250+'COG-FF'!L309+'COG-FF'!L331) -> 0 | M4: =SUM(C4:L4) -> 3113303
A5: 3 | B5: Amortización de la deuda y disminución de pasivos | C5: =SUM('COG-FF'!C397) -> 0 | D5: =SUM('COG-FF'!D397) -> 0 | E5: =SUM('COG-FF'!E397) -> 0 | F5: =SUM('COG-FF'!F397) -> 0 | G5: =SUM('COG-FF'!G397) -> 1896351 | H5: =SUM('COG-FF'!H397) -> 0 | I5: =SUM('COG-FF'!I397) -> 0 | J5: =SUM('COG-FF'!J397) -> 0 | K5: =SUM('COG-FF'!K397) -> 0 | L5: =SUM('COG-FF'!L397) -> 0 | M5: =SUM(C5:L5) -> 1896351
A6: 4 | B6: Pensiones y jubilaciones | C6: =SUM('COG-FF'!C226) -> 0 | D6: =SUM('COG-FF'!D226) -> 0 | E6: =SUM('COG-FF'!E226) -> 0 | F6: =SUM('COG-FF'!F226) -> 0 | G6: =SUM('COG-FF'!G226) -> 350000 | H6: =SUM('COG-FF'!H226) -> 0 | I6: =SUM('COG-FF'!I226) -> 0 | J6: =SUM('COG-FF'!J226) -> 0 | K6: =SUM('COG-FF'!K226) -> 0 | L6: =SUM('COG-FF'!L226) -> 0 | M6: =SUM(C6:L6) -> 350000
A7: 5 | B7: Participaciones | C7: =SUM('COG-FF'!C379) -> 0 | D7: =SUM('COG-FF'!D379) -> 0 | E7: =SUM('COG-FF'!E379) -> 0 | F7: =SUM('COG-FF'!F379) -> 0 | G7: =SUM('COG-FF'!G379) -> 0 | H7: =SUM('COG-FF'!H379) -> 0 | I7: =SUM('COG-FF'!I379) -> 430917 | J7: =SUM('COG-FF'!J379) -> 0 | K7: =SUM('COG-FF'!K379) -> 0 | L7: =SUM('COG-FF'!L379) -> 0 | M7: =SUM(C7:L7) -> 430917
B8: TOTAL DE EGRESOS | C8: =SUM(C3:C7) -> 7086738 | D8: =SUM(D3:D7) -> 0 | E8: 0 | F8: 0 | G8: 19686939 | H8: 28138 | I8: 761643 | J8: 7277820 | K8: 0 | L8: 0 | M8: 34841278
A13: COG | B13: DESCRIPCIÓN | C13: CAPÍTULO 1000 | D13: CAPÍTULO 2000 | E13: CAPÍTULO 3000 | F13: CAPÍTULO 4000 | G13: CAPÍTULO 5000 | H13: CAPÍTULO 6000 | I13: CAPÍTULO 7000 | J13: CAPÍTULO 8000 | K13: CAPÍTULO 9000 | L13: TOTAL ANUAL
A14: 1 | B14: Gasto corriente | C14: ='COG-FF'!M3 -> 15510653 | D14: ='COG-FF'!M40 -> 5232865 | E14: ='COG-FF'!M105 -> 7228189 | F14: =SUM('COG-FF'!M190-'COG-FF'!M226) -> 1079000 | L14: =SUM(C14:K14) -> 29050707
A15: 2 | B15: Gasto de capital | G15: ='COG-FF'!M250 -> 119000 | H15: ='COG-FF'!M309 -> 2994303 | I15: ='COG-FF'!M331 -> 0 | L15: =SUM(C15:K15) -> 3113303
A16: 3 | B16: Amortización de la deuda y disminución de pasivos | K16: ='COG-FF'!M397 -> 1896351 | L16: =SUM(C16:K16) -> 1896351
A17: 4 | B17: Pensiones y jubilaciones | F17: ='COG-FF'!M226 -> 350000 | L17: =SUM(C17:K17) -> 350000
A18: 5 | B18: Participaciones | J18: ='COG-FF'!M379 -> 430917 | L18: =SUM(C18:K18) -> 430917
B19: TOTAL DE EGRESOS | C19: =C14 -> 15510653 | D19: =D14 -> 5232865 | E19: =E14 -> 7228189 | F19: =SUM(F14+F17) -> 1429000 | G19: =G15 -> 119000 | H19: =H15 -> 2994303 | I19: =I15 -> 0 | J19: =J18 -> 430917 | K19: =K16 -> 1896351 | L19: =SUM(L14:L18) -> 34841278

Sheet CF
A1: CF | B1: DESCRIPCIÓN | C1: TOTAL ANUAL
A3: 1 | B3: GOBIERNO | C3: =C4+C7+C12+C22+C24+C27+C31+C36 -> 18666683
A4: 11 | B4: LEGISLACIÓN | C4: =SUM(C5:C6) -> 0
A5: 111 | B5: Legislación | C5: 0
A6: 112 | B6: Fiscalización | C6: 0
A7: 12 | B7: JUSTICIA | C7: =SUM(C8:C11) -> 0
A8: 121 | B8: Impartición de justicia | C8: 0
A9: 122 | B9: Procuración de justicia | C9: 0
A10: 123 | B10: Reclusión y readaptación social | C10: 0
A11: 124 | B11: Derechos humanos | C11: 0
A12: 13 | B12: COORDINACIÓN DE LA POLÍTICA DE GOBIERNO | C12: =SUM(C13:C21) -> 10917823
A13: 131 | B13: Presidencia/Gubernatura | C13: 7519549
A14: 132 | B14: Política interior
A15: 133 | B15: Preservación y cuidado del patrimonio público | C15: 513595
A16: 134 | B16: Función pública
A17: 135 | B17: Asuntos jurídicos | C17: 2884679
A18: 136 | B18: Organización de procesos electorales | C18: 0
A19: 137 | B19: Población
A20: 138 | B20: Territorio
A21: 139 | B21: Otros
A22: 14 | B22: RELACIONES EXTERIORES | C22: =SUM(C23:C23) -> 0
A23: 141 | B23: Relaciones exteriores
A24: 15 | B24: ASUNTOS FINANCIEROS Y HACENDARIOS | C24: =SUM(C25:C26) -> 438476
A25: 151 | B25: Asuntos financieros
A26: 152 | B26: Asuntos hacendarios | C26: 438476
A27: 16 | B27: SEGURIDAD NACIONAL | C27: =SUM(C28:C30) -> 0
A28: 161 | B28: Defensa | C28: 0
A29: 162 | B29: Marina | C29: 0
A30: 163 | B30: Inteligencia para la preservación de la seguridad nacional | C30: 0
A31: 17 | B31: ASUNTOS DE ORDEN PÚBLICO Y DE SEGURIDAD INTERIOR | C31: =SUM(C32:C35) -> 3633011
A32: 171 | B32: Policía | C32: 2019626
A33: 172 | B33: Protección civil | C33: 1613385
A34: 173 | B34: Otros asuntos de orden público y seguridad
A35: 174 | B35: Sistema nacional de seguridad pública | C35: 0
A36: 18 | B36: OTROS SERVICIOS GENERALES | C36: =SUM(C37:C41) -> 3677373
A37: 181 | B37: Servicios registrales, administrativos y patrimoniales
A38: 182 | B38: Servicios estadísticos
A39: 183 | B39: Servicios de comunicación y medios
A40: 184 | B40: Acceso a la información pública gubernamental | C40: 346169
A41: 185 | B41: Otros | C41: 3331204
A42: 2 | B42: DESARROLLO SOCIAL | C42: =C43+C50+C58+C64+C69+C76+C86 -> 12762158
A43: 21 | B43: PROTECCIÓN AMBIENTAL | C43: =SUM(C44:C49) -> 6816328
A44: 211 | B44: Ordenación de desechos | C44: 5154030
A45: 212 | B45: Administración del agua | C45: 0
A46: 213 | B46: Ordenación de aguas residuales, drenaje y alcantarillado | C46: 1662298
A47: 214 | B47: Reducción de la contaminación
A48: 215 | B48: Protección de la diversidad biológica y del paisaje
A49: 216 | B49: Otros de protección ambiental
A50: 22 | B50: VIVIENDA Y SERVICIOS A LA COMUNIDAD | C50: =SUM(C51:C57) -> 4307002
A51: 221 | B51: Urbanización | C51: 1274755
A52: 222 | B52: Desarrollo comunitario
A53: 223 | B53: Abastecimiento de agua | C53: 1153509
A54: 224 | B54: Alumbrado público | C54: 1878738
A55: 225 | B55: Vivienda | C55: 0
A56: 226 | B56: Servicios comunales
A57: 227 | B57: Desarrollo regional | C57: 0
A58: 23 | B58: SALUD | C58: =SUM(C59:C63) -> 0
A59: 231 | B59: Prestación de servicios de salud a la comunidad
A60: 232 | B60: Prestación de servicios de salud a la persona | C60: 0
A61: 233 | B61: Generación de recursos para la salud | C61: 0
A62: 234 | B62: Rectoría del sistema de salud | C62: 0
A63: 235 | B63: Protección social en salud | C63: 0
A64: 24 | B64: RECREACIÓN, CULTURA Y OTRAS MANIFESTACIONES SOCIALES | C64: =SUM(C65:C68) -> 0
A65: 241 | B65: Deporte y recreación
A66: 242 | B66: Cultura
A67: 243 | B67: Radio, televisión y editoriales | C67: 0
A68: 244 | B68: Asuntos religiosos y otras manifestaciones sociales
A69: 25 | B69: EDUCACIÓN | C69: =SUM(C70:C75) -> 0
A70: 251 | B70: Educación básica
A71: 252 | B71: Educación media superior | C71: 0
A72: 253 | B72: Educación superior | C72: 0
A73: 254 | B73: Posgrado | C73: 0
A74: 255 | B74: Educación para adultos | C74: 0
A75: 256 | B75: Otros servicios educativos y actividades inherentes
A76: 26 | B76: PROTECCIÓN SOCIAL | C76: =SUM(C77:C85) -> 1638828
A77: 261 | B77: Enfermedades e incapacidad
A78: 262 | B78: Edad avanzada
A79: 263 | B79: Familia e hijos
A80: 264 | B80: Desempleo | C80: 0
A81: 265 | B81: Alimentación y nutrición
A82: 266 | B82: Apoyo social para la vivienda | C82: 1638828
A83: 267 | B83: Indígenas
A84: 268 | B84: Otros grupos vulnerables
A85: 269 | B85: Otros de seguridad social y asistencia social
A86: 27 | B86: OTROS ASUNTOS SOCIALES | C86: =SUM(C87:C87) -> 0
A87: 271 | B87: Otros asuntos sociales
A88: 3 | B88: DESARROLLO ECONÓMICO | C88: =C89+C92+C99+C106+C110+C117+C119+C122+C127 -> 0
A89: 31 | B89: ASUNTOS ECONÓMICOS, COMERCIALES Y LABORALES EN GENERAL | C89: =SUM(C90:C91) -> 0
A90: 311 | B90: Asuntos económicos y comerciales en general
A91: 312 | B91: Asuntos laborales generales
A92: 32 | B92: AGROPECUARÍA, SILVICULTURA, PESCA Y CAZA | C92: =SUM(C93:C98) -> 0
A93: 321 | B93: Agropecuaria
A94: 322 | B94: Silvicultura
A95: 323 | B95: Acuacultura, pesca y caza
A96: 324 | B96: Agroindustrial
A97: 325 | B97: Hidroagrícola
A98: 326 | B98: Apoyo financiero a la banca y seguro agropecuario | C98: 0
A99: 33 | B99: COMBUSTIBLE Y ENERGÍA | C99: =SUM(C100:C105) -> 0
A100: 331 | B100: Carbón y otros combustibles minerales sólidos | C100: 0
A101: 332 | B101: Petróleo y gas natural (hidrocarburos) | C101: 0
A102: 333 | B102: Combustibles Nucleares | C102: 0
A103: 334 | B103: Otros combustibles | C103: 0
A104: 335 | B104: Electricidad
A105: 336 | B105: Energía no Eléctrica
A106: 34 | B106: MINERÍA, MANUFACTURAS Y CONSTRUCCIÓN | C106: =SUM(C107:C109) -> 0
A107: 341 | B107: Extracción de recursos minerales excepto los combustibles minerales | C107: 0
A108: 342 | B108: Manufacturas | C108: 0
A109: 343 | B109: Construcción | C109: 0
A110: 35 | B110: TRANSPORTE | C110: =SUM(C111:C116) -> 0
A111: 351 | B111: Transporte por carretera
A112: 352 | B112: Transporte por agua y puertos
A113: 353 | B113: Transporte por ferrocarril | C113: 0
A114: 354 | B114: Transporte aéreo | C114: 0
A115: 355 | B115: Transporte por oleoductos y gasoductos y otros sistemas de transporte | C115: 0
A116: 356 | B116: Otros relacionados con transporte
A117: 36 | B117: COMUNICACIONES | C117: =SUM(C118:C118) -> 0
A118: 361 | B118: Comunicaciones
A119: 37 | B119: TURISMO | C119: =SUM(C120:C121) -> 0
A120: 371 | B120: Turismo
A121: 372 | B121: Hoteles y restaurantes | C121: 0
A122: 38 | B122: CIENCIA, TECNOLOGÍA E INNOVACIÓN | C122: =SUM(C123:C126) -> 0
A123: 381 | B123: Investigación científica | C123: 0
A124: 382 | B124: Desarrollo tecnológico | C124: 0
A125: 383 | B125: Servicios científicos y tecnológicos | C125: 0
A126: 384 | B126: Innovación | C126: 0
A127: 39 | B127: OTRAS INDUSTRIAS Y OTROS ASUNTOS ECONÓMICOS | C127: =SUM(C128:C130) -> 0
A128: 391 | B128: Comercio, distribución, almacenamiento y depósito
A129: 392 | B129: Otras industrias
A130: 393 | B130: Otros asuntos económicos
A131: 4 | B131: OTRAS NO CLASIFICADAS EN FUNCIONES ANTERIORES | C131: =C132+C135+C139+C144 -> 3412437
A132: 41 | B132: TRANSACCIONES DE LA DEUDA PÚBLICA/COSTO FINANCIERO DE LA DEUDA | C132: =SUM(C133:C134) -> 1138145
A133: 411 | B133: Deuda pública interna | C133: 1138145
A134: 412 | B134: Deuda pública externa | C134: 0
A135: 42 | B135: TRANSFERENCIAS, PARTICIPACIONES Y APORTACIONES ENTRE DIFERENTES NIVELES Y ORDENES DE GOBIERNO | C135: =SUM(C136:C138) -> 0
A136: 421 | B136: Transferencia entre diferentes niveles y ordenes de gobierno
A137: 422 | B137: Participaciones entre diferentes niveles y ordenes de gobierno | C137: 0
A138: 423 | B138: Aportaciones entre diferentes niveles y ordenes de gobierno | C138: 0
A139: 43 | B139: SANEAMIENTO DEL SISTEMA FINANCIERO | C139: =SUM(C140:C143) -> 0
A140: 431 | B140: Saneamiento del sistema financiero | C140: 0
A141: 432 | B141: Apoyos IPAB | C141: 0
A142: 433 | B142: Banca de desarrollo | C142: 0
A143: 434 | B143: Apoyo a los programas de reestructura en unidades de inversión (UDIS) | C143: 0
A144: 44 | B144: ADEUDOS DE EJERCICIOS FISCALES ANTERIORES | C144: =SUM(C145:C145) -> 2274292
A145: 441 | B145: adeudos de ejercicios fiscales anteriores | C145: 2274292
B146: TOTAL DE EGRESOS | C146: =C3+C42+C88+C131 -> 34841278

Sheet CA
A1: CA | B1: UA | C1: NOMBRE DE LA UNIDAD RESPONSABLE | D1: TOTAL ANUAL
A3: 3.0.0.0.0. | C3: SECTOR PÚBLICO MUNICIPAL
A4: 3.1.1.0.0. | C4: GOBIERNO GENERAL MUNICIPAL
A5: 3.1.1.1.0. | C5: Gobierno Municipal
A6: 3.1.1.1.1. | B6: 1 | C6: Organo Ejecutivo Municipal (Ayuntamiento) | D6: 2378804
A7: 3.1.1.1.1. | B7: 2 | C7: Presidencia | D7: 2051012
A8: 3.1.1.1.1. | B8: 3 | C8: Direccion General de Relaciones Publicas | D8: 0
A9: 3.1.1.1.1 | B9: 4 | C9: Direccion General de Comunicación Social | D9: 403568
A10: 3.1.1.1.1. | B10: 5 | C10: Secretaria Particular | D10: 184192
A11: 3.1.1.1.1. | B11: 6 | C11: Secretaria de Ayuntamiento | D11: 471862
A12: 3.1.1.1.1. | B12: 7 | C12: Sindicatura | D12: 436011
A13: 3.1.1.1.1. | B13: 8 | C13: Hacienda Publica Municipal | D13: 3637465
A14: 3.1.1.1.1. | B14: 9 | C14: Oficialia Mayor Administrativa | D14: 441983
A15: 3.1.1.1.1. | B15: 10 | C15: Oficialia Mayor de Padron y Licencias | D15: 0
A16: 3.1.1.1.1. | B16: 11 | C16: Dirección General de Inspección y Reglamentos | D16: 91061
A17: 3.1.1.1.1. | B17: 12 | C17: Dirección General de Desarrollo Social y Humano | D17: 2462980
A18: 3.1.1.1.1. | B18: 13 | C18: Dirección General de Obras Públicas | D18: 3549649
A19: 3.1.1.1.1. | B19: 14 | C19: Dirección General de Ecología y Fomento Agropecuario | D19: 515019
A20: 3.1.1.1.1. | B20: 15 | C20: Dirección General de Servicios Públicos | D20: 9383718
A21: 3.1.1.1.1. | B21: 16 | C21: Dirección General de Seguridad Pública | D21: 2019626
A22: 3.1.1.1.1. | B22: 17 | C22: Centro de Promoción Economica | D22: 226418
A23: 3.1.1.1.1. | B23: 18 | C23: Instituto de Cultura | D23: 409106
A24: 3.1.1.1.1. | B24: 19 | C24: Instituto de Transparencia y Acceso a la Información | D24: 346169
A25: 3.1.1.1.1. | B25: 20 | C25: Organo de Control Interno | D25: 411067
A26: 3.1.1.1.1. | B26: 21 | C26: Bliblioteca Municipal | D26: 195918
A27: 3.1.1.1.1. | B27: 22 | C27: Direcccion de Agua Potable y Alcantarillado | D27: 1662298
A28: 3.1.1.1.1. | B28: 23 | C28: Direccion de Catastro Municipal | D28: 596254
A29: 3.1.1.1.1. | B29: 24 | C29: Delegaciones y Agencias Municipales | D29: 184032
A30: 3.1.1.1.1. | B30: 25 | C30: Instituto de la Mujer | D30: 194982
A31: 3.1.1.1.1. | B31: 26 | C31: Registro Civil | D31: 409042
A32: 3.1.1.1.1. | B32: 27 | C32: Direcccion de Proteccion Civil | D32: 1613385
A33: 3.1.1.1.1. | B33: 28 | C33: Proyectos Municipales | D33: 83492
A34: 3.1.1.1.1. | B34: 29 | C34: Servicios Generales | D34: 482165
C76: SUMA | D76: =SUM(D6:D75) -> 34841278

Sheet EA
B1: Pensiones y jubilaciones | C1: Salud | D1: Riesgos de trabajo | E1: Invalidez y vida | F1: Obras prestaciones sociales
A2: Tipo de sistema
A3: Prestación laboral o fondo general para trabajadores del municipio
A4: Beneficio definido, contribución definida o mixto
A5: Población afiliada
A6: Activos
A7: Edad máxima
A8: Edad mínima
A9: Edad promedio
A10: Pensionados y jubilados
A11: Edad máxima
A12: Edad mínima
A13: Edad promedio
A14: Beneficiarios
A15: Promedio de años de servicio (trabajadores activos)
A16: Aportación individual al plan de pensión como % del salario
A17: Aportación del ente público al plan de pensión como % del salario
A18: Crecimiento esperado de los pensionados y jubilados (como %)
A19: Crecimiento esperado de los activos (como %)
A20: Edad de jubilación o pensión
A21: Esperanza de vida
A22: Ingresos del fondo
A23: Ingresos anuales al fondo de pensiones
A24: Nómina anual
A25: Activos
A26: Pensiones y jubilados
A27: Beneficiarios de pensionados y jubilados
A28: Monto mensual por pensión
A29: Máximo
A30: Mínimo
A31: Promedio
A32: Monto de la reserva
A33: Valor presente de las obligaciones
A34: Pensiones y jubilaciones en curso de pago
A35: Generación actual
A36: Generaciones futuras
A37: Valor presente de las contribuciones asociadas a los sueldos futuros de cotización X%
A38: Generación actual
A39: Generaciones futuras
A40: Otros ingresos
A41: Déficit/superávit actuarial
A42: Generación actual
A43: Generaciones futuras
A44: Periodo de suficiencia
A45: Año de descapitalización
A46: Tasa de rendimiento
A47: Estudio actuarial
A48: Año de elaboración del estudio actuarial
A49: Empresa que elaboró el estudio actuarial
B53: =COUNTA(B6:F21,B3:F4,B23:F23,B25:F27,B29:F32,B34:F36,B38:F40,B42:F43,B45:F46,B48:F49) -> 0

Sheet Plantilla
A1: NOMBRE DE LA PLAZA | C1: ADSCRIPCIÓN DE LA PLAZA | D1: PARTIDA GENERICA | E1: FF | F1: No. PLAZAS | G1: 111-113 DIETAS Y SUELDO BASE | I1: 131 | J1: 132 | K1: 132 | L1: 133 | M1: 134 | N1: 1500 | O1: SUMA TOTAL DE REMUNERACIONES
G2: MENSUAL | H2: ANUAL | I2: PRIMAS POR AÑOS DE SERVICIOS EFECTIVOS PRESTADOS | J2: PRIMA VACACIONAL Y DOMINICAL | K2: GRATIFICACIÓN DE FIN DE AÑO (AGUINALDO) | L2: HORAS EXTRAORDINARIAS | M2: COMPENSACIONES | N2: OTRAS PRESTACIONES
A3: Regidores | C3: Sala de regidores | D3: 111 | E3: 11 | F3: 9 | G3: 16978 | H3: =IF(E3="","SE REQUIERE ASIGNAR LA FUENTE DE FINANCIAMIENTO",IF(F3="","ES NECESARIO ESTABLECER EL NÚMERO DE PLAZAS",IF(G3="","SE NECESITA ESTABLECER UN MONTO MENSUAL",F3*G3*12))) -> 1833624 | K3: 251181.3699 | O3: =SUM(H3:N3) -> 2084805.37
A4: Sindíco | C4: Sindicatura | D4: 111 | E4: 15 | F4: 1 | G4: 16978 | H4: =IF(E4="","SE REQUIERE ASIGNAR LA FUENTE DE FINANCIAMIENTO",IF(F4="","ES NECESARIO ESTABLECER EL NÚMERO DE PLAZAS",IF(G4="","SE NECESITA ESTABLECER UN MONTO MENSUAL",F4*G4*12))) -> 203736 | K4: 27909.0411 | O4: =SUM(H4:N4) -> 231645.0411
A5: Secretario general | C5: Secretaría general | D5: 113 | E5: 15 | F5: 1 | G5: 16798 | H5: 201576 | K5: 27613.15068 | O5: 229189.1507
A6: Presidente | C6: Presidencia | D6: 113 | E6: 15 | F6: 1 | G6: 39707 | H6: 476484 | K6: 65271.78082 | O6: 541755.7808
A7: Secetaria | C7: Presidencia | D7: 113 | E7: 15 | F7: 1 | G7: 5445 | H7: 65340 | K7: 8950.684932 | O7: 74290.68493
A8: Secretario Particular | C8: Presidencia | D8: 113 | E8: 15 | F8: 1 | G8: 11799 | H8: 141588 | K8: 19395.61644 | O8: 160983.6164
A9: Secretaria | C9: Secretaría general | D9: 113 | E9: 15 | F9: 1 | G9: 5445 | H9: 65340 | K9: 8950.684932 | O9: 74290.68493
A10: Secretaria | C10: Sindicatura | D10: 113 | E10: 15 | F10: 1 | G10: 5445 | H10: 65340 | K10: 8950.684932 | O10: 74290.68493
A11: Auxiliar de Sindicatura | C11: Sindicatura | D11: 113 | E11: 15 | F11: 1 | G11: 5800 | H11: 69600 | K11: 9534.246575 | O11: 79134.24658
A12: Secretaria | C12: Sindicatura | D12: 113 | E12: 15 | F12: 1 | G12: 5020 | H12: 60240 | K12: 8252.054795 | O12: 68492.05479
A13: Contralor interno | C13: Contraloria Interna | D13: 113 | E13: 15 | F13: 1 | G13: 10058 | H13: 120696 | K13: 16533.69863 | M13: 9600 | O13: 146829.6986
A14: Secretaria | C14: Contraloria Interna | D14: 113 | E14: 15 | F14: 1 | G14: 5445 | H14: 65340 | K14: 8950.684932 | O14: 74290.68493
A15: Oficial Mayor | C15: Oficialia Mayor | D15: 113 | E15: 15 | F15: 1 | G15: 13480 | H15: 161760 | K15: 22158.90411 | O15: 183918.9041
A16: Secretaria | C16: Oficialia Mayor | D16: 113 | E16: 15 | F16: 1 | G16: 5445 | H16: 65340 | K16: 8950.684932 | O16: 74290.68493
A17: Encargado de Hacienda Municipal | C17: Hacienda Publica Municipal | D17: 113 | E17: 15 | F17: 1 | G17: 16978 | H17: 203736 | K17: 27909.0411 | O17: 231645.0411
A18: Encargado de Ingresos | C18: Hacienda Publica Municipal | D18: 113 | E18: 15 | F18: 1 | G18: 7600 | H18: 91200 | K18: 12493.15068 | O18: 103693.1507
A19: Encargado de Egresos | C19: Hacienda Publica Municipal | D19: 113 | E19: 15 | F19: 1 | G19: 7600 | H19: 91200 | K19: 12493.15068 | O19: 103693.1507
A20: Auxiliar Tecnico | C20: Hacienda Publica Municipal | D20: 113 | E20: 15 | F20: 1 | G20: 15000 | H20: 180000 | K20: 24657.53425 | O20: 204657.5342
A21: Auxiliar Contable | C21: Hacienda Publica Municipal | D21: 113 | E21: 15 | F21: 1 | G21: 8720 | H21: 104640 | K21: 14334.24658 | O21: 118974.2466
A22: Auxiliar Administrativo | C22: Hacienda Publica Municipal | D22: 113 | E22: 15 | F22: 2 | G22: 5879 | H22: 141096 | K22: 19328.21918 | O22: 160424.2192
A23: Director de Catastro | C23: Catastro Municipal | D23: 113 | E23: 15 | F23: 1 | G23: 9246 | H23: 110952 | K23: 15198.90411 | O23: 126150.9041
A24: Auxiliar de Catastro | C24: Catastro Municipal | D24: 113 | E24: 15 | F24: 1 | G24: 5445 | H24: 65340 | K24: 8950.684932 | O24: 74290.68493
A25: Secretaria | C25: Catastro Municipal | D25: 113 | E25: 15 | F25: 2 | G25: 5000 | H25: 120000 | K25: 16438.35616 | O25: 136438.3562
A26: Director de Obras Publicas | C26: Departamento de Obras Publicas | D26: 113 | E26: 15 | F26: 1 | G26: 11790 | H26: 141480 | K26: 19380.82192 | O26: 160860.8219
A27: Secretaria | C27: Departamento de Obras Publicas | D27: 113 | E27: 15 | F27: 1 | G27: 5445 | H27: 65340 | K27: 8950.684932 | M27: 24000 | O27: 98290.68493
A28: Oficial de Albañil | C28: Departamento de Obras Publicas | D28: 113 | E28: 15 | F28: 1 | G28: 6710 | H28: 80520 | K28: 11030.13699 | O28: 91550.13699
A29: Inspector | C29: Departamento de Obras Publicas | D29: 113 | E29: 15 | F29: 1 | G29: 5445 | H29: 65340 | K29: 8950.684932 | O29: 74290.68493
A30: Director de Desarrollo Social | C30: Direccion de Desarrollo Social | D30: 113 | E30: 15 | F30: 1 | G30: 9862 | H30: 118344 | K30: 16211.50685 | O30: 134555.5068
A31: Auxiliar de Desarrollo Social | C31: Direccion de Desarrollo Social | D31: 113 | E31: 15 | F31: 1 | G31: 5483 | H31: 65796 | K31: 9013.150685 | O31: 74809.15068
A32: Secretaria | C32: Direccion de Desarrollo Social | D32: 113 | E32: 15 | F32: 1 | G32: 5483 | H32: 65796 | K32: 9013.150685 | O32: 74809.15068
A33: Encargada de Correo San Luis Soyatlan | C33: Direccion de Desarrollo Social | D33: 113 | E33: 15 | F33: 1 | G33: 2200 | H33: 26400 | K33: 3616.438356 | O33: 30016.43836
A34: Encargada de Correo Tuxcueca | C34: Direccion de Desarrollo Social | D34: 113 | E34: 15 | F34: 1 | G34: 3154 | H34: 37848 | K34: 5184.657534 | M34: 24000 | O34: 67032.65753
A35: Chofer de transporte escolar | C35: Direccion de Desarrollo Social | D35: 113 | E35: 15 | F35: 3 | G35: 6247 | H35: 224892 | K35: 30807.12329 | O35: 255699.1233
A36: Chofer de Comedor Asistencial | C36: Direccion de Desarrollo Social | D36: 113 | E36: 15 | F36: 1 | G36: 4836 | H36: 58032 | K36: 7949.589041 | O36: 65981.58904
A37: Director | C37: Direccion de Agua Potable y Alcantarillado | D37: 113 | E37: 15 | F37: 1 | G37: 8714 | H37: 104568 | K37: 14324.38356 | O37: 118892.3836
A38: Encargada de Recaudadora Tuxcueca | C38: Direccion de Agua Potable y Alcantarillado | D38: 113 | E38: 15 | F38: 1 | G38: 5482 | H38: 65784 | K38: 9011.506849 | O38: 74795.50685
A39: Encargada de Recaudadora San Luis | C39: Direccion de Agua potable y Alcantarillado | D39: 113 | E39: 15 | F39: 1 | G39: 5482 | H39: 65784 | K39: 9011.506849 | O39: 74795.50685
A40: Encargado de Recudadora Tepehuaje | C40: Direccion de Agua Potable y Alcantarillado | D40: 113 | E40: 15 | F40: 1 | G40: 2879 | H40: 34548 | K40: 4732.60274 | O40: 39280.60274
A41: Encargado de Recudadora San Nicolas | C41: Direccion de Agua Potable y Alcantarillado | D41: 113 | E41: 15 | F41: 1 | G41: 2400 | H41: 28800 | K41: 3945.205479 | O41: 32745.20548
A42: Encargado de Recudadora Puruagua | C42: Direccion de Agua Potable y Alcantarillado | D42: 113 | E42: 15 | F42: 1 | G42: 1929 | H42: 23148 | K42: 3170.958904 | O42: 26318.9589
A43: Encargado de Mantenimiento y Desasolve | C43: Direccion de Agua Potable y Alcantarillado | D43: 113 | E43: 15 | F43: 1 | G43: 3146 | H43: 37752 | K43: 5171.506849 | O43: 42923.50685
A44: Encargado de Bombas de Agua Tuxcueca | C44: Direccion de Agua Potable y Alcantarillado | D44: 113 | E44: 15 | F44: 1 | G44: 1284 | H44: 15408 | K44: 2110.684932 | O44: 17518.68493
A45: Fontanero Tuxcueca | C45: Direccion de Agua potable y Alcantarillado | D45: 113 | E45: 15 | F45: 2 | G45: 5001 | H45: 120024 | K45: 16442 | O45: 136466
A46: Fontanero San Luis "B" | C46: Direccion de Agua Potable y Alcantarillado | D46: 113 | E46: 15 | F46: 2 | G46: 5574 | H46: 133776 | K46: 18325.47945 | O46: 152101.4795
A47: Fontanero San Luis "A" | C47: Direccion de Agua Potable y Alcantarillado | D47: 113 | E47: 15 | F47: 1 | G47: 6600 | H47: 79200 | K47: 10849.31507 | M47: 12000 | O47: 102049.3151
A48: Fontanero Tepehuaje | C48: Direccion de Agua Potable y Alcantarillado | D48: 113 | E48: 15 | F48: 1 | G48: 3923 | H48: 47076 | K48: 6448.767123 | O48: 53524.76712
A49: Fontanero San Nicolas | C49: Direccion de Agua Potable y Alcantarillado | D49: 113 | E49: 15 | F49: 1 | G49: 3218 | H49: 38616 | K49: 5289.863014 | O49: 43905.86301
A50: Fontanero Puruagua | C50: Direccion de Agua Potable y Alcantarillado | D50: 113 | E50: 15 | F50: 1 | G50: 2230 | H50: 26760 | K50: 3665.753425 | O50: 30425.75342
A51: Director | C51: Direccion de Servicios Publicos | D51: 113 | E51: 15 | F51: 1 | G51: 9126 | H51: 109512 | K51: 15001.64384 | O51: 124513.6438
A52: Encargado de Cuadrilla | C52: Direccion de Servicios Publicos | D52: 113 | E52: 15 | F52: 1 | G52: 6400 | H52: 76800 | K52: 10520.54795 | O52: 87320.54795
A53: Elemento de Cuadrilla "C" | C53: Direccion de Servicios Publicos | D53: 113 | E53: 15 | F53: 1 | G53: 5400 | H53: 64800 | K53: 35508 | O53: 100308
A54: Elemento de Cuadrilla "B" | C54: Direccion de Servicios Publicos | D54: 113 | E54: 15 | F54: 2 | G54: 4836 | H54: 116064 | K54: 15899.17808 | O54: 131963.1781
A55: Elemento de Cuadrilla "A" | C55: Direccion de Servicios Publicos | D55: 113 | E55: 15 | F55: 3 | G55: 3900 | H55: 140400 | K55: 19232.87671 | O55: 159632.8767
A56: Encargado de Panteon Tuxcueca | C56: Direccion de Servicios Publicos | D56: 113 | E56: 15 | F56: 1 | G56: 4836 | H56: 58032 | K56: 7949.589041 | O56: 65981.58904
A57: Encargado de Panteon San Luis | C57: Direccion de Servicios Publicos | D57: 113 | E57: 15 | F57: 1 | G57: 4836 | H57: 58032 | K57: 7949.589041 | O57: 65981.58904
A58: Chofer Aseo Publico "B" | C58: Direccion de Servicios Publicos | D58: 113 | E58: 15 | F58: 2 | G58: 6465 | H58: 155160 | K58: 21254.79452 | O58: 176414.7945
A59: Chofer Aseo Publico "A" | C59: Direccion de Servicios Publicos | D59: 113 | E59: 15 | F59: 2 | G59: 6180 | H59: 148320 | K59: 20317.80822 | O59: 168637.8082
A60: Recolector de Residuos Solidos | C60: Direccion de Servicios Publicos | D60: 113 | E60: 15 | F60: 4 | G60: 5916 | H60: 283968 | K60: 38899.72603 | O60: 322867.726
A61: Jardinero Plaza Tuxcueca | C61: Direccion de Servicios Publicos | D61: 113 | E61: 15 | F61: 1 | G61: 2360 | H61: 28320 | K61: 3879.452055 | O61: 32199.45205
A62: Aseador Malecon Tuxcueca | C62: Direccion de Servicios Publicos | D62: 113 | E62: 15 | F62: 1 | G62: 2786 | H62: 33432 | K62: 4579.726027 | O62: 38011.72603
A63: Encargado de Limpieza Plaza Tepehuaje | C63: Direccion de Servicios Publicos | D63: 113 | E63: 15 | F63: 1 | G63: 4000 | H63: 48000 | K63: 6575.342466 | O63: 54575.34247
A64: Aseador Malecon Tepehuaje | C64: Direccion de Servicios Publicos | D64: 113 | E64: 15 | F64: 1 | G64: 4835 | H64: 58020 | K64: 7947.945205 | O64: 65967.94521
A65: Aseador Malecon San Nicolas | C65: Direccion de Servicios Publicos | D65: 113 | E65: 15 | F65: 2 | G65: 3249 | H65: 77976 | K65: 10681.64384 | O65: 88657.64384
A66: Jardinero Plaza San Nicolas | C66: Direccion de Servicios Publicos | D66: 113 | E66: 15 | F66: 1 | G66: 3249 | H66: 38988 | K66: 5340.821918 | O66: 44328.82192
A67: Aseador Plaza Puruagua | C67: Direccion de Servicios Publicos | D67: 113 | E67: 15 | F67: 1 | G67: 3000 | H67: 36000 | K67: 4931.506849 | O67: 40931.50685
A68: Auxiliar de Matenimiento Campo Fultbol San Luis | C68: Direccion de Servicios Publicos | D68: 113 | E68: 15 | F68: 1 | G68: 4874 | H68: =IF(E68="","SE REQUIERE ASIGNAR LA FUENTE DE FINANCIAMIENTO",IF(F68="","ES NECESARIO ESTABLECER EL NÚMERO DE PLAZAS",IF(G68="","SE NECESITA ESTABLECER UN MONTO MENSUAL",F68*G68*12))) -> 58488 | K68: 8012.054795 | O68: =SUM(H68:N68) -> 66500.05479
A69: Auxiliar de Matenimiento Campo Fultbol Tepehuaje | C69: Direccion de Servicios Publicos | D69: 113 | E69: 15 | F69: 1 | G69: 4836 | H69: 58032 | K69: 7949.589041 | O69: 65981.58904
A70: Director | C70: Direccion de Deportes | D70: 113 | E70: 15 | F70: 1 | G70: 5248 | H70: 62976 | K70: 8626.849315 | M70: 30000 | O70: 101602.8493
A71: Promotor de Deportes Tepehuaje | C71: Direccion de Deportes | D71: 113 | E71: 15 | F71: 1 | G71: 2500 | H71: 30000 | K71: 4109.589041 | O71: 34109.58904
A72: Promotor de Deportes San Luis | C72: Direccion de Deportes | D72: 113 | E72: 15 | F72: 1 | G72: 4836 | H72: 58032 | K72: 7949.589041 | O72: 65981.58904
A73: Medico Municipal | C73: Departamento de Servicios Generales | D73: 113 | E73: 15 | F73: 1 | G73: 9258 | H73: 111096 | K73: 15218.63014 | O73: 126314.6301
A74: Auxiliar de intendencia "B" | C74: Departamento de Servicios Generales | D74: 113 | E74: 15 | F74: 1 | G74: 3806 | H74: 45672 | K74: 6256.438356 | O74: 51928.43836
A75: Auxiliar de intendencia "A" | C75: Departamento de Servicios Generales | D75: 113 | E75: 15 | F75: 1 | G75: 2500 | H75: 30000 | K75: 4109.589041 | O75: 34109.58904
A76: Mensajero | C76: Departemento de Servicios Generales | D76: 113 | E76: 15 | F76: 1 | G76: 3295 | H76: 39540 | K76: 5416.438356 | O76: 44956.43836
A77: Intendente de la Escuela Primaria | C77: Departamento de Servicios Generales | D77: 113 | E77: 15 | F77: 1 | G77: 2753 | H77: 33036 | K77: 4525.479452 | O77: 37561.47945
A78: Encargada de Limpieza Centro Salud | C78: Departamento de Servicios Generales | D78: 113 | E78: 15 | F78: 1 | G78: 934 | H78: 11208 | K78: 1535.342466 | O78: 12743.34247
A79: Encargada de Limpieza Centro Salud | C79: Departamento de Servicios Generales | D79: 113 | E79: 15 | F79: 1 | G79: 1681 | H79: 20172 | K79: 2763.287671 | O79: 22935.28767
A80: Director | C80: Direccion de Cultura | D80: 113 | E80: 15 | F80: 1 | G80: 5248 | H80: 62976 | K80: 8626.849315 | O80: 71602.84932
A81: Director | C81: Direccion de Fomento Agropecuario y Ecologia | D81: 113 | E81: 15 | F81: 1 | G81: 9246 | H81: 110952 | K81: 15198.90411 | O81: 126150.9041
A82: Guardarastro | C82: Direccion de Fomento Agropecuario y Ecologia | D82: 113 | E82: 15 | F82: 1 | G82: 5242 | H82: 62904 | K82: 8616.986301 | O82: 71520.9863
A83: Inspector de Ganaderia | C83: Direccion de Fomento Agropecuario y Ecologia | D83: 113 | E83: 15 | F83: 1 | G83: 3000 | H83: 36000 | K83: 4931.506849 | M83: 12000 | O83: 52931.50685
A84: Auxiliar Agropecuario | C84: Direccion de Fomento Agropecuario y Ecologia | D84: 113 | E84: 15 | F84: 1 | G84: 4836 | H84: 58032 | K84: 7949.589041 | O84: 65981.58904
A85: Secretaria | C85: Direccion de Fomento Agropecuario y Ecologia | D85: 113 | E85: 15 | F85: 1 | G85: 5445 | H85: 65340 | K85: 8950.684932 | O85: 74290.68493
A86: Encargado de Transparencia | C86: Unidad de Transparencia | D86: 113 | E86: 15 | F86: 1 | G86: 9246 | H86: 110952 | K86: 15198.90411 | O86: 126150.9041
A87: Auxiliar de Transparencia | C87: Unidad de Transparencia | D87: 113 | E87: 15 | F87: 1 | G87: 7600 | H87: 91200 | K87: 12493.15068 | O87: 103693.1507
A88: Director | C88: Direccion de Secretaria de Economia | D88: 113 | E88: 15 | F88: 1 | G88: 9246 | H88: 110952 | K88: 15198.90411 | O88: 126150.9041
A89: Titular | C89: Instituto de la Mujer | D89: 113 | E89: 15 | F89: 1 | G89: 5484 | H89: 65808 | K89: 9014.794521 | O89: 74822.79452
A90: Secretaria | C90: Instituto de la Mujer | D90: 113 | E90: 15 | F90: 1 | G90: 5445 | H90: 65340 | K90: 8950.684932 | O90: 74290.68493
A91: Auxiliar | C91: Instituto de la Mujer | D91: 113 | E91: 15 | F91: 1 | G91: 1937 | H91: 23244 | K91: 3184.109589 | O91: 26428.10959
A92: Delegado San Luis Soyatlan | C92: Delegaciones y Agencias | D92: 113 | E92: 15 | F92: 1 | G92: 6400 | H92: 76800 | K92: 10520.54795 | O92: 87320.54795
A93: Agente Municipal San Nicolas de Acuña | C93: Delegaciones y Agencias | D93: 113 | E93: 15 | F93: 1 | G93: 1937 | H93: 23244 | K93: 3184.109589 | O93: 26428.10959
A94: Agente Municipal puerta de San Nicolas | C94: Delegaciones y Agencias | D94: 113 | E94: 15 | F94: 1 | G94: 1000 | H94: 12000 | K94: 1643.835616 | O94: 13643.83562
A95: Agente Municipal Puruagua de Ramon Corona | C95: Delegaciones y Agencias | D95: 113 | E95: 15 | F95: 1 | G95: 1941 | H95: 23292 | K95: 3190.684932 | O95: 26482.68493
A96: Agente Municipal Tepehuaje | C96: Delegaciones y Agencias | D96: 113 | E96: 15 | F96: 1 | G96: 2318 | H96: 27816 | K96: 3810.410959 | M96: 12000 | O96: 43626.41096
A97: Agente Municipal las Cebollas | C97: Delegaciones y Agencias | D97: 113 | E97: 15 | F97: 1 | G97: 1941 | H97: 23292 | K97: 3190.684932 | O97: 26482.68493
A98: Agente Municipal Puerto Corona | C98: Delegaciones y Agencias | D98: 113 | E98: 15 | F98: 1 | G98: 1937 | H98: 23244 | K98: 3184.109589 | O98: 26428.10959
A99: Agente Municipal el Saucito | C99: Delegaciones y Agencias | D99: 113 | E99: 15 | F99: 1 | G99: 1937 | H99: 23244 | K99: 3184.109589 | O99: 26428.10959
A100: Secretaria | C100: Oficialia de Registro Civil | D100: 113 | E100: 15 | F100: 1 | G100: 5445 | H100: 65340 | K100: 8950.684932 | O100: 74290.68493
A101: Auxiliar de Registro Civil | C101: Oficialia de Registro Civil | D101: 113 | E101: 15 | F101: 1 | G101: 5445 | H101: 65340 | K101: 8950.684932 | O101: 74290.68493
A102: Auxiliar de Biblioteca | C102: Biblioteca Municipal | D102: 113 | E102: 15 | F102: 2 | G102: 3030 | H102: 72720 | K102: 9961.643836 | O102: 82681.64384
A103: Director | C103: COPLADEMUN | D103: 113 | E103: 15 | F103: 1 | G103: 6200 | H103: 74400 | K103: 10191.78082 | O103: 84591.78082
A104: Director | C104: Direccion de Seguridad Publica | D104: 113 | E104: 25 | F104: 1 | G104: 16820 | H104: 201840 | K104: 27649.31507 | O104: 229489.3151
A105: Subdirector | C105: Direccion de Seguridad Publica | D105: 113 | E105: 25 | F105: 1 | G105: 9765 | H105: 117180 | K105: 16052.05479 | O105: 133232.0548
A106: Policia de Linea | C106: Direccion de Seguridad Publica | D106: 113 | E106: 25 | F106: 10 | G106: 7980 | H106: 957600 | K106: 131178.0822 | M106: 78000 | O106: 1166778.082
A107: Comandante | C107: Direccion de Seguridad Publica | D107: 113 | E107: 25 | F107: 1 | G107: 9345 | H107: 112140 | K107: 15361.64384 | O107: 127501.6438
A108: Auxiliar Administrativo | C108: Direccion de Seguridad Publica | D108: 113 | E108: 25 | F108: 1 | G108: 3570 | H108: 42840 | K108: 5868.493151 | O108: 48708.49315
A109: Director | C109: Direccion de Proteccion Civil | D109: 113 | E109: 25 | F109: 1 | G109: 10574 | H109: 126888 | K109: 17381.91781 | O109: 144269.9178
A110: Medico | C110: Direccion de Proteccion Civil | D110: 113 | E110: 25 | F110: 1 | G110: 6530 | H110: 78360 | K110: 10734.24658 | O110: 89094.24658
A111: Paramedico | C111: Direccion de Proteccion Civil | D111: 113 | E111: 25 | F111: 10 | G111: 6530 | H111: 783600 | K111: 107342.4658 | O111: 890942.4658
A112: Bombero | C112: Direccion de Proteccion Civil | D112: 113 | E112: 25 | F112: 1 | G112: 6530 | H112: 78360 | K112: 10734.24658 | O112: 89094.24658
A113: Elemento de cuadrilla "C" | C113: Direccion de Servicios Publicos | D113: 113 | E113: 11 | F113: 3 | G113: 5400 | H113: 194400 | K113: 106524 | O113: 300924
D114: 113 | H114: SE REQUIERE ASIGNAR LA FUENTE DE FINANCIAMIENTO | O114: 0
D115: 113 | H115: SE REQUIERE ASIGNAR LA FUENTE DE FINANCIAMIENTO | O115: 0
D116: 113 | H116: SE REQUIERE ASIGNAR LA FUENTE DE FINANCIAMIENTO | O116: 0
D117: 113 | H117: SE REQUIERE ASIGNAR LA FUENTE DE FINANCIAMIENTO | O117: 0
D118: 113 | H118: SE REQUIERE ASIGNAR LA FUENTE DE FINANCIAMIENTO | O118: 0
D119: 113 | H119: SE REQUIERE ASIGNAR LA FUENTE DE FINANCIAMIENTO | O119: 0
D120: 113 | H120: SE REQUIERE ASIGNAR LA FUENTE DE FINANCIAMIENTO | O120: 0
D121: 113 | H121: SE REQUIERE ASIGNAR LA FUENTE DE FINANCIAMIENTO | O121: 0
D122: 113 | H122: SE REQUIERE ASIGNAR LA FUENTE DE FINANCIAMIENTO | O122: 0
D123: 113 | H123: SE REQUIERE ASIGNAR LA FUENTE DE FINANCIAMIENTO | O123: 0
D124: 113 | H124: SE REQUIERE ASIGNAR LA FUENTE DE FINANCIAMIENTO | O124: 0
D125: 113 | H125: SE REQUIERE ASIGNAR LA FUENTE DE FINANCIAMIENTO | O125: 0
D126: 113 | H126: SE REQUIERE ASIGNAR LA FUENTE DE FINANCIAMIENTO | O126: 0
D127: 113 | H127: SE REQUIERE ASIGNAR LA FUENTE DE FINANCIAMIENTO | O127: 0
D128: 113 | H128: SE REQUIERE ASIGNAR LA FUENTE DE FINANCIAMIENTO | O128: 0
D129: 113 | H129: SE REQUIERE ASIGNAR LA FUENTE DE FINANCIAMIENTO | O129: 0
D130: 113 | H130: SE REQUIERE ASIGNAR LA FUENTE DE FINANCIAMIENTO | O130: 0
D131: 113 | H131: SE REQUIERE ASIGNAR LA FUENTE DE FINANCIAMIENTO | O131: 0
D132: 113 | H132: =IF(E132="","SE REQUIERE ASIGNAR LA FUENTE DE FINANCIAMIENTO",IF(F132="","ES NECESARIO ESTABLECER EL NÚMERO DE PLAZAS",IF(G132="","SE NECESITA ESTABLECER UN MONTO MENSUAL",F132*G132*12))) -> SE REQUIERE ASIGNAR LA FUENTE DE FINANCIAMIENTO | O132: =SUM(H132:N132) -> 0
D133: 113 | H133: SE REQUIERE ASIGNAR LA FUENTE DE FINANCIAMIENTO | O133: 0
D134: 113 | H134: SE REQUIERE ASIGNAR LA FUENTE DE FINANCIAMIENTO | O134: 0
D135: 113 | H135: SE REQUIERE ASIGNAR LA FUENTE DE FINANCIAMIENTO | O135: 0
D136: 113 | H136: SE REQUIERE ASIGNAR LA FUENTE DE FINANCIAMIENTO | O136: 0
D137: 113 | H137: SE REQUIERE ASIGNAR LA FUENTE DE FINANCIAMIENTO | O137: 0
D138: 113 | H138: SE REQUIERE ASIGNAR LA FUENTE DE FINANCIAMIENTO | O138: 0
D139: 113 | H139: SE REQUIERE ASIGNAR LA FUENTE DE FINANCIAMIENTO | O139: 0
D140: 113 | H140: SE REQUIERE ASIGNAR LA FUENTE DE FINANCIAMIENTO | O140: 0
D141: 113 | H141: SE REQUIERE ASIGNAR LA FUENTE DE FINANCIAMIENTO | O141: 0
D142: 113 | H142: SE REQUIERE ASIGNAR LA FUENTE DE FINANCIAMIENTO | O142: 0
D143: 113 | H143: SE REQUIERE ASIGNAR LA FUENTE DE FINANCIAMIENTO | O143: 0
D144: 113 | H144: SE REQUIERE ASIGNAR LA FUENTE DE FINANCIAMIENTO | O144: 0
D145: 113 | H145: SE REQUIERE ASIGNAR LA FUENTE DE FINANCIAMIENTO | O145: 0
D146: 113 | H146: SE REQUIERE ASIGNAR LA FUENTE DE FINANCIAMIENTO | O146: 0
D147: 113 | H147: SE REQUIERE ASIGNAR LA FUENTE DE FINANCIAMIENTO | O147: 0
D148: 113 | H148: SE REQUIERE ASIGNAR LA FUENTE DE FINANCIAMIENTO | O148: 0
D149: 113 | H149: SE REQUIERE ASIGNAR LA FUENTE DE FINANCIAMIENTO | O149: 0
D150: 113 | H150: SE REQUIERE ASIGNAR LA FUENTE DE FINANCIAMIENTO | O150: 0
D151: 113 | H151: SE REQUIERE ASIGNAR LA FUENTE DE FINANCIAMIENTO | O151: 0
D152: 113 | H152: SE REQUIERE ASIGNAR LA FUENTE DE FINANCIAMIENTO | O152: 0
D153: 113 | H153: SE REQUIERE ASIGNAR LA FUENTE DE FINANCIAMIENTO | O153: 0
D154: 113 | H154: SE REQUIERE ASIGNAR LA FUENTE DE FINANCIAMIENTO | O154: 0
D155: 113 | H155: SE REQUIERE ASIGNAR LA FUENTE DE FINANCIAMIENTO | O155: 0
D156: 113 | H156: SE REQUIERE ASIGNAR LA FUENTE DE FINANCIAMIENTO | O156: 0
D157: 113 | H157: SE REQUIERE ASIGNAR LA FUENTE DE FINANCIAMIENTO | O157: 0
D158: 113 | H158: SE REQUIERE ASIGNAR LA FUENTE DE FINANCIAMIENTO | O158: 0
D159: 113 | H159: SE REQUIERE ASIGNAR LA FUENTE DE FINANCIAMIENTO | O159: 0
D160: 113 | H160: SE REQUIERE ASIGNAR LA FUENTE DE FINANCIAMIENTO | O160: 0
D161: 113 | H161: SE REQUIERE ASIGNAR LA FUENTE DE FINANCIAMIENTO | O161: 0
D162: 113 | H162: SE REQUIERE ASIGNAR LA FUENTE DE FINANCIAMIENTO | O162: 0
D163: 113 | H163: SE REQUIERE ASIGNAR LA FUENTE DE FINANCIAMIENTO | O163: 0
D164: 113 | H164: SE REQUIERE ASIGNAR LA FUENTE DE FINANCIAMIENTO | O164: 0
D165: 113 | H165: SE REQUIERE ASIGNAR LA FUENTE DE FINANCIAMIENTO | O165: 0
D166: 113 | H166: SE REQUIERE ASIGNAR LA FUENTE DE FINANCIAMIENTO | O166: 0
D167: 113 | H167: SE REQUIERE ASIGNAR LA FUENTE DE FINANCIAMIENTO | O167: 0
D168: 113 | H168: SE REQUIERE ASIGNAR LA FUENTE DE FINANCIAMIENTO | O168: 0
D169: 113 | H169: SE REQUIERE ASIGNAR LA FUENTE DE FINANCIAMIENTO | O169: 0
D170: 113 | H170: SE REQUIERE ASIGNAR LA FUENTE DE FINANCIAMIENTO | O170: 0
D171: 113 | H171: SE REQUIERE ASIGNAR LA FUENTE DE FINANCIAMIENTO | O171: 0
D172: 113 | H172: SE REQUIERE ASIGNAR LA FUENTE DE FINANCIAMIENTO | O172: 0
D173: 113 | H173: SE REQUIERE ASIGNAR LA FUENTE DE FINANCIAMIENTO | O173: 0
D174: 113 | H174: SE REQUIERE ASIGNAR LA FUENTE DE FINANCIAMIENTO | O174: 0
D175: 113 | H175: SE REQUIERE ASIGNAR LA FUENTE DE FINANCIAMIENTO | O175: 0
D176: 113 | H176: SE REQUIERE ASIGNAR LA FUENTE DE FINANCIAMIENTO | O176: 0
D177: 113 | H177: SE REQUIERE ASIGNAR LA FUENTE DE FINANCIAMIENTO | O177: 0
D178: 113 | H178: SE REQUIERE ASIGNAR LA FUENTE DE FINANCIAMIENTO | O178: 0
D179: 113 | H179: SE REQUIERE ASIGNAR LA FUENTE DE FINANCIAMIENTO | O179: 0
D180: 113 | H180: SE REQUIERE ASIGNAR LA FUENTE DE FINANCIAMIENTO | O180: 0
D181: 113 | H181: SE REQUIERE ASIGNAR LA FUENTE DE FINANCIAMIENTO | O181: 0
D182: 113 | H182: SE REQUIERE ASIGNAR LA FUENTE DE FINANCIAMIENTO | O182: 0
D183: 113 | H183: SE REQUIERE ASIGNAR LA FUENTE DE FINANCIAMIENTO | O183: 0
D184: 113 | H184: SE REQUIERE ASIGNAR LA FUENTE DE FINANCIAMIENTO | O184: 0
D185: 113 | H185: SE REQUIERE ASIGNAR LA FUENTE DE FINANCIAMIENTO | O185: 0
D186: 113 | H186: SE REQUIERE ASIGNAR LA FUENTE DE FINANCIAMIENTO | O186: 0
D187: 113 | H187: SE REQUIERE ASIGNAR LA FUENTE DE FINANCIAMIENTO | O187: 0
D188: 113 | H188: SE REQUIERE ASIGNAR LA FUENTE DE FINANCIAMIENTO | O188: 0
D189: 113 | H189: SE REQUIERE ASIGNAR LA FUENTE DE FINANCIAMIENTO | O189: 0
D190: 113 | H190: SE REQUIERE ASIGNAR LA FUENTE DE FINANCIAMIENTO | O190: 0
D191: 113 | H191: SE REQUIERE ASIGNAR LA FUENTE DE FINANCIAMIENTO | O191: 0
D192: 113 | H192: SE REQUIERE ASIGNAR LA FUENTE DE FINANCIAMIENTO | O192: 0
D193: 113 | H193: SE REQUIERE ASIGNAR LA FUENTE DE FINANCIAMIENTO | O193: 0
D194: 113 | H194: SE REQUIERE ASIGNAR LA FUENTE DE FINANCIAMIENTO | O194: 0
D195: 113 | H195: SE REQUIERE ASIGNAR LA FUENTE DE FINANCIAMIENTO | O195: 0
D196: 113 | H196: =IF(E196="","SE REQUIERE ASIGNAR LA FUENTE DE FINANCIAMIENTO",IF(F196="","ES NECESARIO ESTABLECER EL NÚMERO DE PLAZAS",IF(G196="","SE NECESITA ESTABLECER UN MONTO MENSUAL",F196*G196*12))) -> SE REQUIERE ASIGNAR LA FUENTE DE FINANCIAMIENTO | O196: =SUM(H196:N196) -> 0
D197: 113 | H197: SE REQUIERE ASIGNAR LA FUENTE DE FINANCIAMIENTO | O197: 0
D198: 113 | H198: SE REQUIERE ASIGNAR LA FUENTE DE FINANCIAMIENTO | O198: 0
D199: 113 | H199: SE REQUIERE ASIGNAR LA FUENTE DE FINANCIAMIENTO | O199: 0
D200: 113 | H200: SE REQUIERE ASIGNAR LA FUENTE DE FINANCIAMIENTO | O200: 0
... 229 more rows
